Workbook

Sheet Cover
C9: AusNet Services
C10: Business Case Evaluation
C11: Voltage Compliance

Sheet Outputs->
C6: Outputs
C7: Section 1.
C9: =Cover!$C$9 -> AusNet Services
C10: =Cover!$C$10 -> Business Case Evaluation
C11: =Cover!$C$11 -> Voltage Compliance

Sheet Output
B1: Outputs
B2: =Cover!$C$9 -> AusNet Services
B3: =Cover!$C$10 -> Business Case Evaluation
B4: =Cover!$C$11 -> Voltage Compliance
B6: Outputs
G8: FY27 to FY31 (undiscounted) in 30 June 2024 dollars | J8: Full assessment period (discounted)
F9: Dollars | G9: Capex | H9: Opex | I9: Total Financial Costs | J9: Total cost | K9: Total benefits | L9: NPV
F10: =General!D9 -> Base Case | G10: =-BaseCase_Analysis!H26 -> 0 | H10: =-BaseCase_Analysis!H27 -> 0 | I10: =G10+H10 -> 0 | J10: =BaseCase_Analysis!H20+BaseCase_Analysis!H21 -> 0 | K10: =BaseCase_Analysis!H22 -> 0 | L10: =BaseCase_Analysis!H23 -> 0
F11: =General!D10 -> Option 1 | G11: =-Option1_Analysis!H26 -> 23.295 | H11: =-Option1_Analysis!H27 -> 0.609 | I11: =G11+H11 -> 23.904 | J11: =Option1_Analysis!H20+Option1_Analysis!H21 -> -26.47935026 | K11: =Option1_Analysis!H22 -> 135.6455483 | L11: =Option1_Analysis!H23 -> 109.166198
F12: =General!D11 -> Option 2 | G12: =-#REF! ->  | H12: =-#REF! ->  | J12: =#REF!+#REF! ->  | K12: =#REF! ->  | L12: =#REF! -> 
F13: =General!D12 -> Option 3 | G13: =-#REF! ->  | H13: =-#REF! ->  | J13: =#REF!+#REF! ->  | K13: =#REF! ->  | L13: =#REF! -> 
F14: =General!D11 -> Option 2 | G14: =-Option2_Analysis!H26 -> 745.7024 | H14: =-Option2_Analysis!H27 -> 18.352411 | I14: 764.054811 | J14: =Option2_Analysis!H20+Option2_Analysis!H21 -> -775.4834735 | K14: =Option2_Analysis!H22 -> 162.3536576 | L14: =Option2_Analysis!H23 -> -613.1298159
F15: Do Nothing Risk | I15: 0 | K15: =-'Do Nothing Risk'!H22 -> -162.3696117

Sheet Assumptions->
C6: Assumptions
C7: Section 2.
C9: =Cover!$C$9 -> AusNet Services
C10: =Cover!$C$10 -> Business Case Evaluation
C11: =Cover!$C$11 -> Voltage Compliance

Sheet General
B1: Assumptions: General
B2: =Cover!$C$9 -> AusNet Services
B3: =Cover!$C$10 -> Business Case Evaluation
B4: =Cover!$C$11 -> Voltage Compliance
B6: Project Details
D8: Option Name | G8: Description
D9: Base Case | G9: Do Nothing
D10: Option 1 | G10: Economic Approach to Voltage Compliance (PVR > 1.0)
D11: Option 2 | G11: Full Voltage Compliance
D12: Option 3
D13: Option 4
D14: Option 5
B16: Modelling Controls
D18: Model Start Date | H18: 2023-07-01
D19: Model End Date | H19: =EOMONTH(H18+(50*365),0) -> 2073-06-30
D20: Regulatory Period Start Date | H20: 2026-07-01
D21: Regulatory Period End Date | H21: 2031-06-30
D22: Dollar Basis Needed for EDPR | H22: 2024-06-30
D23: Denomination | H23: Dollars
D24: CPI p.a. (future where no RBA forecast) | H24: 0.025
H27: Regulatory Period Indicator | J27: =IF(AND(J$28>=$H$20,J$29<=$H$21),1,0) -> 0 | K27: =IF(AND(K$28>=$H$20,K$29<=$H$21),1,0) -> 0 | L27: 0 | M27: 1 | N27: 1 | O27: 1 | P27: 1 | Q27: 1 | R27: 0 | S27: 0 | T27: 0 | U27: 0 | V27: 0 | W27: 0 | X27: 0 | Y27: 0 | Z27: 0 | AA27: 0 | AB27: 0 | AC27: 0 | AD27: 0 | AE27: 0 | AF27: 0 | AG27: 0 | AH27: 0 | AI27: 0 | AJ27: 0 | AK27: 0 | AL27: 0 | AM27: 0 | AN27: 0 | AO27: 0 | AP27: =IF(AND(AP$28>=$H$20,AP$29<=$H$21),1,0) -> 0 | AQ27: 0 | AR27: 0 | AS27: 0 | AT27: 0 | AU27: 0 | AV27: 0 | AW27: 0 | AX27: 0 | AY27: 0 | AZ27: 0 | BA27: 0 | BB27: 0 | BC27: 0 | BD27: 0 | BE27: 0 | BF27: 0 | BG27: 0
H28: Period Start Date | J28: =EDATE($H$18,(J30-1)*12) -> 2023-07-01 | K28: =EDATE($H$18,(K30-1)*12) -> 2024-07-01 | L28: 2025-07-01 | M28: 2026-07-01 | N28: 2027-07-01 | O28: 2028-07-01 | P28: 2029-07-01 | Q28: 2030-07-01 | R28: 2031-07-01 | S28: 2032-07-01 | T28: 2033-07-01 | U28: 2034-07-01 | V28: 2035-07-01 | W28: 2036-07-01 | X28: 2037-07-01 | Y28: 2038-07-01 | Z28: 2039-07-01 | AA28: 2040-07-01 | AB28: 2041-07-01 | AC28: 2042-07-01 | AD28: 2043-07-01 | AE28: 2044-07-01 | AF28: 2045-07-01 | AG28: 2046-07-01 | AH28: 2047-07-01 | AI28: 2048-07-01 | AJ28: 2049-07-01 | AK28: 2050-07-01 | AL28: 2051-07-01 | AM28: 2052-07-01 | AN28: 2053-07-01 | AO28: 2054-07-01 | AP28: 2055-07-01 | AQ28: 2056-07-01 | AR28: 2057-07-01 | AS28: 2058-07-01 | AT28: 2059-07-01 | AU28: 2060-07-01 | AV28: 2061-07-01 | AW28: 2062-07-01 | AX28: 2063-07-01 | AY28: 2064-07-01 | AZ28: 2065-07-01 | BA28: 2066-07-01 | BB28: 2067-07-01 | BC28: 2068-07-01 | BD28: 2069-07-01 | BE28: 2070-07-01 | BF28: 2071-07-01 | BG28: 2072-07-01
H29: Period End Date | J29: =EDATE(J28,12)-1 -> 2024-06-30 | K29: =EDATE(K28,12)-1 -> 2025-06-30 | L29: 2026-06-30 | M29: =EDATE(M28,12)-1 -> 2027-06-30 | N29: 2028-06-30 | O29: 2029-06-30 | P29: 2030-06-30 | Q29: 2031-06-30 | R29: 2032-06-30 | S29: 2033-06-30 | T29: 2034-06-30 | U29: 2035-06-30 | V29: 2036-06-30 | W29: 2037-06-30 | X29: 2038-06-30 | Y29: 2039-06-30 | Z29: 2040-06-30 | AA29: 2041-06-30 | AB29: 2042-06-30 | AC29: 2043-06-30 | AD29: 2044-06-30 | AE29: 2045-06-30 | AF29: 2046-06-30 | AG29: 2047-06-30 | AH29: 2048-06-30 | AI29: 2049-06-30 | AJ29: 2050-06-30 | AK29: 2051-06-30 | AL29: 2052-06-30 | AM29: 2053-06-30 | AN29: 2054-06-30 | AO29: 2055-06-30 | AP29: 2056-06-30 | AQ29: 2057-06-30 | AR29: 2058-06-30 | AS29: 2059-06-30 | AT29: 2060-06-30 | AU29: 2061-06-30 | AV29: 2062-06-30 | AW29: 2063-06-30 | AX29: 2064-06-30 | AY29: 2065-06-30 | AZ29: 2066-06-30 | BA29: 2067-06-30 | BB29: 2068-06-30 | BC29: 2069-06-30 | BD29: 2070-06-30 | BE29: 2071-06-30 | BF29: 2072-06-30 | BG29: 2073-06-30
H30: ="Project Year" -> Project Year | J30: =COLUMNS($J30:J30) -> 1 | K30: =COLUMNS($J30:K30) -> 2 | L30: =COLUMNS($J30:L30) -> 3 | M30: =COLUMNS($J30:M30) -> 4 | N30: =COLUMNS($J30:N30) -> 5 | O30: =COLUMNS($J30:O30) -> 6 | P30: =COLUMNS($J30:P30) -> 7 | Q30: =COLUMNS($J30:Q30) -> 8 | R30: =COLUMNS($J30:R30) -> 9 | S30: =COLUMNS($J30:S30) -> 10 | T30: =COLUMNS($J30:T30) -> 11 | U30: =COLUMNS($J30:U30) -> 12 | V30: =COLUMNS($J30:V30) -> 13 | W30: =COLUMNS($J30:W30) -> 14 | X30: =COLUMNS($J30:X30) -> 15 | Y30: =COLUMNS($J30:Y30) -> 16 | Z30: =COLUMNS($J30:Z30) -> 17 | AA30: =COLUMNS($J30:AA30) -> 18 | AB30: =COLUMNS($J30:AB30) -> 19 | AC30: =COLUMNS($J30:AC30) -> 20 | AD30: =COLUMNS($J30:AD30) -> 21 | AE30: =COLUMNS($J30:AE30) -> 22 | AF30: =COLUMNS($J30:AF30) -> 23 | AG30: =COLUMNS($J30:AG30) -> 24 | AH30: =COLUMNS($J30:AH30) -> 25 | AI30: =COLUMNS($J30:AI30) -> 26 | AJ30: =COLUMNS($J30:AJ30) -> 27 | AK30: =COLUMNS($J30:AK30) -> 28 | AL30: =COLUMNS($J30:AL30) -> 29 | AM30: =COLUMNS($J30:AM30) -> 30 | AN30: =COLUMNS($J30:AN30) -> 31 | AO30: =COLUMNS($J30:AO30) -> 32 | AP30: =COLUMNS($J30:AP30) -> 33 | AQ30: =COLUMNS($J30:AQ30) -> 34 | AR30: =COLUMNS($J30:AR30) -> 35 | AS30: =COLUMNS($J30:AS30) -> 36 | AT30: =COLUMNS($J30:AT30) -> 37 | AU30: =COLUMNS($J30:AU30) -> 38 | AV30: =COLUMNS($J30:AV30) -> 39 | AW30: =COLUMNS($J30:AW30) -> 40 | AX30: =COLUMNS($J30:AX30) -> 41 | AY30: =COLUMNS($J30:AY30) -> 42 | AZ30: =COLUMNS($J30:AZ30) -> 43 | BA30: =COLUMNS($J30:BA30) -> 44 | BB30: =COLUMNS($J30:BB30) -> 45 | BC30: =COLUMNS($J30:BC30) -> 46 | BD30: =COLUMNS($J30:BD30) -> 47 | BE30: =COLUMNS($J30:BE30) -> 48 | BF30: =COLUMNS($J30:BF30) -> 49 | BG30: =COLUMNS($J30:BG30) -> 50
H31: Financial Year | J31: =YEAR(J29) -> 2024 | K31: =YEAR(K29) -> 2025 | L31: 2026 | M31: 2027 | N31: 2028 | O31: 2029 | P31: 2030 | Q31: 2031 | R31: 2032 | S31: 2033 | T31: 2034 | U31: 2035 | V31: 2036 | W31: 2037 | X31: 2038 | Y31: 2039 | Z31: 2040 | AA31: 2041 | AB31: 2042 | AC31: 2043 | AD31: 2044 | AE31: 2045 | AF31: 2046 | AG31: 2047 | AH31: 2048 | AI31: 2049 | AJ31: 2050 | AK31: 2051 | AL31: 2052 | AM31: 2053 | AN31: 2054 | AO31: 2055 | AP31: 2056 | AQ31: 2057 | AR31: 2058 | AS31: 2059 | AT31: 2060 | AU31: 2061 | AV31: 2062 | AW31: 2063 | AX31: 2064 | AY31: 2065 | AZ31: 2066 | BA31: 2067 | BB31: 2068 | BC31: 2069 | BD31: 2070 | BE31: 2071 | BF31: 2072 | BG31: 2073
H32: WACC | J32: 0.0556 | K32: =J32 -> 0.0556 | L32: =K32 -> 0.0556 | M32: 0.0556 | N32: 0.0556 | O32: 0.0556 | P32: 0.0556 | Q32: 0.0556 | R32: 0.0556 | S32: 0.0556 | T32: 0.0556 | U32: 0.0556 | V32: 0.0556 | W32: 0.0556 | X32: 0.0556 | Y32: 0.0556 | Z32: 0.0556 | AA32: 0.0556 | AB32: 0.0556 | AC32: 0.0556 | AD32: 0.0556 | AE32: 0.0556 | AF32: 0.0556 | AG32: 0.0556 | AH32: 0.0556 | AI32: 0.0556 | AJ32: 0.0556 | AK32: 0.0556 | AL32: 0.0556 | AM32: 0.0556 | AN32: 0.0556 | AO32: 0.0556 | AP32: 0.0556 | AQ32: 0.0556 | AR32: 0.0556 | AS32: 0.0556 | AT32: 0.0556 | AU32: 0.0556 | AV32: 0.0556 | AW32: 0.0556 | AX32: 0.0556 | AY32: 0.0556 | AZ32: 0.0556 | BA32: 0.0556 | BB32: 0.0556 | BC32: 0.0556 | BD32: 0.0556 | BE32: 0.0556 | BF32: 0.0556 | BG32: 0.0556

Sheet Analysis->
C6: Analysis
C7: Section 3.
C9: =Cover!$C$9 -> AusNet Services
C10: =Cover!$C$10 -> Business Case Evaluation
C11: =Cover!$C$11 -> Voltage Compliance

Sheet BaseCase_Analysis
B1: Analysis: Base Case
B2: =Cover!$C$9 -> AusNet Services
B3: =Cover!$C$10 -> Business Case Evaluation
B4: =Cover!$C$11 -> Voltage Compliance
B6: Regulatory Period Indicator | J6: =IF(AND(J$7>=General!$H$20,J$8<=General!$H$21),1,0) -> 0 | K6: =IF(AND(K$7>=General!$H$20,K$8<=General!$H$21),1,0) -> 0 | L6: =IF(AND(L$7>=General!$H$20,L$8<=General!$H$21),1,0) -> 0 | M6: =IF(AND(M$7>=General!$H$20,M$8<=General!$H$21),1,0) -> 1 | N6: =IF(AND(N$7>=General!$H$20,N$8<=General!$H$21),1,0) -> 1 | O6: =IF(AND(O$7>=General!$H$20,O$8<=General!$H$21),1,0) -> 1 | P6: =IF(AND(P$7>=General!$H$20,P$8<=General!$H$21),1,0) -> 1 | Q6: =IF(AND(Q$7>=General!$H$20,Q$8<=General!$H$21),1,0) -> 1 | R6: =IF(AND(R$7>=General!$H$20,R$8<=General!$H$21),1,0) -> 0 | S6: =IF(AND(S$7>=General!$H$20,S$8<=General!$H$21),1,0) -> 0 | T6: =IF(AND(T$7>=General!$H$20,T$8<=General!$H$21),1,0) -> 0 | U6: =IF(AND(U$7>=General!$H$20,U$8<=General!$H$21),1,0) -> 0 | V6: =IF(AND(V$7>=General!$H$20,V$8<=General!$H$21),1,0) -> 0 | W6: =IF(AND(W$7>=General!$H$20,W$8<=General!$H$21),1,0) -> 0 | X6: =IF(AND(X$7>=General!$H$20,X$8<=General!$H$21),1,0) -> 0 | Y6: =IF(AND(Y$7>=General!$H$20,Y$8<=General!$H$21),1,0) -> 0 | Z6: =IF(AND(Z$7>=General!$H$20,Z$8<=General!$H$21),1,0) -> 0 | AA6: =IF(AND(AA$7>=General!$H$20,AA$8<=General!$H$21),1,0) -> 0 | AB6: =IF(AND(AB$7>=General!$H$20,AB$8<=General!$H$21),1,0) -> 0 | AC6: =IF(AND(AC$7>=General!$H$20,AC$8<=General!$H$21),1,0) -> 0 | AD6: =IF(AND(AD$7>=General!$H$20,AD$8<=General!$H$21),1,0) -> 0 | AE6: =IF(AND(AE$7>=General!$H$20,AE$8<=General!$H$21),1,0) -> 0 | AF6: =IF(AND(AF$7>=General!$H$20,AF$8<=General!$H$21),1,0) -> 0 | AG6: =IF(AND(AG$7>=General!$H$20,AG$8<=General!$H$21),1,0) -> 0 | AH6: =IF(AND(AH$7>=General!$H$20,AH$8<=General!$H$21),1,0) -> 0 | AI6: =IF(AND(AI$7>=General!$H$20,AI$8<=General!$H$21),1,0) -> 0 | AJ6: =IF(AND(AJ$7>=General!$H$20,AJ$8<=General!$H$21),1,0) -> 0 | AK6: =IF(AND(AK$7>=General!$H$20,AK$8<=General!$H$21),1,0) -> 0 | AL6: =IF(AND(AL$7>=General!$H$20,AL$8<=General!$H$21),1,0) -> 0 | AM6: =IF(AND(AM$7>=General!$H$20,AM$8<=General!$H$21),1,0) -> 0 | AN6: =IF(AND(AN$7>=General!$H$20,AN$8<=General!$H$21),1,0) -> 0 | AO6: =IF(AND(AO$7>=General!$H$20,AO$8<=General!$H$21),1,0) -> 0 | AP6: =IF(AND(AP$7>=General!$H$20,AP$8<=General!$H$21),1,0) -> 0 | AQ6: =IF(AND(AQ$7>=General!$H$20,AQ$8<=General!$H$21),1,0) -> 0 | AR6: =IF(AND(AR$7>=General!$H$20,AR$8<=General!$H$21),1,0) -> 0 | AS6: =IF(AND(AS$7>=General!$H$20,AS$8<=General!$H$21),1,0) -> 0 | AT6: =IF(AND(AT$7>=General!$H$20,AT$8<=General!$H$21),1,0) -> 0 | AU6: =IF(AND(AU$7>=General!$H$20,AU$8<=General!$H$21),1,0) -> 0 | AV6: =IF(AND(AV$7>=General!$H$20,AV$8<=General!$H$21),1,0) -> 0 | AW6: =IF(AND(AW$7>=General!$H$20,AW$8<=General!$H$21),1,0) -> 0 | AX6: =IF(AND(AX$7>=General!$H$20,AX$8<=General!$H$21),1,0) -> 0 | AY6: =IF(AND(AY$7>=General!$H$20,AY$8<=General!$H$21),1,0) -> 0 | AZ6: =IF(AND(AZ$7>=General!$H$20,AZ$8<=General!$H$21),1,0) -> 0 | BA6: =IF(AND(BA$7>=General!$H$20,BA$8<=General!$H$21),1,0) -> 0 | BB6: =IF(AND(BB$7>=General!$H$20,BB$8<=General!$H$21),1,0) -> 0 | BC6: =IF(AND(BC$7>=General!$H$20,BC$8<=General!$H$21),1,0) -> 0 | BD6: =IF(AND(BD$7>=General!$H$20,BD$8<=General!$H$21),1,0) -> 0 | BE6: =IF(AND(BE$7>=General!$H$20,BE$8<=General!$H$21),1,0) -> 0 | BF6: =IF(AND(BF$7>=General!$H$20,BF$8<=General!$H$21),1,0) -> 0 | BG6: =IF(AND(BG$7>=General!$H$20,BG$8<=General!$H$21),1,0) -> 0
B7: Period Start Date | J7: =EDATE(General!$H$18,(J9-1)*12) -> 2023-07-01 | K7: =EDATE(General!$H$18,(K9-1)*12) -> 2024-07-01 | L7: =EDATE(General!$H$18,(L9-1)*12) -> 2025-07-01 | M7: =EDATE(General!$H$18,(M9-1)*12) -> 2026-07-01 | N7: =EDATE(General!$H$18,(N9-1)*12) -> 2027-07-01 | O7: =EDATE(General!$H$18,(O9-1)*12) -> 2028-07-01 | P7: =EDATE(General!$H$18,(P9-1)*12) -> 2029-07-01 | Q7: =EDATE(General!$H$18,(Q9-1)*12) -> 2030-07-01 | R7: =EDATE(General!$H$18,(R9-1)*12) -> 2031-07-01 | S7: =EDATE(General!$H$18,(S9-1)*12) -> 2032-07-01 | T7: =EDATE(General!$H$18,(T9-1)*12) -> 2033-07-01 | U7: =EDATE(General!$H$18,(U9-1)*12) -> 2034-07-01 | V7: =EDATE(General!$H$18,(V9-1)*12) -> 2035-07-01 | W7: =EDATE(General!$H$18,(W9-1)*12) -> 2036-07-01 | X7: =EDATE(General!$H$18,(X9-1)*12) -> 2037-07-01 | Y7: =EDATE(General!$H$18,(Y9-1)*12) -> 2038-07-01 | Z7: =EDATE(General!$H$18,(Z9-1)*12) -> 2039-07-01 | AA7: =EDATE(General!$H$18,(AA9-1)*12) -> 2040-07-01 | AB7: =EDATE(General!$H$18,(AB9-1)*12) -> 2041-07-01 | AC7: =EDATE(General!$H$18,(AC9-1)*12) -> 2042-07-01 | AD7: =EDATE(General!$H$18,(AD9-1)*12) -> 2043-07-01 | AE7: =EDATE(General!$H$18,(AE9-1)*12) -> 2044-07-01 | AF7: =EDATE(General!$H$18,(AF9-1)*12) -> 2045-07-01 | AG7: =EDATE(General!$H$18,(AG9-1)*12) -> 2046-07-01 | AH7: =EDATE(General!$H$18,(AH9-1)*12) -> 2047-07-01 | AI7: =EDATE(General!$H$18,(AI9-1)*12) -> 2048-07-01 | AJ7: =EDATE(General!$H$18,(AJ9-1)*12) -> 2049-07-01 | AK7: =EDATE(General!$H$18,(AK9-1)*12) -> 2050-07-01 | AL7: =EDATE(General!$H$18,(AL9-1)*12) -> 2051-07-01 | AM7: =EDATE(General!$H$18,(AM9-1)*12) -> 2052-07-01 | AN7: =EDATE(General!$H$18,(AN9-1)*12) -> 2053-07-01 | AO7: =EDATE(General!$H$18,(AO9-1)*12) -> 2054-07-01 | AP7: =EDATE(General!$H$18,(AP9-1)*12) -> 2055-07-01 | AQ7: =EDATE(General!$H$18,(AQ9-1)*12) -> 2056-07-01 | AR7: =EDATE(General!$H$18,(AR9-1)*12) -> 2057-07-01 | AS7: =EDATE(General!$H$18,(AS9-1)*12) -> 2058-07-01 | AT7: =EDATE(General!$H$18,(AT9-1)*12) -> 2059-07-01 | AU7: =EDATE(General!$H$18,(AU9-1)*12) -> 2060-07-01 | AV7: =EDATE(General!$H$18,(AV9-1)*12) -> 2061-07-01 | AW7: =EDATE(General!$H$18,(AW9-1)*12) -> 2062-07-01 | AX7: =EDATE(General!$H$18,(AX9-1)*12) -> 2063-07-01 | AY7: =EDATE(General!$H$18,(AY9-1)*12) -> 2064-07-01 | AZ7: =EDATE(General!$H$18,(AZ9-1)*12) -> 2065-07-01 | BA7: =EDATE(General!$H$18,(BA9-1)*12) -> 2066-07-01 | BB7: =EDATE(General!$H$18,(BB9-1)*12) -> 2067-07-01 | BC7: =EDATE(General!$H$18,(BC9-1)*12) -> 2068-07-01 | BD7: =EDATE(General!$H$18,(BD9-1)*12) -> 2069-07-01 | BE7: =EDATE(General!$H$18,(BE9-1)*12) -> 2070-07-01 | BF7: =EDATE(General!$H$18,(BF9-1)*12) -> 2071-07-01 | BG7: =EDATE(General!$H$18,(BG9-1)*12) -> 2072-07-01
B8: Period End Date | J8: =EDATE(J7,12)-1 -> 2024-06-30 | K8: =EDATE(K7,12)-1 -> 2025-06-30 | L8: 2026-06-30 | M8: 2027-06-30 | N8: 2028-06-30 | O8: 2029-06-30 | P8: 2030-06-30 | Q8: 2031-06-30 | R8: 2032-06-30 | S8: 2033-06-30 | T8: 2034-06-30 | U8: 2035-06-30 | V8: 2036-06-30 | W8: 2037-06-30 | X8: 2038-06-30 | Y8: 2039-06-30 | Z8: 2040-06-30 | AA8: 2041-06-30 | AB8: 2042-06-30 | AC8: 2043-06-30 | AD8: 2044-06-30 | AE8: 2045-06-30 | AF8: 2046-06-30 | AG8: 2047-06-30 | AH8: 2048-06-30 | AI8: 2049-06-30 | AJ8: 2050-06-30 | AK8: 2051-06-30 | AL8: 2052-06-30 | AM8: 2053-06-30 | AN8: 2054-06-30 | AO8: 2055-06-30 | AP8: 2056-06-30 | AQ8: 2057-06-30 | AR8: 2058-06-30 | AS8: 2059-06-30 | AT8: 2060-06-30 | AU8: 2061-06-30 | AV8: 2062-06-30 | AW8: 2063-06-30 | AX8: 2064-06-30 | AY8: 2065-06-30 | AZ8: 2066-06-30 | BA8: 2067-06-30 | BB8: 2068-06-30 | BC8: 2069-06-30 | BD8: 2070-06-30 | BE8: 2071-06-30 | BF8: 2072-06-30 | BG8: 2073-06-30
B9: ="Project Year" -> Project Year | J9: =COLUMNS($J9:J9) -> 1 | K9: =COLUMNS($J9:K9) -> 2 | L9: =COLUMNS($J9:L9) -> 3 | M9: =COLUMNS($J9:M9) -> 4 | N9: =COLUMNS($J9:N9) -> 5 | O9: =COLUMNS($J9:O9) -> 6 | P9: =COLUMNS($J9:P9) -> 7 | Q9: =COLUMNS($J9:Q9) -> 8 | R9: =COLUMNS($J9:R9) -> 9 | S9: =COLUMNS($J9:S9) -> 10 | T9: =COLUMNS($J9:T9) -> 11 | U9: =COLUMNS($J9:U9) -> 12 | V9: =COLUMNS($J9:V9) -> 13 | W9: =COLUMNS($J9:W9) -> 14 | X9: =COLUMNS($J9:X9) -> 15 | Y9: =COLUMNS($J9:Y9) -> 16 | Z9: =COLUMNS($J9:Z9) -> 17 | AA9: =COLUMNS($J9:AA9) -> 18 | AB9: =COLUMNS($J9:AB9) -> 19 | AC9: =COLUMNS($J9:AC9) -> 20 | AD9: =COLUMNS($J9:AD9) -> 21 | AE9: =COLUMNS($J9:AE9) -> 22 | AF9: =COLUMNS($J9:AF9) -> 23 | AG9: =COLUMNS($J9:AG9) -> 24 | AH9: =COLUMNS($J9:AH9) -> 25 | AI9: =COLUMNS($J9:AI9) -> 26 | AJ9: =COLUMNS($J9:AJ9) -> 27 | AK9: =COLUMNS($J9:AK9) -> 28 | AL9: =COLUMNS($J9:AL9) -> 29 | AM9: =COLUMNS($J9:AM9) -> 30 | AN9: =COLUMNS($J9:AN9) -> 31 | AO9: =COLUMNS($J9:AO9) -> 32 | AP9: =COLUMNS($J9:AP9) -> 33 | AQ9: =COLUMNS($J9:AQ9) -> 34 | AR9: =COLUMNS($J9:AR9) -> 35 | AS9: =COLUMNS($J9:AS9) -> 36 | AT9: =COLUMNS($J9:AT9) -> 37 | AU9: =COLUMNS($J9:AU9) -> 38 | AV9: =COLUMNS($J9:AV9) -> 39 | AW9: =COLUMNS($J9:AW9) -> 40 | AX9: =COLUMNS($J9:AX9) -> 41 | AY9: =COLUMNS($J9:AY9) -> 42 | AZ9: =COLUMNS($J9:AZ9) -> 43 | BA9: =COLUMNS($J9:BA9) -> 44 | BB9: =COLUMNS($J9:BB9) -> 45 | BC9: =COLUMNS($J9:BC9) -> 46 | BD9: =COLUMNS($J9:BD9) -> 47 | BE9: =COLUMNS($J9:BE9) -> 48 | BF9: =COLUMNS($J9:BF9) -> 49 | BG9: =COLUMNS($J9:BG9) -> 50
B10: Financial Year | J10: =YEAR(J8) -> 2024 | K10: =YEAR(K8) -> 2025 | L10: 2026 | M10: 2027 | N10: 2028 | O10: 2029 | P10: 2030 | Q10: 2031 | R10: 2032 | S10: 2033 | T10: 2034 | U10: 2035 | V10: 2036 | W10: 2037 | X10: 2038 | Y10: 2039 | Z10: 2040 | AA10: 2041 | AB10: 2042 | AC10: 2043 | AD10: 2044 | AE10: 2045 | AF10: 2046 | AG10: 2047 | AH10: 2048 | AI10: 2049 | AJ10: 2050 | AK10: 2051 | AL10: 2052 | AM10: 2053 | AN10: 2054 | AO10: 2055 | AP10: 2056 | AQ10: 2057 | AR10: 2058 | AS10: 2059 | AT10: 2060 | AU10: 2061 | AV10: 2062 | AW10: 2063 | AX10: 2064 | AY10: 2065 | AZ10: 2066 | BA10: 2067 | BB10: 2068 | BC10: 2069 | BD10: 2070 | BE10: 2071 | BF10: 2072 | BG10: 2073
B11: CPI index | J11: 1 | K11: =J11*(1+IF(OR(ISBLANK(VLOOKUP(DATE(YEAR(K8),MONTH(K8),1),CPI_Con_F!$D$18:$G$67,4,FALSE)),ISERROR(VLOOKUP(DATE(YEAR(K8),MONTH(K8),1),CPI_Con_F!$D$18:$G$67,4,FALSE))),General!$H$24,VLOOKUP(DATE(YEAR(K8),MONTH(K8),1),CPI_Con_F!$D$18:$G$67,4,FALSE))) -> 1.03 | L11: =K11*(1+IF(OR(ISBLANK(VLOOKUP(DATE(YEAR(L8),MONTH(L8),1),CPI_Con_F!$D$18:$G$67,4,FALSE)),ISERROR(VLOOKUP(DATE(YEAR(L8),MONTH(L8),1),CPI_Con_F!$D$18:$G$67,4,FALSE))),General!$H$24,VLOOKUP(DATE(YEAR(L8),MONTH(L8),1),CPI_Con_F!$D$18:$G$67,4,FALSE))) -> 1.05575 | M11: =L11*(1+IF(OR(ISBLANK(VLOOKUP(DATE(YEAR(M8),MONTH(M8),1),CPI_Con_F!$D$18:$G$67,4,FALSE)),ISERROR(VLOOKUP(DATE(YEAR(M8),MONTH(M8),1),CPI_Con_F!$D$18:$G$67,4,FALSE))),General!$H$24,VLOOKUP(DATE(YEAR(M8),MONTH(M8),1),CPI_Con_F!$D$18:$G$67,4,FALSE))) -> 1.08214375 | N11: =M11*(1+IF(OR(ISBLANK(VLOOKUP(DATE(YEAR(N8),MONTH(N8),1),CPI_Con_F!$D$18:$G$67,4,FALSE)),ISERROR(VLOOKUP(DATE(YEAR(N8),MONTH(N8),1),CPI_Con_F!$D$18:$G$67,4,FALSE))),General!$H$24,VLOOKUP(DATE(YEAR(N8),MONTH(N8),1),CPI_Con_F!$D$18:$G$67,4,FALSE))) -> 1.109197344 | O11: =N11*(1+IF(OR(ISBLANK(VLOOKUP(DATE(YEAR(O8),MONTH(O8),1),CPI_Con_F!$D$18:$G$67,4,FALSE)),ISERROR(VLOOKUP(DATE(YEAR(O8),MONTH(O8),1),CPI_Con_F!$D$18:$G$67,4,FALSE))),General!$H$24,VLOOKUP(DATE(YEAR(O8),MONTH(O8),1),CPI_Con_F!$D$18:$G$67,4,FALSE))) -> 1.136927277 | P11: =O11*(1+IF(OR(ISBLANK(VLOOKUP(DATE(YEAR(P8),MONTH(P8),1),CPI_Con_F!$D$18:$G$67,4,FALSE)),ISERROR(VLOOKUP(DATE(YEAR(P8),MONTH(P8),1),CPI_Con_F!$D$18:$G$67,4,FALSE))),General!$H$24,VLOOKUP(DATE(YEAR(P8),MONTH(P8),1),CPI_Con_F!$D$18:$G$67,4,FALSE))) -> 1.165350459 | Q11: =P11*(1+IF(OR(ISBLANK(VLOOKUP(DATE(YEAR(Q8),MONTH(Q8),1),CPI_Con_F!$D$18:$G$67,4,FALSE)),ISERROR(VLOOKUP(DATE(YEAR(Q8),MONTH(Q8),1),CPI_Con_F!$D$18:$G$67,4,FALSE))),General!$H$24,VLOOKUP(DATE(YEAR(Q8),MONTH(Q8),1),CPI_Con_F!$D$18:$G$67,4,FALSE))) -> 1.194484221 | R11: =Q11*(1+IF(OR(ISBLANK(VLOOKUP(DATE(YEAR(R8),MONTH(R8),1),CPI_Con_F!$D$18:$G$67,4,FALSE)),ISERROR(VLOOKUP(DATE(YEAR(R8),MONTH(R8),1),CPI_Con_F!$D$18:$G$67,4,FALSE))),General!$H$24,VLOOKUP(DATE(YEAR(R8),MONTH(R8),1),CPI_Con_F!$D$18:$G$67,4,FALSE))) -> 1.224346326 | S11: =R11*(1+IF(OR(ISBLANK(VLOOKUP(DATE(YEAR(S8),MONTH(S8),1),CPI_Con_F!$D$18:$G$67,4,FALSE)),ISERROR(VLOOKUP(DATE(YEAR(S8),MONTH(S8),1),CPI_Con_F!$D$18:$G$67,4,FALSE))),General!$H$24,VLOOKUP(DATE(YEAR(S8),MONTH(S8),1),CPI_Con_F!$D$18:$G$67,4,FALSE))) -> 1.254954984 | T11: =S11*(1+IF(OR(ISBLANK(VLOOKUP(DATE(YEAR(T8),MONTH(T8),1),CPI_Con_F!$D$18:$G$67,4,FALSE)),ISERROR(VLOOKUP(DATE(YEAR(T8),MONTH(T8),1),CPI_Con_F!$D$18:$G$67,4,FALSE))),General!$H$24,VLOOKUP(DATE(YEAR(T8),MONTH(T8),1),CPI_Con_F!$D$18:$G$67,4,FALSE))) -> 1.286328859 | U11: =T11*(1+IF(OR(ISBLANK(VLOOKUP(DATE(YEAR(U8),MONTH(U8),1),CPI_Con_F!$D$18:$G$67,4,FALSE)),ISERROR(VLOOKUP(DATE(YEAR(U8),MONTH(U8),1),CPI_Con_F!$D$18:$G$67,4,FALSE))),General!$H$24,VLOOKUP(DATE(YEAR(U8),MONTH(U8),1),CPI_Con_F!$D$18:$G$67,4,FALSE))) -> 1.318487081 | V11: =U11*(1+IF(OR(ISBLANK(VLOOKUP(DATE(YEAR(V8),MONTH(V8),1),CPI_Con_F!$D$18:$G$67,4,FALSE)),ISERROR(VLOOKUP(DATE(YEAR(V8),MONTH(V8),1),CPI_Con_F!$D$18:$G$67,4,FALSE))),General!$H$24,VLOOKUP(DATE(YEAR(V8),MONTH(V8),1),CPI_Con_F!$D$18:$G$67,4,FALSE))) -> 1.351449258 | W11: =V11*(1+IF(OR(ISBLANK(VLOOKUP(DATE(YEAR(W8),MONTH(W8),1),CPI_Con_F!$D$18:$G$67,4,FALSE)),ISERROR(VLOOKUP(DATE(YEAR(W8),MONTH(W8),1),CPI_Con_F!$D$18:$G$67,4,FALSE))),General!$H$24,VLOOKUP(DATE(YEAR(W8),MONTH(W8),1),CPI_Con_F!$D$18:$G$67,4,FALSE))) -> 1.385235489 | X11: =W11*(1+IF(OR(ISBLANK(VLOOKUP(DATE(YEAR(X8),MONTH(X8),1),CPI_Con_F!$D$18:$G$67,4,FALSE)),ISERROR(VLOOKUP(DATE(YEAR(X8),MONTH(X8),1),CPI_Con_F!$D$18:$G$67,4,FALSE))),General!$H$24,VLOOKUP(DATE(YEAR(X8),MONTH(X8),1),CPI_Con_F!$D$18:$G$67,4,FALSE))) -> 1.419866376 | Y11: =X11*(1+IF(OR(ISBLANK(VLOOKUP(DATE(YEAR(Y8),MONTH(Y8),1),CPI_Con_F!$D$18:$G$67,4,FALSE)),ISERROR(VLOOKUP(DATE(YEAR(Y8),MONTH(Y8),1),CPI_Con_F!$D$18:$G$67,4,FALSE))),General!$H$24,VLOOKUP(DATE(YEAR(Y8),MONTH(Y8),1),CPI_Con_F!$D$18:$G$67,4,FALSE))) -> 1.455363036 | Z11: =Y11*(1+IF(OR(ISBLANK(VLOOKUP(DATE(YEAR(Z8),MONTH(Z8),1),CPI_Con_F!$D$18:$G$67,4,FALSE)),ISERROR(VLOOKUP(DATE(YEAR(Z8),MONTH(Z8),1),CPI_Con_F!$D$18:$G$67,4,FALSE))),General!$H$24,VLOOKUP(DATE(YEAR(Z8),MONTH(Z8),1),CPI_Con_F!$D$18:$G$67,4,FALSE))) -> 1.491747111 | AA11: =Z11*(1+IF(OR(ISBLANK(VLOOKUP(DATE(YEAR(AA8),MONTH(AA8),1),CPI_Con_F!$D$18:$G$67,4,FALSE)),ISERROR(VLOOKUP(DATE(YEAR(AA8),MONTH(AA8),1),CPI_Con_F!$D$18:$G$67,4,FALSE))),General!$H$24,VLOOKUP(DATE(YEAR(AA8),MONTH(AA8),1),CPI_Con_F!$D$18:$G$67,4,FALSE))) -> 1.529040789 | AB11: =AA11*(1+IF(OR(ISBLANK(VLOOKUP(DATE(YEAR(AB8),MONTH(AB8),1),CPI_Con_F!$D$18:$G$67,4,FALSE)),ISERROR(VLOOKUP(DATE(YEAR(AB8),MONTH(AB8),1),CPI_Con_F!$D$18:$G$67,4,FALSE))),General!$H$24,VLOOKUP(DATE(YEAR(AB8),MONTH(AB8),1),CPI_Con_F!$D$18:$G$67,4,FALSE))) -> 1.567266809 | AC11: =AB11*(1+IF(OR(ISBLANK(VLOOKUP(DATE(YEAR(AC8),MONTH(AC8),1),CPI_Con_F!$D$18:$G$67,4,FALSE)),ISERROR(VLOOKUP(DATE(YEAR(AC8),MONTH(AC8),1),CPI_Con_F!$D$18:$G$67,4,FALSE))),General!$H$24,VLOOKUP(DATE(YEAR(AC8),MONTH(AC8),1),CPI_Con_F!$D$18:$G$67,4,FALSE))) -> 1.606448479 | AD11: =AC11*(1+IF(OR(ISBLANK(VLOOKUP(DATE(YEAR(AD8),MONTH(AD8),1),CPI_Con_F!$D$18:$G$67,4,FALSE)),ISERROR(VLOOKUP(DATE(YEAR(AD8),MONTH(AD8),1),CPI_Con_F!$D$18:$G$67,4,FALSE))),General!$H$24,VLOOKUP(DATE(YEAR(AD8),MONTH(AD8),1),CPI_Con_F!$D$18:$G$67,4,FALSE))) -> 1.646609691 | AE11: =AD11*(1+IF(OR(ISBLANK(VLOOKUP(DATE(YEAR(AE8),MONTH(AE8),1),CPI_Con_F!$D$18:$G$67,4,FALSE)),ISERROR(VLOOKUP(DATE(YEAR(AE8),MONTH(AE8),1),CPI_Con_F!$D$18:$G$67,4,FALSE))),General!$H$24,VLOOKUP(DATE(YEAR(AE8),MONTH(AE8),1),CPI_Con_F!$D$18:$G$67,4,FALSE))) -> 1.687774933 | AF11: =AE11*(1+IF(OR(ISBLANK(VLOOKUP(DATE(YEAR(AF8),MONTH(AF8),1),CPI_Con_F!$D$18:$G$67,4,FALSE)),ISERROR(VLOOKUP(DATE(YEAR(AF8),MONTH(AF8),1),CPI_Con_F!$D$18:$G$67,4,FALSE))),General!$H$24,VLOOKUP(DATE(YEAR(AF8),MONTH(AF8),1),CPI_Con_F!$D$18:$G$67,4,FALSE))) -> 1.729969307 | AG11: =AF11*(1+IF(OR(ISBLANK(VLOOKUP(DATE(YEAR(AG8),MONTH(AG8),1),CPI_Con_F!$D$18:$G$67,4,FALSE)),ISERROR(VLOOKUP(DATE(YEAR(AG8),MONTH(AG8),1),CPI_Con_F!$D$18:$G$67,4,FALSE))),General!$H$24,VLOOKUP(DATE(YEAR(AG8),MONTH(AG8),1),CPI_Con_F!$D$18:$G$67,4,FALSE))) -> 1.77321854 | AH11: =AG11*(1+IF(OR(ISBLANK(VLOOKUP(DATE(YEAR(AH8),MONTH(AH8),1),CPI_Con_F!$D$18:$G$67,4,FALSE)),ISERROR(VLOOKUP(DATE(YEAR(AH8),MONTH(AH8),1),CPI_Con_F!$D$18:$G$67,4,FALSE))),General!$H$24,VLOOKUP(DATE(YEAR(AH8),MONTH(AH8),1),CPI_Con_F!$D$18:$G$67,4,FALSE))) -> 1.817549003 | AI11: =AH11*(1+IF(OR(ISBLANK(VLOOKUP(DATE(YEAR(AI8),MONTH(AI8),1),CPI_Con_F!$D$18:$G$67,4,FALSE)),ISERROR(VLOOKUP(DATE(YEAR(AI8),MONTH(AI8),1),CPI_Con_F!$D$18:$G$67,4,FALSE))),General!$H$24,VLOOKUP(DATE(YEAR(AI8),MONTH(AI8),1),CPI_Con_F!$D$18:$G$67,4,FALSE))) -> 1.862987728 | AJ11: =AI11*(1+IF(OR(ISBLANK(VLOOKUP(DATE(YEAR(AJ8),MONTH(AJ8),1),CPI_Con_F!$D$18:$G$67,4,FALSE)),ISERROR(VLOOKUP(DATE(YEAR(AJ8),MONTH(AJ8),1),CPI_Con_F!$D$18:$G$67,4,FALSE))),General!$H$24,VLOOKUP(DATE(YEAR(AJ8),MONTH(AJ8),1),CPI_Con_F!$D$18:$G$67,4,FALSE))) -> 1.909562421 | AK11: =AJ11*(1+IF(OR(ISBLANK(VLOOKUP(DATE(YEAR(AK8),MONTH(AK8),1),CPI_Con_F!$D$18:$G$67,4,FALSE)),ISERROR(VLOOKUP(DATE(YEAR(AK8),MONTH(AK8),1),CPI_Con_F!$D$18:$G$67,4,FALSE))),General!$H$24,VLOOKUP(DATE(YEAR(AK8),MONTH(AK8),1),CPI_Con_F!$D$18:$G$67,4,FALSE))) -> 1.957301482 | AL11: =AK11*(1+IF(OR(ISBLANK(VLOOKUP(DATE(YEAR(AL8),MONTH(AL8),1),CPI_Con_F!$D$18:$G$67,4,FALSE)),ISERROR(VLOOKUP(DATE(YEAR(AL8),MONTH(AL8),1),CPI_Con_F!$D$18:$G$67,4,FALSE))),General!$H$24,VLOOKUP(DATE(YEAR(AL8),MONTH(AL8),1),CPI_Con_F!$D$18:$G$67,4,FALSE))) -> 2.006234019 | AM11: =AL11*(1+IF(OR(ISBLANK(VLOOKUP(DATE(YEAR(AM8),MONTH(AM8),1),CPI_Con_F!$D$18:$G$67,4,FALSE)),ISERROR(VLOOKUP(DATE(YEAR(AM8),MONTH(AM8),1),CPI_Con_F!$D$18:$G$67,4,FALSE))),General!$H$24,VLOOKUP(DATE(YEAR(AM8),MONTH(AM8),1),CPI_Con_F!$D$18:$G$67,4,FALSE))) -> 2.056389869 | AN11: =AM11*(1+IF(OR(ISBLANK(VLOOKUP(DATE(YEAR(AN8),MONTH(AN8),1),CPI_Con_F!$D$18:$G$67,4,FALSE)),ISERROR(VLOOKUP(DATE(YEAR(AN8),MONTH(AN8),1),CPI_Con_F!$D$18:$G$67,4,FALSE))),General!$H$24,VLOOKUP(DATE(YEAR(AN8),MONTH(AN8),1),CPI_Con_F!$D$18:$G$67,4,FALSE))) -> 2.107799616 | AO11: =AN11*(1+IF(OR(ISBLANK(VLOOKUP(DATE(YEAR(AO8),MONTH(AO8),1),CPI_Con_F!$D$18:$G$67,4,FALSE)),ISERROR(VLOOKUP(DATE(YEAR(AO8),MONTH(AO8),1),CPI_Con_F!$D$18:$G$67,4,FALSE))),General!$H$24,VLOOKUP(DATE(YEAR(AO8),MONTH(AO8),1),CPI_Con_F!$D$18:$G$67,4,FALSE))) -> 2.160494606 | AP11: =AO11*(1+IF(OR(ISBLANK(VLOOKUP(DATE(YEAR(AP8),MONTH(AP8),1),CPI_Con_F!$D$18:$G$67,4,FALSE)),ISERROR(VLOOKUP(DATE(YEAR(AP8),MONTH(AP8),1),CPI_Con_F!$D$18:$G$67,4,FALSE))),General!$H$24,VLOOKUP(DATE(YEAR(AP8),MONTH(AP8),1),CPI_Con_F!$D$18:$G$67,4,FALSE))) -> 2.214506972 | AQ11: =AP11*(1+IF(OR(ISBLANK(VLOOKUP(DATE(YEAR(AQ8),MONTH(AQ8),1),CPI_Con_F!$D$18:$G$67,4,FALSE)),ISERROR(VLOOKUP(DATE(YEAR(AQ8),MONTH(AQ8),1),CPI_Con_F!$D$18:$G$67,4,FALSE))),General!$H$24,VLOOKUP(DATE(YEAR(AQ8),MONTH(AQ8),1),CPI_Con_F!$D$18:$G$67,4,FALSE))) -> 2.269869646 | AR11: =AQ11*(1+IF(OR(ISBLANK(VLOOKUP(DATE(YEAR(AR8),MONTH(AR8),1),CPI_Con_F!$D$18:$G$67,4,FALSE)),ISERROR(VLOOKUP(DATE(YEAR(AR8),MONTH(AR8),1),CPI_Con_F!$D$18:$G$67,4,FALSE))),General!$H$24,VLOOKUP(DATE(YEAR(AR8),MONTH(AR8),1),CPI_Con_F!$D$18:$G$67,4,FALSE))) -> 2.326616387 | AS11: =AR11*(1+IF(OR(ISBLANK(VLOOKUP(DATE(YEAR(AS8),MONTH(AS8),1),CPI_Con_F!$D$18:$G$67,4,FALSE)),ISERROR(VLOOKUP(DATE(YEAR(AS8),MONTH(AS8),1),CPI_Con_F!$D$18:$G$67,4,FALSE))),General!$H$24,VLOOKUP(DATE(YEAR(AS8),MONTH(AS8),1),CPI_Con_F!$D$18:$G$67,4,FALSE))) -> 2.384781797 | AT11: =AS11*(1+IF(OR(ISBLANK(VLOOKUP(DATE(YEAR(AT8),MONTH(AT8),1),CPI_Con_F!$D$18:$G$67,4,FALSE)),ISERROR(VLOOKUP(DATE(YEAR(AT8),MONTH(AT8),1),CPI_Con_F!$D$18:$G$67,4,FALSE))),General!$H$24,VLOOKUP(DATE(YEAR(AT8),MONTH(AT8),1),CPI_Con_F!$D$18:$G$67,4,FALSE))) -> 2.444401342 | AU11: =AT11*(1+IF(OR(ISBLANK(VLOOKUP(DATE(YEAR(AU8),MONTH(AU8),1),CPI_Con_F!$D$18:$G$67,4,FALSE)),ISERROR(VLOOKUP(DATE(YEAR(AU8),MONTH(AU8),1),CPI_Con_F!$D$18:$G$67,4,FALSE))),General!$H$24,VLOOKUP(DATE(YEAR(AU8),MONTH(AU8),1),CPI_Con_F!$D$18:$G$67,4,FALSE))) -> 2.505511375 | AV11: =AU11*(1+IF(OR(ISBLANK(VLOOKUP(DATE(YEAR(AV8),MONTH(AV8),1),CPI_Con_F!$D$18:$G$67,4,FALSE)),ISERROR(VLOOKUP(DATE(YEAR(AV8),MONTH(AV8),1),CPI_Con_F!$D$18:$G$67,4,FALSE))),General!$H$24,VLOOKUP(DATE(YEAR(AV8),MONTH(AV8),1),CPI_Con_F!$D$18:$G$67,4,FALSE))) -> 2.56814916 | AW11: =AV11*(1+IF(OR(ISBLANK(VLOOKUP(DATE(YEAR(AW8),MONTH(AW8),1),CPI_Con_F!$D$18:$G$67,4,FALSE)),ISERROR(VLOOKUP(DATE(YEAR(AW8),MONTH(AW8),1),CPI_Con_F!$D$18:$G$67,4,FALSE))),General!$H$24,VLOOKUP(DATE(YEAR(AW8),MONTH(AW8),1),CPI_Con_F!$D$18:$G$67,4,FALSE))) -> 2.632352889 | AX11: =AW11*(1+IF(OR(ISBLANK(VLOOKUP(DATE(YEAR(AX8),MONTH(AX8),1),CPI_Con_F!$D$18:$G$67,4,FALSE)),ISERROR(VLOOKUP(DATE(YEAR(AX8),MONTH(AX8),1),CPI_Con_F!$D$18:$G$67,4,FALSE))),General!$H$24,VLOOKUP(DATE(YEAR(AX8),MONTH(AX8),1),CPI_Con_F!$D$18:$G$67,4,FALSE))) -> 2.698161711 | AY11: =AX11*(1+IF(OR(ISBLANK(VLOOKUP(DATE(YEAR(AY8),MONTH(AY8),1),CPI_Con_F!$D$18:$G$67,4,FALSE)),ISERROR(VLOOKUP(DATE(YEAR(AY8),MONTH(AY8),1),CPI_Con_F!$D$18:$G$67,4,FALSE))),General!$H$24,VLOOKUP(DATE(YEAR(AY8),MONTH(AY8),1),CPI_Con_F!$D$18:$G$67,4,FALSE))) -> 2.765615754 | AZ11: =AY11*(1+IF(OR(ISBLANK(VLOOKUP(DATE(YEAR(AZ8),MONTH(AZ8),1),CPI_Con_F!$D$18:$G$67,4,FALSE)),ISERROR(VLOOKUP(DATE(YEAR(AZ8),MONTH(AZ8),1),CPI_Con_F!$D$18:$G$67,4,FALSE))),General!$H$24,VLOOKUP(DATE(YEAR(AZ8),MONTH(AZ8),1),CPI_Con_F!$D$18:$G$67,4,FALSE))) -> 2.834756147 | BA11: =AZ11*(1+IF(OR(ISBLANK(VLOOKUP(DATE(YEAR(BA8),MONTH(BA8),1),CPI_Con_F!$D$18:$G$67,4,FALSE)),ISERROR(VLOOKUP(DATE(YEAR(BA8),MONTH(BA8),1),CPI_Con_F!$D$18:$G$67,4,FALSE))),General!$H$24,VLOOKUP(DATE(YEAR(BA8),MONTH(BA8),1),CPI_Con_F!$D$18:$G$67,4,FALSE))) -> 2.905625051 | BB11: =BA11*(1+IF(OR(ISBLANK(VLOOKUP(DATE(YEAR(BB8),MONTH(BB8),1),CPI_Con_F!$D$18:$G$67,4,FALSE)),ISERROR(VLOOKUP(DATE(YEAR(BB8),MONTH(BB8),1),CPI_Con_F!$D$18:$G$67,4,FALSE))),General!$H$24,VLOOKUP(DATE(YEAR(BB8),MONTH(BB8),1),CPI_Con_F!$D$18:$G$67,4,FALSE))) -> 2.978265677 | BC11: =BB11*(1+IF(OR(ISBLANK(VLOOKUP(DATE(YEAR(BC8),MONTH(BC8),1),CPI_Con_F!$D$18:$G$67,4,FALSE)),ISERROR(VLOOKUP(DATE(YEAR(BC8),MONTH(BC8),1),CPI_Con_F!$D$18:$G$67,4,FALSE))),General!$H$24,VLOOKUP(DATE(YEAR(BC8),MONTH(BC8),1),CPI_Con_F!$D$18:$G$67,4,FALSE))) -> 3.052722319 | BD11: =BC11*(1+IF(OR(ISBLANK(VLOOKUP(DATE(YEAR(BD8),MONTH(BD8),1),CPI_Con_F!$D$18:$G$67,4,FALSE)),ISERROR(VLOOKUP(DATE(YEAR(BD8),MONTH(BD8),1),CPI_Con_F!$D$18:$G$67,4,FALSE))),General!$H$24,VLOOKUP(DATE(YEAR(BD8),MONTH(BD8),1),CPI_Con_F!$D$18:$G$67,4,FALSE))) -> 3.129040377 | BE11: =BD11*(1+IF(OR(ISBLANK(VLOOKUP(DATE(YEAR(BE8),MONTH(BE8),1),CPI_Con_F!$D$18:$G$67,4,FALSE)),ISERROR(VLOOKUP(DATE(YEAR(BE8),MONTH(BE8),1),CPI_Con_F!$D$18:$G$67,4,FALSE))),General!$H$24,VLOOKUP(DATE(YEAR(BE8),MONTH(BE8),1),CPI_Con_F!$D$18:$G$67,4,FALSE))) -> 3.207266387 | BF11: =BE11*(1+IF(OR(ISBLANK(VLOOKUP(DATE(YEAR(BF8),MONTH(BF8),1),CPI_Con_F!$D$18:$G$67,4,FALSE)),ISERROR(VLOOKUP(DATE(YEAR(BF8),MONTH(BF8),1),CPI_Con_F!$D$18:$G$67,4,FALSE))),General!$H$24,VLOOKUP(DATE(YEAR(BF8),MONTH(BF8),1),CPI_Con_F!$D$18:$G$67,4,FALSE))) -> 3.287448046 | BG11: =BF11*(1+IF(OR(ISBLANK(VLOOKUP(DATE(YEAR(BG8),MONTH(BG8),1),CPI_Con_F!$D$18:$G$67,4,FALSE)),ISERROR(VLOOKUP(DATE(YEAR(BG8),MONTH(BG8),1),CPI_Con_F!$D$18:$G$67,4,FALSE))),General!$H$24,VLOOKUP(DATE(YEAR(BG8),MONTH(BG8),1),CPI_Con_F!$D$18:$G$67,4,FALSE))) -> 3.369634248
B12: CPI Index (lagged) | J12: =IF(J9=1,1,I11) -> 1 | K12: 1 | L12: 1.03 | M12: 1.05575 | N12: 1.08214375 | O12: 1.109197344 | P12: 1.136927277 | Q12: 1.165350459 | R12: 1.194484221 | S12: 1.224346326 | T12: 1.254954984 | U12: 1.286328859 | V12: 1.318487081 | W12: 1.351449258 | X12: 1.385235489 | Y12: 1.419866376 | Z12: 1.455363036 | AA12: 1.491747111 | AB12: 1.529040789 | AC12: 1.567266809 | AD12: 1.606448479 | AE12: 1.646609691 | AF12: 1.687774933 | AG12: 1.729969307 | AH12: 1.77321854 | AI12: 1.817549003 | AJ12: 1.862987728 | AK12: 1.909562421 | AL12: 1.957301482 | AM12: 2.006234019 | AN12: 2.056389869 | AO12: 2.107799616 | AP12: =IF(AP9=1,1,AO11) -> 2.160494606 | AQ12: 2.214506972 | AR12: 2.269869646 | AS12: 2.326616387 | AT12: 2.384781797 | AU12: 2.444401342 | AV12: 2.505511375 | AW12: 2.56814916 | AX12: 2.632352889 | AY12: 2.698161711 | AZ12: 2.765615754 | BA12: 2.834756147 | BB12: 2.905625051 | BC12: 2.978265677 | BD12: 3.052722319 | BE12: 3.129040377 | BF12: 3.207266387 | BG12: 3.287448046
B13: Discount Index (pre tax) | J13: =(1+General!J32)^(J$9-1) -> 1 | K13: =(1+General!K32)^(K$9-1) -> 1.0556 | L13: =(1+General!L32)^(L$9-1) -> 1.11429136 | M13: =(1+General!M32)^(M$9-1) -> 1.17624596 | N13: =(1+General!N32)^(N$9-1) -> 1.241645235 | O13: =(1+General!O32)^(O$9-1) -> 1.31068071 | P13: =(1+General!P32)^(P$9-1) -> 1.383554558 | Q13: =(1+General!Q32)^(Q$9-1) -> 1.460480191 | R13: =(1+General!R32)^(R$9-1) -> 1.54168289 | S13: =(1+General!S32)^(S$9-1) -> 1.627400458 | T13: =(1+General!T32)^(T$9-1) -> 1.717883924 | U13: =(1+General!U32)^(U$9-1) -> 1.81339827 | V13: =(1+General!V32)^(V$9-1) -> 1.914223214 | W13: =(1+General!W32)^(W$9-1) -> 2.020654024 | X13: =(1+General!X32)^(X$9-1) -> 2.133002388 | Y13: =(1+General!Y32)^(Y$9-1) -> 2.251597321 | Z13: =(1+General!Z32)^(Z$9-1) -> 2.376786132 | AA13: =(1+General!AA32)^(AA$9-1) -> 2.508935441 | AB13: =(1+General!AB32)^(AB$9-1) -> 2.648432251 | AC13: =(1+General!AC32)^(AC$9-1) -> 2.795685084 | AD13: =(1+General!AD32)^(AD$9-1) -> 2.951125175 | AE13: =(1+General!AE32)^(AE$9-1) -> 3.115207735 | AF13: =(1+General!AF32)^(AF$9-1) -> 3.288413285 | AG13: =(1+General!AG32)^(AG$9-1) -> 3.471249064 | AH13: =(1+General!AH32)^(AH$9-1) -> 3.664250512 | AI13: =(1+General!AI32)^(AI$9-1) -> 3.86798284 | AJ13: =(1+General!AJ32)^(AJ$9-1) -> 4.083042686 | AK13: =(1+General!AK32)^(AK$9-1) -> 4.310059859 | AL13: =(1+General!AL32)^(AL$9-1) -> 4.549699187 | AM13: =(1+General!AM32)^(AM$9-1) -> 4.802662462 | AN13: =(1+General!AN32)^(AN$9-1) -> 5.069690495 | AO13: =(1+General!AO32)^(AO$9-1) -> 5.351565287 | AP13: =(1+General!AP32)^(AP$9-1) -> 5.649112317 | AQ13: =(1+General!AQ32)^(AQ$9-1) -> 5.963202961 | AR13: =(1+General!AR32)^(AR$9-1) -> 6.294757046 | AS13: =(1+General!AS32)^(AS$9-1) -> 6.644745538 | AT13: =(1+General!AT32)^(AT$9-1) -> 7.01419339 | AU13: =(1+General!AU32)^(AU$9-1) -> 7.404182542 | AV13: =(1+General!AV32)^(AV$9-1) -> 7.815855092 | AW13: =(1+General!AW32)^(AW$9-1) -> 8.250416635 | AX13: =(1+General!AX32)^(AX$9-1) -> 8.709139799 | AY13: =(1+General!AY32)^(AY$9-1) -> 9.193367972 | AZ13: =(1+General!AZ32)^(AZ$9-1) -> 9.704519232 | BA13: =(1+General!BA32)^(BA$9-1) -> 10.2440905 | BB13: =(1+General!BB32)^(BB$9-1) -> 10.81366193 | BC13: =(1+General!BC32)^(BC$9-1) -> 11.41490154 | BD13: =(1+General!BD32)^(BD$9-1) -> 12.04957006 | BE13: =(1+General!BE32)^(BE$9-1) -> 12.71952616 | BF13: =(1+General!BF32)^(BF$9-1) -> 13.42673181 | BG13: =(1+General!BG32)^(BG$9-1) -> 14.1732581
J16: ="FY "&RIGHT(J10,2) -> FY 24 | K16: FY 25 | L16: FY 26 | M16: FY 27 | N16: FY 28 | O16: FY 29 | P16: FY 30 | Q16: FY 31 | R16: FY 32 | S16: FY 33 | T16: FY 34 | U16: FY 35 | V16: FY 36 | W16: FY 37 | X16: FY 38 | Y16: FY 39 | Z16: FY 40 | AA16: FY 41 | AB16: FY 42 | AC16: FY 43 | AD16: FY 44 | AE16: FY 45 | AF16: FY 46 | AG16: FY 47 | AH16: FY 48 | AI16: FY 49 | AJ16: FY 50 | AK16: FY 51 | AL16: FY 52 | AM16: FY 53 | AN16: FY 54 | AO16: FY 55 | AP16: ="FY "&RIGHT(AP10,2) -> FY 56 | AQ16: FY 57 | AR16: FY 58 | AS16: FY 59 | AT16: FY 60 | AU16: FY 61 | AV16: FY 62 | AW16: FY 63 | AX16: FY 64 | AY16: FY 65 | AZ16: FY 66 | BA16: FY 67 | BB16: FY 68 | BC16: FY 69 | BD16: FY 70 | BE16: FY 71 | BF16: FY 72 | BG16: FY 73
B17: Summary | J17: =J9 -> 1 | K17: 2 | L17: 3 | M17: 4 | N17: 5 | O17: 6 | P17: 7 | Q17: 8 | R17: 9 | S17: 10 | T17: 11 | U17: 12 | V17: 13 | W17: 14 | X17: 15 | Y17: 16 | Z17: 17 | AA17: 18 | AB17: 19 | AC17: 20 | AD17: 21 | AE17: 22 | AF17: 23 | AG17: 24 | AH17: 25 | AI17: 26 | AJ17: 27 | AK17: 28 | AL17: 29 | AM17: 30 | AN17: 31 | AO17: 32 | AP17: =AP9 -> 33 | AQ17: 34 | AR17: 35 | AS17: 36 | AT17: 37 | AU17: 38 | AV17: 39 | AW17: 40 | AX17: 41 | AY17: 42 | AZ17: 43 | BA17: 44 | BB17: 45 | BC17: 46 | BD17: 47 | BE17: 48 | BF17: 49 | BG17: 50
A19: To determine the highest value project | E19: Present Value Cost
F20: Capital Expenditure | H20: =SUM(J20:BG20) -> 0 | J20: =-(J46)*J11/J13 -> 0 | K20: 0 | L20: 0 | M20: 0 | N20: 0 | O20: 0 | P20: 0 | Q20: 0 | R20: 0 | S20: 0 | T20: 0 | U20: 0 | V20: 0 | W20: 0 | X20: 0 | Y20: 0 | Z20: 0 | AA20: 0 | AB20: 0 | AC20: 0 | AD20: 0 | AE20: 0 | AF20: 0 | AG20: 0 | AH20: 0 | AI20: 0 | AJ20: 0 | AK20: 0 | AL20: 0 | AM20: 0 | AN20: 0 | AO20: 0 | AP20: =-(AP46)*AP11/AP13 -> 0 | AQ20: 0 | AR20: 0 | AS20: 0 | AT20: 0 | AU20: 0 | AV20: 0 | AW20: 0 | AX20: 0 | AY20: 0 | AZ20: 0 | BA20: 0 | BB20: 0 | BC20: 0 | BD20: 0 | BE20: 0 | BF20: 0 | BG20: 0
F21: Operating Expenditure | H21: =SUM(J21:BG21) -> 0 | J21: =-J75*J11/J13 -> 0 | K21: 0 | L21: 0 | M21: 0 | N21: 0 | O21: 0 | P21: 0 | Q21: 0 | R21: 0 | S21: 0 | T21: 0 | U21: 0 | V21: 0 | W21: 0 | X21: 0 | Y21: 0 | Z21: 0 | AA21: 0 | AB21: 0 | AC21: 0 | AD21: 0 | AE21: 0 | AF21: 0 | AG21: 0 | AH21: 0 | AI21: 0 | AJ21: 0 | AK21: 0 | AL21: 0 | AM21: 0 | AN21: 0 | AO21: 0 | AP21: =-AP75*AP11/AP13 -> 0 | AQ21: 0 | AR21: 0 | AS21: 0 | AT21: 0 | AU21: 0 | AV21: 0 | AW21: 0 | AX21: 0 | AY21: 0 | AZ21: 0 | BA21: 0 | BB21: 0 | BC21: 0 | BD21: 0 | BE21: 0 | BF21: 0 | BG21: 0
F22: Net Benefits | H22: =SUM(J22:BG22) -> 0 | J22: =(J106)*J11/J13 -> 0 | K22: 0 | L22: 0 | M22: 0 | N22: 0 | O22: 0 | P22: 0 | Q22: 0 | R22: 0 | S22: 0 | T22: 0 | U22: 0 | V22: 0 | W22: 0 | X22: 0 | Y22: 0 | Z22: 0 | AA22: 0 | AB22: 0 | AC22: 0 | AD22: 0 | AE22: 0 | AF22: 0 | AG22: 0 | AH22: 0 | AI22: 0 | AJ22: 0 | AK22: 0 | AL22: 0 | AM22: 0 | AN22: 0 | AO22: 0 | AP22: =(AP106)*AP11/AP13 -> 0 | AQ22: 0 | AR22: 0 | AS22: 0 | AT22: 0 | AU22: 0 | AV22: 0 | AW22: 0 | AX22: 0 | AY22: 0 | AZ22: 0 | BA22: 0 | BB22: 0 | BC22: 0 | BD22: 0 | BE22: 0 | BF22: 0 | BG22: 0
E23: Total Present Value | H23: =SUM(J23:BG23) -> 0 | J23: =SUM(J20:J22) -> 0 | K23: =SUM(K20:K22) -> 0 | L23: 0 | M23: =SUM(M20:M22) -> 0 | N23: 0 | O23: 0 | P23: 0 | Q23: 0 | R23: 0 | S23: 0 | T23: 0 | U23: 0 | V23: 0 | W23: 0 | X23: 0 | Y23: 0 | Z23: 0 | AA23: 0 | AB23: 0 | AC23: 0 | AD23: 0 | AE23: 0 | AF23: 0 | AG23: 0 | AH23: 0 | AI23: 0 | AJ23: 0 | AK23: 0 | AL23: 0 | AM23: 0 | AN23: 0 | AO23: 0 | AP23: =SUM(AP20:AP22) -> 0 | AQ23: 0 | AR23: 0 | AS23: 0 | AT23: 0 | AU23: 0 | AV23: 0 | AW23: 0 | AX23: 0 | AY23: 0 | AZ23: 0 | BA23: 0 | BB23: 0 | BC23: 0 | BD23: 0 | BE23: 0 | BF23: 0 | BG23: 0
A25: To determine the capex & opex need for the EDPR period | E25: Undiscounted
F26: Capital Expenditure | H26: =SUM(J26:BG26) -> 0 | J26: =-(J60)*J$6 -> 0 | K26: =-(K60)*K$6 -> 0 | L26: 0 | M26: 0 | N26: 0 | O26: 0 | P26: =-(P60)*P$6 -> 0 | Q26: 0 | R26: 0 | S26: 0 | T26: 0 | U26: 0 | V26: 0 | W26: 0 | X26: 0 | Y26: 0 | Z26: 0 | AA26: 0 | AB26: 0 | AC26: 0 | AD26: 0 | AE26: 0 | AF26: 0 | AG26: 0 | AH26: 0 | AI26: 0 | AJ26: 0 | AK26: 0 | AL26: 0 | AM26: 0 | AN26: 0 | AO26: 0 | AP26: 0 | AQ26: 0 | AR26: 0 | AS26: 0 | AT26: 0 | AU26: 0 | AV26: 0 | AW26: 0 | AX26: 0 | AY26: 0 | AZ26: 0 | BA26: 0 | BB26: 0 | BC26: 0 | BD26: 0 | BE26: 0 | BF26: 0 | BG26: 0
F27: Operating Expenditure | H27: =SUM(J27:BG27) -> 0 | J27: =-J89*J$6 -> 0 | K27: =-K89*K$6 -> 0 | L27: 0 | M27: 0 | N27: 0 | O27: 0 | P27: 0 | Q27: 0 | R27: 0 | S27: 0 | T27: 0 | U27: 0 | V27: 0 | W27: 0 | X27: 0 | Y27: 0 | Z27: 0 | AA27: 0 | AB27: 0 | AC27: 0 | AD27: 0 | AE27: 0 | AF27: 0 | AG27: 0 | AH27: 0 | AI27: 0 | AJ27: 0 | AK27: 0 | AL27: 0 | AM27: 0 | AN27: 0 | AO27: 0 | AP27: 0 | AQ27: 0 | AR27: 0 | AS27: 0 | AT27: 0 | AU27: 0 | AV27: 0 | AW27: 0 | AX27: 0 | AY27: 0 | AZ27: 0 | BA27: 0 | BB27: 0 | BC27: 0 | BD27: 0 | BE27: 0 | BF27: 0 | BG27: 0
F28: Net Benefits | H28: =SUM(J28:BG28) -> 0 | J28: =(J122)*J$6 -> 0 | K28: =(K122)*K$6 -> 0 | L28: 0 | M28: 0 | N28: 0 | O28: 0 | P28: 0 | Q28: 0 | R28: 0 | S28: 0 | T28: 0 | U28: 0 | V28: 0 | W28: 0 | X28: 0 | Y28: 0 | Z28: 0 | AA28: 0 | AB28: 0 | AC28: 0 | AD28: 0 | AE28: 0 | AF28: 0 | AG28: 0 | AH28: 0 | AI28: 0 | AJ28: 0 | AK28: 0 | AL28: 0 | AM28: 0 | AN28: 0 | AO28: 0 | AP28: 0 | AQ28: 0 | AR28: 0 | AS28: 0 | AT28: 0 | AU28: 0 | AV28: 0 | AW28: 0 | AX28: 0 | AY28: 0 | AZ28: 0 | BA28: 0 | BB28: 0 | BC28: 0 | BD28: 0 | BE28: 0 | BF28: 0 | BG28: 0
E29: Undiscounted Total Value | H29: =SUM(J29:BG29) -> 0 | J29: =SUM(J26:J28) -> 0 | K29: =SUM(K26:K28) -> 0 | L29: =SUM(L26:L28) -> 0 | M29: =SUM(M26:M28) -> 0 | N29: =SUM(N26:N28) -> 0 | O29: =SUM(O26:O28) -> 0 | P29: =SUM(P26:P28) -> 0 | Q29: =SUM(Q26:Q28) -> 0 | R29: =SUM(R26:R28) -> 0 | S29: =SUM(S26:S28) -> 0 | T29: =SUM(T26:T28) -> 0 | U29: =SUM(U26:U28) -> 0 | V29: =SUM(V26:V28) -> 0 | W29: =SUM(W26:W28) -> 0 | X29: =SUM(X26:X28) -> 0 | Y29: =SUM(Y26:Y28) -> 0 | Z29: =SUM(Z26:Z28) -> 0 | AA29: =SUM(AA26:AA28) -> 0 | AB29: =SUM(AB26:AB28) -> 0 | AC29: =SUM(AC26:AC28) -> 0 | AD29: =SUM(AD26:AD28) -> 0 | AE29: =SUM(AE26:AE28) -> 0 | AF29: =SUM(AF26:AF28) -> 0 | AG29: =SUM(AG26:AG28) -> 0 | AH29: =SUM(AH26:AH28) -> 0 | AI29: =SUM(AI26:AI28) -> 0 | AJ29: =SUM(AJ26:AJ28) -> 0 | AK29: =SUM(AK26:AK28) -> 0 | AL29: =SUM(AL26:AL28) -> 0 | AM29: =SUM(AM26:AM28) -> 0 | AN29: =SUM(AN26:AN28) -> 0 | AO29: =SUM(AO26:AO28) -> 0 | AP29: =SUM(AP26:AP28) -> 0 | AQ29: =SUM(AQ26:AQ28) -> 0 | AR29: =SUM(AR26:AR28) -> 0 | AS29: =SUM(AS26:AS28) -> 0 | AT29: =SUM(AT26:AT28) -> 0 | AU29: =SUM(AU26:AU28) -> 0 | AV29: =SUM(AV26:AV28) -> 0 | AW29: =SUM(AW26:AW28) -> 0 | AX29: =SUM(AX26:AX28) -> 0 | AY29: =SUM(AY26:AY28) -> 0 | AZ29: =SUM(AZ26:AZ28) -> 0 | BA29: =SUM(BA26:BA28) -> 0 | BB29: =SUM(BB26:BB28) -> 0 | BC29: =SUM(BC26:BC28) -> 0 | BD29: =SUM(BD26:BD28) -> 0 | BE29: =SUM(BE26:BE28) -> 0 | BF29: =SUM(BF26:BF28) -> 0 | BG29: =SUM(BG26:BG28) -> 0
B32: Capital Expenditure
F35: Category | G35: Description (optional) | I35: Dollar Basis
F46: Total Direct Capex | J46: =SUM(J36:J45) -> 0 | K46: =SUM(K36:K45) -> 0 | L46: =SUM(L36:L45) -> 0 | M46: 0 | N46: 0 | O46: 0 | P46: 0 | Q46: =SUM(Q36:Q45) -> 0 | R46: 0 | S46: 0 | T46: 0 | U46: 0 | V46: 0 | W46: 0 | X46: 0 | Y46: 0 | Z46: 0 | AA46: 0 | AB46: 0 | AC46: 0 | AD46: 0 | AE46: 0 | AF46: 0 | AG46: 0 | AH46: 0 | AI46: 0 | AJ46: 0 | AK46: 0 | AL46: 0 | AM46: 0 | AN46: 0 | AO46: 0 | AP46: 0 | AQ46: 0 | AR46: 0 | AS46: 0 | AT46: 0 | AU46: 0 | AV46: 0 | AW46: 0 | AX46: 0 | AY46: 0 | AZ46: 0 | BA46: 0 | BB46: 0 | BC46: 0 | BD46: 0 | BE46: 0 | BF46: 0 | BG46: 0
G49: Dollar Basis for Conversion | H49: Conversion Factor
F60: Total Direct Capex | J60: =SUM(J50:J59) -> 0 | K60: =SUM(K50:K59) -> 0 | L60: 0 | M60: 0 | N60: 0 | O60: 0 | P60: 0 | Q60: 0 | R60: 0 | S60: 0 | T60: 0 | U60: 0 | V60: 0 | W60: 0 | X60: 0 | Y60: 0 | Z60: 0 | AA60: 0 | AB60: 0 | AC60: 0 | AD60: 0 | AE60: 0 | AF60: 0 | AG60: 0 | AH60: 0 | AI60: 0 | AJ60: 0 | AK60: 0 | AL60: 0 | AM60: 0 | AN60: 0 | AO60: 0 | AP60: 0 | AQ60: 0 | AR60: 0 | AS60: 0 | AT60: 0 | AU60: 0 | AV60: 0 | AW60: 0 | AX60: 0 | AY60: 0 | AZ60: 0 | BA60: 0 | BB60: 0 | BC60: 0 | BD60: 0 | BE60: 0 | BF60: 0 | BG60: 0
B62: Operating Expenditure (enter costs as positive numbers and savings as negative numbers)
F64: Category | G64: Description (optional) | I64: Dollar Basis
F75: Total Opex | J75: =SUM(J65:J74) -> 0 | K75: =SUM(K65:K74) -> 0 | L75: 0 | M75: 0 | N75: 0 | O75: 0 | P75: =SUM(P65:P74) -> 0 | Q75: 0 | R75: 0 | S75: 0 | T75: 0 | U75: 0 | V75: 0 | W75: 0 | X75: 0 | Y75: 0 | Z75: 0 | AA75: 0 | AB75: 0 | AC75: 0 | AD75: 0 | AE75: 0 | AF75: 0 | AG75: 0 | AH75: 0 | AI75: 0 | AJ75: 0 | AK75: 0 | AL75: 0 | AM75: 0 | AN75: 0 | AO75: 0 | AP75: 0 | AQ75: 0 | AR75: 0 | AS75: 0 | AT75: 0 | AU75: 0 | AV75: 0 | AW75: 0 | AX75: 0 | AY75: 0 | AZ75: 0 | BA75: 0 | BB75: 0 | BC75: 0 | BD75: 0 | BE75: 0 | BF75: 0 | BG75: 0
F78: Category | G78: Dollar Basis for Conversion | H78: Conversion Factor
F89: Total Opex | J89: =SUM(J79:J88) -> 0 | K89: =SUM(K79:K88) -> 0 | L89: 0 | M89: 0 | N89: 0 | O89: 0 | P89: =SUM(P79:P88) -> 0 | Q89: =SUM(Q79:Q88) -> 0 | R89: 0 | S89: 0 | T89: 0 | U89: 0 | V89: 0 | W89: 0 | X89: 0 | Y89: 0 | Z89: 0 | AA89: 0 | AB89: 0 | AC89: 0 | AD89: 0 | AE89: 0 | AF89: 0 | AG89: 0 | AH89: 0 | AI89: 0 | AJ89: 0 | AK89: 0 | AL89: 0 | AM89: 0 | AN89: 0 | AO89: 0 | AP89: 0 | AQ89: 0 | AR89: 0 | AS89: 0 | AT89: 0 | AU89: 0 | AV89: 0 | AW89: 0 | AX89: 0 | AY89: 0 | AZ89: 0 | BA89: 0 | BB89: 0 | BC89: 0 | BD89: 0 | BE89: 0 | BF89: 0 | BG89: 0
B91: Benefits
F93: Category | G93: Description (optional) | I93: Dollar basis
F106: Net Benefits | J106: =SUM(J94:J105) -> 0 | K106: =SUM(K94:K105) -> 0 | L106: 0 | M106: 0 | N106: 0 | O106: 0 | P106: 0 | Q106: 0 | R106: 0 | S106: 0 | T106: 0 | U106: 0 | V106: 0 | W106: 0 | X106: 0 | Y106: 0 | Z106: 0 | AA106: 0 | AB106: 0 | AC106: 0 | AD106: 0 | AE106: 0 | AF106: 0 | AG106: 0 | AH106: 0 | AI106: 0 | AJ106: 0 | AK106: 0 | AL106: 0 | AM106: 0 | AN106: 0 | AO106: 0 | AP106: 0 | AQ106: 0 | AR106: 0 | AS106: 0 | AT106: 0 | AU106: 0 | AV106: 0 | AW106: 0 | AX106: 0 | AY106: 0 | AZ106: 0 | BA106: 0 | BB106: 0 | BC106: 0 | BD106: 0 | BE106: 0 | BF106: 0 | BG106: 0
F109: Category | G109: Dollar basis | H109: Conversion Factor
F122: Net Benefits | J122: =SUM(J110:J121) -> 0 | K122: =SUM(K110:K121) -> 0 | L122: 0 | M122: 0 | N122: 0 | O122: 0 | P122: 0 | Q122: 0 | R122: 0 | S122: 0 | T122: 0 | U122: 0 | V122: 0 | W122: 0 | X122: 0 | Y122: 0 | Z122: 0 | AA122: 0 | AB122: 0 | AC122: 0 | AD122: 0 | AE122: 0 | AF122: 0 | AG122: 0 | AH122: 0 | AI122: 0 | AJ122: 0 | AK122: 0 | AL122: 0 | AM122: 0 | AN122: 0 | AO122: 0 | AP122: 0 | AQ122: 0 | AR122: 0 | AS122: 0 | AT122: 0 | AU122: 0 | AV122: 0 | AW122: 0 | AX122: 0 | AY122: 0 | AZ122: 0 | BA122: 0 | BB122: 0 | BC122: 0 | BD122: 0 | BE122: 0 | BF122: 0 | BG122: 0
A124: END OF INPUTS FOR THIS OPTION

Sheet Option1_Analysis
B1: Analysis: Option 1
B2: =Cover!$C$9 -> AusNet Services
B3: =Cover!$C$10 -> Business Case Evaluation
B4: =Cover!$C$11 -> Voltage Compliance
B6: Regulatory Period Indicator | J6: =IF(AND(J$7>=General!$H$20,J$8<=General!$H$21),1,0) -> 0 | K6: =IF(AND(K$7>=General!$H$20,K$8<=General!$H$21),1,0) -> 0 | L6: =IF(AND(L$7>=General!$H$20,L$8<=General!$H$21),1,0) -> 0 | M6: =IF(AND(M$7>=General!$H$20,M$8<=General!$H$21),1,0) -> 1 | N6: =IF(AND(N$7>=General!$H$20,N$8<=General!$H$21),1,0) -> 1 | O6: =IF(AND(O$7>=General!$H$20,O$8<=General!$H$21),1,0) -> 1 | P6: =IF(AND(P$7>=General!$H$20,P$8<=General!$H$21),1,0) -> 1 | Q6: =IF(AND(Q$7>=General!$H$20,Q$8<=General!$H$21),1,0) -> 1 | R6: =IF(AND(R$7>=General!$H$20,R$8<=General!$H$21),1,0) -> 0 | S6: =IF(AND(S$7>=General!$H$20,S$8<=General!$H$21),1,0) -> 0 | T6: =IF(AND(T$7>=General!$H$20,T$8<=General!$H$21),1,0) -> 0 | U6: =IF(AND(U$7>=General!$H$20,U$8<=General!$H$21),1,0) -> 0 | V6: =IF(AND(V$7>=General!$H$20,V$8<=General!$H$21),1,0) -> 0 | W6: =IF(AND(W$7>=General!$H$20,W$8<=General!$H$21),1,0) -> 0 | X6: =IF(AND(X$7>=General!$H$20,X$8<=General!$H$21),1,0) -> 0 | Y6: =IF(AND(Y$7>=General!$H$20,Y$8<=General!$H$21),1,0) -> 0 | Z6: =IF(AND(Z$7>=General!$H$20,Z$8<=General!$H$21),1,0) -> 0 | AA6: =IF(AND(AA$7>=General!$H$20,AA$8<=General!$H$21),1,0) -> 0 | AB6: =IF(AND(AB$7>=General!$H$20,AB$8<=General!$H$21),1,0) -> 0 | AC6: =IF(AND(AC$7>=General!$H$20,AC$8<=General!$H$21),1,0) -> 0 | AD6: =IF(AND(AD$7>=General!$H$20,AD$8<=General!$H$21),1,0) -> 0 | AE6: =IF(AND(AE$7>=General!$H$20,AE$8<=General!$H$21),1,0) -> 0 | AF6: =IF(AND(AF$7>=General!$H$20,AF$8<=General!$H$21),1,0) -> 0 | AG6: =IF(AND(AG$7>=General!$H$20,AG$8<=General!$H$21),1,0) -> 0 | AH6: =IF(AND(AH$7>=General!$H$20,AH$8<=General!$H$21),1,0) -> 0 | AI6: =IF(AND(AI$7>=General!$H$20,AI$8<=General!$H$21),1,0) -> 0 | AJ6: =IF(AND(AJ$7>=General!$H$20,AJ$8<=General!$H$21),1,0) -> 0 | AK6: =IF(AND(AK$7>=General!$H$20,AK$8<=General!$H$21),1,0) -> 0 | AL6: =IF(AND(AL$7>=General!$H$20,AL$8<=General!$H$21),1,0) -> 0 | AM6: =IF(AND(AM$7>=General!$H$20,AM$8<=General!$H$21),1,0) -> 0 | AN6: =IF(AND(AN$7>=General!$H$20,AN$8<=General!$H$21),1,0) -> 0 | AO6: =IF(AND(AO$7>=General!$H$20,AO$8<=General!$H$21),1,0) -> 0 | AP6: =IF(AND(AP$7>=General!$H$20,AP$8<=General!$H$21),1,0) -> 0 | AQ6: =IF(AND(AQ$7>=General!$H$20,AQ$8<=General!$H$21),1,0) -> 0 | AR6: =IF(AND(AR$7>=General!$H$20,AR$8<=General!$H$21),1,0) -> 0 | AS6: =IF(AND(AS$7>=General!$H$20,AS$8<=General!$H$21),1,0) -> 0 | AT6: =IF(AND(AT$7>=General!$H$20,AT$8<=General!$H$21),1,0) -> 0 | AU6: =IF(AND(AU$7>=General!$H$20,AU$8<=General!$H$21),1,0) -> 0 | AV6: =IF(AND(AV$7>=General!$H$20,AV$8<=General!$H$21),1,0) -> 0 | AW6: =IF(AND(AW$7>=General!$H$20,AW$8<=General!$H$21),1,0) -> 0 | AX6: =IF(AND(AX$7>=General!$H$20,AX$8<=General!$H$21),1,0) -> 0 | AY6: =IF(AND(AY$7>=General!$H$20,AY$8<=General!$H$21),1,0) -> 0 | AZ6: =IF(AND(AZ$7>=General!$H$20,AZ$8<=General!$H$21),1,0) -> 0 | BA6: =IF(AND(BA$7>=General!$H$20,BA$8<=General!$H$21),1,0) -> 0 | BB6: =IF(AND(BB$7>=General!$H$20,BB$8<=General!$H$21),1,0) -> 0 | BC6: =IF(AND(BC$7>=General!$H$20,BC$8<=General!$H$21),1,0) -> 0 | BD6: =IF(AND(BD$7>=General!$H$20,BD$8<=General!$H$21),1,0) -> 0 | BE6: =IF(AND(BE$7>=General!$H$20,BE$8<=General!$H$21),1,0) -> 0 | BF6: =IF(AND(BF$7>=General!$H$20,BF$8<=General!$H$21),1,0) -> 0 | BG6: =IF(AND(BG$7>=General!$H$20,BG$8<=General!$H$21),1,0) -> 0
B7: Period Start Date | J7: =EDATE(General!$H$18,(J9-1)*12) -> 2023-07-01 | K7: =EDATE(General!$H$18,(K9-1)*12) -> 2024-07-01 | L7: =EDATE(General!$H$18,(L9-1)*12) -> 2025-07-01 | M7: =EDATE(General!$H$18,(M9-1)*12) -> 2026-07-01 | N7: =EDATE(General!$H$18,(N9-1)*12) -> 2027-07-01 | O7: =EDATE(General!$H$18,(O9-1)*12) -> 2028-07-01 | P7: =EDATE(General!$H$18,(P9-1)*12) -> 2029-07-01 | Q7: =EDATE(General!$H$18,(Q9-1)*12) -> 2030-07-01 | R7: =EDATE(General!$H$18,(R9-1)*12) -> 2031-07-01 | S7: =EDATE(General!$H$18,(S9-1)*12) -> 2032-07-01 | T7: =EDATE(General!$H$18,(T9-1)*12) -> 2033-07-01 | U7: =EDATE(General!$H$18,(U9-1)*12) -> 2034-07-01 | V7: =EDATE(General!$H$18,(V9-1)*12) -> 2035-07-01 | W7: =EDATE(General!$H$18,(W9-1)*12) -> 2036-07-01 | X7: =EDATE(General!$H$18,(X9-1)*12) -> 2037-07-01 | Y7: =EDATE(General!$H$18,(Y9-1)*12) -> 2038-07-01 | Z7: =EDATE(General!$H$18,(Z9-1)*12) -> 2039-07-01 | AA7: =EDATE(General!$H$18,(AA9-1)*12) -> 2040-07-01 | AB7: =EDATE(General!$H$18,(AB9-1)*12) -> 2041-07-01 | AC7: =EDATE(General!$H$18,(AC9-1)*12) -> 2042-07-01 | AD7: =EDATE(General!$H$18,(AD9-1)*12) -> 2043-07-01 | AE7: =EDATE(General!$H$18,(AE9-1)*12) -> 2044-07-01 | AF7: =EDATE(General!$H$18,(AF9-1)*12) -> 2045-07-01 | AG7: =EDATE(General!$H$18,(AG9-1)*12) -> 2046-07-01 | AH7: =EDATE(General!$H$18,(AH9-1)*12) -> 2047-07-01 | AI7: =EDATE(General!$H$18,(AI9-1)*12) -> 2048-07-01 | AJ7: =EDATE(General!$H$18,(AJ9-1)*12) -> 2049-07-01 | AK7: =EDATE(General!$H$18,(AK9-1)*12) -> 2050-07-01 | AL7: =EDATE(General!$H$18,(AL9-1)*12) -> 2051-07-01 | AM7: =EDATE(General!$H$18,(AM9-1)*12) -> 2052-07-01 | AN7: =EDATE(General!$H$18,(AN9-1)*12) -> 2053-07-01 | AO7: =EDATE(General!$H$18,(AO9-1)*12) -> 2054-07-01 | AP7: =EDATE(General!$H$18,(AP9-1)*12) -> 2055-07-01 | AQ7: =EDATE(General!$H$18,(AQ9-1)*12) -> 2056-07-01 | AR7: =EDATE(General!$H$18,(AR9-1)*12) -> 2057-07-01 | AS7: =EDATE(General!$H$18,(AS9-1)*12) -> 2058-07-01 | AT7: =EDATE(General!$H$18,(AT9-1)*12) -> 2059-07-01 | AU7: =EDATE(General!$H$18,(AU9-1)*12) -> 2060-07-01 | AV7: =EDATE(General!$H$18,(AV9-1)*12) -> 2061-07-01 | AW7: =EDATE(General!$H$18,(AW9-1)*12) -> 2062-07-01 | AX7: =EDATE(General!$H$18,(AX9-1)*12) -> 2063-07-01 | AY7: =EDATE(General!$H$18,(AY9-1)*12) -> 2064-07-01 | AZ7: =EDATE(General!$H$18,(AZ9-1)*12) -> 2065-07-01 | BA7: =EDATE(General!$H$18,(BA9-1)*12) -> 2066-07-01 | BB7: =EDATE(General!$H$18,(BB9-1)*12) -> 2067-07-01 | BC7: =EDATE(General!$H$18,(BC9-1)*12) -> 2068-07-01 | BD7: =EDATE(General!$H$18,(BD9-1)*12) -> 2069-07-01 | BE7: =EDATE(General!$H$18,(BE9-1)*12) -> 2070-07-01 | BF7: =EDATE(General!$H$18,(BF9-1)*12) -> 2071-07-01 | BG7: =EDATE(General!$H$18,(BG9-1)*12) -> 2072-07-01
B8: Period End Date | J8: =EDATE(J7,12)-1 -> 2024-06-30 | K8: =EDATE(K7,12)-1 -> 2025-06-30 | L8: 2026-06-30 | M8: 2027-06-30 | N8: 2028-06-30 | O8: 2029-06-30 | P8: 2030-06-30 | Q8: 2031-06-30 | R8: 2032-06-30 | S8: 2033-06-30 | T8: 2034-06-30 | U8: 2035-06-30 | V8: 2036-06-30 | W8: 2037-06-30 | X8: 2038-06-30 | Y8: 2039-06-30 | Z8: 2040-06-30 | AA8: 2041-06-30 | AB8: 2042-06-30 | AC8: 2043-06-30 | AD8: 2044-06-30 | AE8: 2045-06-30 | AF8: 2046-06-30 | AG8: 2047-06-30 | AH8: 2048-06-30 | AI8: 2049-06-30 | AJ8: 2050-06-30 | AK8: 2051-06-30 | AL8: 2052-06-30 | AM8: 2053-06-30 | AN8: 2054-06-30 | AO8: 2055-06-30 | AP8: 2056-06-30 | AQ8: 2057-06-30 | AR8: 2058-06-30 | AS8: 2059-06-30 | AT8: 2060-06-30 | AU8: 2061-06-30 | AV8: 2062-06-30 | AW8: 2063-06-30 | AX8: 2064-06-30 | AY8: 2065-06-30 | AZ8: 2066-06-30 | BA8: 2067-06-30 | BB8: 2068-06-30 | BC8: 2069-06-30 | BD8: 2070-06-30 | BE8: 2071-06-30 | BF8: 2072-06-30 | BG8: 2073-06-30
B9: ="Project Year" -> Project Year | J9: =COLUMNS($J9:J9) -> 1 | K9: =COLUMNS($J9:K9) -> 2 | L9: =COLUMNS($J9:L9) -> 3 | M9: =COLUMNS($J9:M9) -> 4 | N9: =COLUMNS($J9:N9) -> 5 | O9: =COLUMNS($J9:O9) -> 6 | P9: =COLUMNS($J9:P9) -> 7 | Q9: =COLUMNS($J9:Q9) -> 8 | R9: =COLUMNS($J9:R9) -> 9 | S9: =COLUMNS($J9:S9) -> 10 | T9: =COLUMNS($J9:T9) -> 11 | U9: =COLUMNS($J9:U9) -> 12 | V9: =COLUMNS($J9:V9) -> 13 | W9: =COLUMNS($J9:W9) -> 14 | X9: =COLUMNS($J9:X9) -> 15 | Y9: =COLUMNS($J9:Y9) -> 16 | Z9: =COLUMNS($J9:Z9) -> 17 | AA9: =COLUMNS($J9:AA9) -> 18 | AB9: =COLUMNS($J9:AB9) -> 19 | AC9: =COLUMNS($J9:AC9) -> 20 | AD9: =COLUMNS($J9:AD9) -> 21 | AE9: =COLUMNS($J9:AE9) -> 22 | AF9: =COLUMNS($J9:AF9) -> 23 | AG9: =COLUMNS($J9:AG9) -> 24 | AH9: =COLUMNS($J9:AH9) -> 25 | AI9: =COLUMNS($J9:AI9) -> 26 | AJ9: =COLUMNS($J9:AJ9) -> 27 | AK9: =COLUMNS($J9:AK9) -> 28 | AL9: =COLUMNS($J9:AL9) -> 29 | AM9: =COLUMNS($J9:AM9) -> 30 | AN9: =COLUMNS($J9:AN9) -> 31 | AO9: =COLUMNS($J9:AO9) -> 32 | AP9: =COLUMNS($J9:AP9) -> 33 | AQ9: =COLUMNS($J9:AQ9) -> 34 | AR9: =COLUMNS($J9:AR9) -> 35 | AS9: =COLUMNS($J9:AS9) -> 36 | AT9: =COLUMNS($J9:AT9) -> 37 | AU9: =COLUMNS($J9:AU9) -> 38 | AV9: =COLUMNS($J9:AV9) -> 39 | AW9: =COLUMNS($J9:AW9) -> 40 | AX9: =COLUMNS($J9:AX9) -> 41 | AY9: =COLUMNS($J9:AY9) -> 42 | AZ9: =COLUMNS($J9:AZ9) -> 43 | BA9: =COLUMNS($J9:BA9) -> 44 | BB9: =COLUMNS($J9:BB9) -> 45 | BC9: =COLUMNS($J9:BC9) -> 46 | BD9: =COLUMNS($J9:BD9) -> 47 | BE9: =COLUMNS($J9:BE9) -> 48 | BF9: =COLUMNS($J9:BF9) -> 49 | BG9: =COLUMNS($J9:BG9) -> 50
B10: Financial Year | J10: =YEAR(J8) -> 2024 | K10: =YEAR(K8) -> 2025 | L10: 2026 | M10: 2027 | N10: 2028 | O10: 2029 | P10: 2030 | Q10: 2031 | R10: 2032 | S10: 2033 | T10: 2034 | U10: 2035 | V10: 2036 | W10: 2037 | X10: 2038 | Y10: 2039 | Z10: 2040 | AA10: 2041 | AB10: 2042 | AC10: 2043 | AD10: 2044 | AE10: 2045 | AF10: 2046 | AG10: 2047 | AH10: 2048 | AI10: 2049 | AJ10: 2050 | AK10: 2051 | AL10: 2052 | AM10: 2053 | AN10: 2054 | AO10: 2055 | AP10: 2056 | AQ10: 2057 | AR10: 2058 | AS10: 2059 | AT10: 2060 | AU10: 2061 | AV10: 2062 | AW10: 2063 | AX10: 2064 | AY10: 2065 | AZ10: 2066 | BA10: 2067 | BB10: 2068 | BC10: 2069 | BD10: 2070 | BE10: 2071 | BF10: 2072 | BG10: 2073
B11: CPI index | J11: 1 | K11: =J11*(1+IF(OR(ISBLANK(VLOOKUP(DATE(YEAR(K8),MONTH(K8),1),CPI_Con_F!$D$18:$G$67,4,FALSE)),ISERROR(VLOOKUP(DATE(YEAR(K8),MONTH(K8),1),CPI_Con_F!$D$18:$G$67,4,FALSE))),General!$H$24,VLOOKUP(DATE(YEAR(K8),MONTH(K8),1),CPI_Con_F!$D$18:$G$67,4,FALSE))) -> 1.03 | L11: =K11*(1+IF(OR(ISBLANK(VLOOKUP(DATE(YEAR(L8),MONTH(L8),1),CPI_Con_F!$D$18:$G$67,4,FALSE)),ISERROR(VLOOKUP(DATE(YEAR(L8),MONTH(L8),1),CPI_Con_F!$D$18:$G$67,4,FALSE))),General!$H$24,VLOOKUP(DATE(YEAR(L8),MONTH(L8),1),CPI_Con_F!$D$18:$G$67,4,FALSE))) -> 1.05575 | M11: =L11*(1+IF(OR(ISBLANK(VLOOKUP(DATE(YEAR(M8),MONTH(M8),1),CPI_Con_F!$D$18:$G$67,4,FALSE)),ISERROR(VLOOKUP(DATE(YEAR(M8),MONTH(M8),1),CPI_Con_F!$D$18:$G$67,4,FALSE))),General!$H$24,VLOOKUP(DATE(YEAR(M8),MONTH(M8),1),CPI_Con_F!$D$18:$G$67,4,FALSE))) -> 1.08214375 | N11: =M11*(1+IF(OR(ISBLANK(VLOOKUP(DATE(YEAR(N8),MONTH(N8),1),CPI_Con_F!$D$18:$G$67,4,FALSE)),ISERROR(VLOOKUP(DATE(YEAR(N8),MONTH(N8),1),CPI_Con_F!$D$18:$G$67,4,FALSE))),General!$H$24,VLOOKUP(DATE(YEAR(N8),MONTH(N8),1),CPI_Con_F!$D$18:$G$67,4,FALSE))) -> 1.109197344 | O11: =N11*(1+IF(OR(ISBLANK(VLOOKUP(DATE(YEAR(O8),MONTH(O8),1),CPI_Con_F!$D$18:$G$67,4,FALSE)),ISERROR(VLOOKUP(DATE(YEAR(O8),MONTH(O8),1),CPI_Con_F!$D$18:$G$67,4,FALSE))),General!$H$24,VLOOKUP(DATE(YEAR(O8),MONTH(O8),1),CPI_Con_F!$D$18:$G$67,4,FALSE))) -> 1.136927277 | P11: =O11*(1+IF(OR(ISBLANK(VLOOKUP(DATE(YEAR(P8),MONTH(P8),1),CPI_Con_F!$D$18:$G$67,4,FALSE)),ISERROR(VLOOKUP(DATE(YEAR(P8),MONTH(P8),1),CPI_Con_F!$D$18:$G$67,4,FALSE))),General!$H$24,VLOOKUP(DATE(YEAR(P8),MONTH(P8),1),CPI_Con_F!$D$18:$G$67,4,FALSE))) -> 1.165350459 | Q11: =P11*(1+IF(OR(ISBLANK(VLOOKUP(DATE(YEAR(Q8),MONTH(Q8),1),CPI_Con_F!$D$18:$G$67,4,FALSE)),ISERROR(VLOOKUP(DATE(YEAR(Q8),MONTH(Q8),1),CPI_Con_F!$D$18:$G$67,4,FALSE))),General!$H$24,VLOOKUP(DATE(YEAR(Q8),MONTH(Q8),1),CPI_Con_F!$D$18:$G$67,4,FALSE))) -> 1.194484221 | R11: =Q11*(1+IF(OR(ISBLANK(VLOOKUP(DATE(YEAR(R8),MONTH(R8),1),CPI_Con_F!$D$18:$G$67,4,FALSE)),ISERROR(VLOOKUP(DATE(YEAR(R8),MONTH(R8),1),CPI_Con_F!$D$18:$G$67,4,FALSE))),General!$H$24,VLOOKUP(DATE(YEAR(R8),MONTH(R8),1),CPI_Con_F!$D$18:$G$67,4,FALSE))) -> 1.224346326 | S11: =R11*(1+IF(OR(ISBLANK(VLOOKUP(DATE(YEAR(S8),MONTH(S8),1),CPI_Con_F!$D$18:$G$67,4,FALSE)),ISERROR(VLOOKUP(DATE(YEAR(S8),MONTH(S8),1),CPI_Con_F!$D$18:$G$67,4,FALSE))),General!$H$24,VLOOKUP(DATE(YEAR(S8),MONTH(S8),1),CPI_Con_F!$D$18:$G$67,4,FALSE))) -> 1.254954984 | T11: =S11*(1+IF(OR(ISBLANK(VLOOKUP(DATE(YEAR(T8),MONTH(T8),1),CPI_Con_F!$D$18:$G$67,4,FALSE)),ISERROR(VLOOKUP(DATE(YEAR(T8),MONTH(T8),1),CPI_Con_F!$D$18:$G$67,4,FALSE))),General!$H$24,VLOOKUP(DATE(YEAR(T8),MONTH(T8),1),CPI_Con_F!$D$18:$G$67,4,FALSE))) -> 1.286328859 | U11: =T11*(1+IF(OR(ISBLANK(VLOOKUP(DATE(YEAR(U8),MONTH(U8),1),CPI_Con_F!$D$18:$G$67,4,FALSE)),ISERROR(VLOOKUP(DATE(YEAR(U8),MONTH(U8),1),CPI_Con_F!$D$18:$G$67,4,FALSE))),General!$H$24,VLOOKUP(DATE(YEAR(U8),MONTH(U8),1),CPI_Con_F!$D$18:$G$67,4,FALSE))) -> 1.318487081 | V11: =U11*(1+IF(OR(ISBLANK(VLOOKUP(DATE(YEAR(V8),MONTH(V8),1),CPI_Con_F!$D$18:$G$67,4,FALSE)),ISERROR(VLOOKUP(DATE(YEAR(V8),MONTH(V8),1),CPI_Con_F!$D$18:$G$67,4,FALSE))),General!$H$24,VLOOKUP(DATE(YEAR(V8),MONTH(V8),1),CPI_Con_F!$D$18:$G$67,4,FALSE))) -> 1.351449258 | W11: =V11*(1+IF(OR(ISBLANK(VLOOKUP(DATE(YEAR(W8),MONTH(W8),1),CPI_Con_F!$D$18:$G$67,4,FALSE)),ISERROR(VLOOKUP(DATE(YEAR(W8),MONTH(W8),1),CPI_Con_F!$D$18:$G$67,4,FALSE))),General!$H$24,VLOOKUP(DATE(YEAR(W8),MONTH(W8),1),CPI_Con_F!$D$18:$G$67,4,FALSE))) -> 1.385235489 | X11: =W11*(1+IF(OR(ISBLANK(VLOOKUP(DATE(YEAR(X8),MONTH(X8),1),CPI_Con_F!$D$18:$G$67,4,FALSE)),ISERROR(VLOOKUP(DATE(YEAR(X8),MONTH(X8),1),CPI_Con_F!$D$18:$G$67,4,FALSE))),General!$H$24,VLOOKUP(DATE(YEAR(X8),MONTH(X8),1),CPI_Con_F!$D$18:$G$67,4,FALSE))) -> 1.419866376 | Y11: =X11*(1+IF(OR(ISBLANK(VLOOKUP(DATE(YEAR(Y8),MONTH(Y8),1),CPI_Con_F!$D$18:$G$67,4,FALSE)),ISERROR(VLOOKUP(DATE(YEAR(Y8),MONTH(Y8),1),CPI_Con_F!$D$18:$G$67,4,FALSE))),General!$H$24,VLOOKUP(DATE(YEAR(Y8),MONTH(Y8),1),CPI_Con_F!$D$18:$G$67,4,FALSE))) -> 1.455363036 | Z11: =Y11*(1+IF(OR(ISBLANK(VLOOKUP(DATE(YEAR(Z8),MONTH(Z8),1),CPI_Con_F!$D$18:$G$67,4,FALSE)),ISERROR(VLOOKUP(DATE(YEAR(Z8),MONTH(Z8),1),CPI_Con_F!$D$18:$G$67,4,FALSE))),General!$H$24,VLOOKUP(DATE(YEAR(Z8),MONTH(Z8),1),CPI_Con_F!$D$18:$G$67,4,FALSE))) -> 1.491747111 | AA11: =Z11*(1+IF(OR(ISBLANK(VLOOKUP(DATE(YEAR(AA8),MONTH(AA8),1),CPI_Con_F!$D$18:$G$67,4,FALSE)),ISERROR(VLOOKUP(DATE(YEAR(AA8),MONTH(AA8),1),CPI_Con_F!$D$18:$G$67,4,FALSE))),General!$H$24,VLOOKUP(DATE(YEAR(AA8),MONTH(AA8),1),CPI_Con_F!$D$18:$G$67,4,FALSE))) -> 1.529040789 | AB11: =AA11*(1+IF(OR(ISBLANK(VLOOKUP(DATE(YEAR(AB8),MONTH(AB8),1),CPI_Con_F!$D$18:$G$67,4,FALSE)),ISERROR(VLOOKUP(DATE(YEAR(AB8),MONTH(AB8),1),CPI_Con_F!$D$18:$G$67,4,FALSE))),General!$H$24,VLOOKUP(DATE(YEAR(AB8),MONTH(AB8),1),CPI_Con_F!$D$18:$G$67,4,FALSE))) -> 1.567266809 | AC11: =AB11*(1+IF(OR(ISBLANK(VLOOKUP(DATE(YEAR(AC8),MONTH(AC8),1),CPI_Con_F!$D$18:$G$67,4,FALSE)),ISERROR(VLOOKUP(DATE(YEAR(AC8),MONTH(AC8),1),CPI_Con_F!$D$18:$G$67,4,FALSE))),General!$H$24,VLOOKUP(DATE(YEAR(AC8),MONTH(AC8),1),CPI_Con_F!$D$18:$G$67,4,FALSE))) -> 1.606448479 | AD11: =AC11*(1+IF(OR(ISBLANK(VLOOKUP(DATE(YEAR(AD8),MONTH(AD8),1),CPI_Con_F!$D$18:$G$67,4,FALSE)),ISERROR(VLOOKUP(DATE(YEAR(AD8),MONTH(AD8),1),CPI_Con_F!$D$18:$G$67,4,FALSE))),General!$H$24,VLOOKUP(DATE(YEAR(AD8),MONTH(AD8),1),CPI_Con_F!$D$18:$G$67,4,FALSE))) -> 1.646609691 | AE11: =AD11*(1+IF(OR(ISBLANK(VLOOKUP(DATE(YEAR(AE8),MONTH(AE8),1),CPI_Con_F!$D$18:$G$67,4,FALSE)),ISERROR(VLOOKUP(DATE(YEAR(AE8),MONTH(AE8),1),CPI_Con_F!$D$18:$G$67,4,FALSE))),General!$H$24,VLOOKUP(DATE(YEAR(AE8),MONTH(AE8),1),CPI_Con_F!$D$18:$G$67,4,FALSE))) -> 1.687774933 | AF11: =AE11*(1+IF(OR(ISBLANK(VLOOKUP(DATE(YEAR(AF8),MONTH(AF8),1),CPI_Con_F!$D$18:$G$67,4,FALSE)),ISERROR(VLOOKUP(DATE(YEAR(AF8),MONTH(AF8),1),CPI_Con_F!$D$18:$G$67,4,FALSE))),General!$H$24,VLOOKUP(DATE(YEAR(AF8),MONTH(AF8),1),CPI_Con_F!$D$18:$G$67,4,FALSE))) -> 1.729969307 | AG11: =AF11*(1+IF(OR(ISBLANK(VLOOKUP(DATE(YEAR(AG8),MONTH(AG8),1),CPI_Con_F!$D$18:$G$67,4,FALSE)),ISERROR(VLOOKUP(DATE(YEAR(AG8),MONTH(AG8),1),CPI_Con_F!$D$18:$G$67,4,FALSE))),General!$H$24,VLOOKUP(DATE(YEAR(AG8),MONTH(AG8),1),CPI_Con_F!$D$18:$G$67,4,FALSE))) -> 1.77321854 | AH11: =AG11*(1+IF(OR(ISBLANK(VLOOKUP(DATE(YEAR(AH8),MONTH(AH8),1),CPI_Con_F!$D$18:$G$67,4,FALSE)),ISERROR(VLOOKUP(DATE(YEAR(AH8),MONTH(AH8),1),CPI_Con_F!$D$18:$G$67,4,FALSE))),General!$H$24,VLOOKUP(DATE(YEAR(AH8),MONTH(AH8),1),CPI_Con_F!$D$18:$G$67,4,FALSE))) -> 1.817549003 | AI11: =AH11*(1+IF(OR(ISBLANK(VLOOKUP(DATE(YEAR(AI8),MONTH(AI8),1),CPI_Con_F!$D$18:$G$67,4,FALSE)),ISERROR(VLOOKUP(DATE(YEAR(AI8),MONTH(AI8),1),CPI_Con_F!$D$18:$G$67,4,FALSE))),General!$H$24,VLOOKUP(DATE(YEAR(AI8),MONTH(AI8),1),CPI_Con_F!$D$18:$G$67,4,FALSE))) -> 1.862987728 | AJ11: =AI11*(1+IF(OR(ISBLANK(VLOOKUP(DATE(YEAR(AJ8),MONTH(AJ8),1),CPI_Con_F!$D$18:$G$67,4,FALSE)),ISERROR(VLOOKUP(DATE(YEAR(AJ8),MONTH(AJ8),1),CPI_Con_F!$D$18:$G$67,4,FALSE))),General!$H$24,VLOOKUP(DATE(YEAR(AJ8),MONTH(AJ8),1),CPI_Con_F!$D$18:$G$67,4,FALSE))) -> 1.909562421 | AK11: =AJ11*(1+IF(OR(ISBLANK(VLOOKUP(DATE(YEAR(AK8),MONTH(AK8),1),CPI_Con_F!$D$18:$G$67,4,FALSE)),ISERROR(VLOOKUP(DATE(YEAR(AK8),MONTH(AK8),1),CPI_Con_F!$D$18:$G$67,4,FALSE))),General!$H$24,VLOOKUP(DATE(YEAR(AK8),MONTH(AK8),1),CPI_Con_F!$D$18:$G$67,4,FALSE))) -> 1.957301482 | AL11: =AK11*(1+IF(OR(ISBLANK(VLOOKUP(DATE(YEAR(AL8),MONTH(AL8),1),CPI_Con_F!$D$18:$G$67,4,FALSE)),ISERROR(VLOOKUP(DATE(YEAR(AL8),MONTH(AL8),1),CPI_Con_F!$D$18:$G$67,4,FALSE))),General!$H$24,VLOOKUP(DATE(YEAR(AL8),MONTH(AL8),1),CPI_Con_F!$D$18:$G$67,4,FALSE))) -> 2.006234019 | AM11: =AL11*(1+IF(OR(ISBLANK(VLOOKUP(DATE(YEAR(AM8),MONTH(AM8),1),CPI_Con_F!$D$18:$G$67,4,FALSE)),ISERROR(VLOOKUP(DATE(YEAR(AM8),MONTH(AM8),1),CPI_Con_F!$D$18:$G$67,4,FALSE))),General!$H$24,VLOOKUP(DATE(YEAR(AM8),MONTH(AM8),1),CPI_Con_F!$D$18:$G$67,4,FALSE))) -> 2.056389869 | AN11: =AM11*(1+IF(OR(ISBLANK(VLOOKUP(DATE(YEAR(AN8),MONTH(AN8),1),CPI_Con_F!$D$18:$G$67,4,FALSE)),ISERROR(VLOOKUP(DATE(YEAR(AN8),MONTH(AN8),1),CPI_Con_F!$D$18:$G$67,4,FALSE))),General!$H$24,VLOOKUP(DATE(YEAR(AN8),MONTH(AN8),1),CPI_Con_F!$D$18:$G$67,4,FALSE))) -> 2.107799616 | AO11: =AN11*(1+IF(OR(ISBLANK(VLOOKUP(DATE(YEAR(AO8),MONTH(AO8),1),CPI_Con_F!$D$18:$G$67,4,FALSE)),ISERROR(VLOOKUP(DATE(YEAR(AO8),MONTH(AO8),1),CPI_Con_F!$D$18:$G$67,4,FALSE))),General!$H$24,VLOOKUP(DATE(YEAR(AO8),MONTH(AO8),1),CPI_Con_F!$D$18:$G$67,4,FALSE))) -> 2.160494606 | AP11: =AO11*(1+IF(OR(ISBLANK(VLOOKUP(DATE(YEAR(AP8),MONTH(AP8),1),CPI_Con_F!$D$18:$G$67,4,FALSE)),ISERROR(VLOOKUP(DATE(YEAR(AP8),MONTH(AP8),1),CPI_Con_F!$D$18:$G$67,4,FALSE))),General!$H$24,VLOOKUP(DATE(YEAR(AP8),MONTH(AP8),1),CPI_Con_F!$D$18:$G$67,4,FALSE))) -> 2.214506972 | AQ11: =AP11*(1+IF(OR(ISBLANK(VLOOKUP(DATE(YEAR(AQ8),MONTH(AQ8),1),CPI_Con_F!$D$18:$G$67,4,FALSE)),ISERROR(VLOOKUP(DATE(YEAR(AQ8),MONTH(AQ8),1),CPI_Con_F!$D$18:$G$67,4,FALSE))),General!$H$24,VLOOKUP(DATE(YEAR(AQ8),MONTH(AQ8),1),CPI_Con_F!$D$18:$G$67,4,FALSE))) -> 2.269869646 | AR11: =AQ11*(1+IF(OR(ISBLANK(VLOOKUP(DATE(YEAR(AR8),MONTH(AR8),1),CPI_Con_F!$D$18:$G$67,4,FALSE)),ISERROR(VLOOKUP(DATE(YEAR(AR8),MONTH(AR8),1),CPI_Con_F!$D$18:$G$67,4,FALSE))),General!$H$24,VLOOKUP(DATE(YEAR(AR8),MONTH(AR8),1),CPI_Con_F!$D$18:$G$67,4,FALSE))) -> 2.326616387 | AS11: =AR11*(1+IF(OR(ISBLANK(VLOOKUP(DATE(YEAR(AS8),MONTH(AS8),1),CPI_Con_F!$D$18:$G$67,4,FALSE)),ISERROR(VLOOKUP(DATE(YEAR(AS8),MONTH(AS8),1),CPI_Con_F!$D$18:$G$67,4,FALSE))),General!$H$24,VLOOKUP(DATE(YEAR(AS8),MONTH(AS8),1),CPI_Con_F!$D$18:$G$67,4,FALSE))) -> 2.384781797 | AT11: =AS11*(1+IF(OR(ISBLANK(VLOOKUP(DATE(YEAR(AT8),MONTH(AT8),1),CPI_Con_F!$D$18:$G$67,4,FALSE)),ISERROR(VLOOKUP(DATE(YEAR(AT8),MONTH(AT8),1),CPI_Con_F!$D$18:$G$67,4,FALSE))),General!$H$24,VLOOKUP(DATE(YEAR(AT8),MONTH(AT8),1),CPI_Con_F!$D$18:$G$67,4,FALSE))) -> 2.444401342 | AU11: =AT11*(1+IF(OR(ISBLANK(VLOOKUP(DATE(YEAR(AU8),MONTH(AU8),1),CPI_Con_F!$D$18:$G$67,4,FALSE)),ISERROR(VLOOKUP(DATE(YEAR(AU8),MONTH(AU8),1),CPI_Con_F!$D$18:$G$67,4,FALSE))),General!$H$24,VLOOKUP(DATE(YEAR(AU8),MONTH(AU8),1),CPI_Con_F!$D$18:$G$67,4,FALSE))) -> 2.505511375 | AV11: =AU11*(1+IF(OR(ISBLANK(VLOOKUP(DATE(YEAR(AV8),MONTH(AV8),1),CPI_Con_F!$D$18:$G$67,4,FALSE)),ISERROR(VLOOKUP(DATE(YEAR(AV8),MONTH(AV8),1),CPI_Con_F!$D$18:$G$67,4,FALSE))),General!$H$24,VLOOKUP(DATE(YEAR(AV8),MONTH(AV8),1),CPI_Con_F!$D$18:$G$67,4,FALSE))) -> 2.56814916 | AW11: =AV11*(1+IF(OR(ISBLANK(VLOOKUP(DATE(YEAR(AW8),MONTH(AW8),1),CPI_Con_F!$D$18:$G$67,4,FALSE)),ISERROR(VLOOKUP(DATE(YEAR(AW8),MONTH(AW8),1),CPI_Con_F!$D$18:$G$67,4,FALSE))),General!$H$24,VLOOKUP(DATE(YEAR(AW8),MONTH(AW8),1),CPI_Con_F!$D$18:$G$67,4,FALSE))) -> 2.632352889 | AX11: =AW11*(1+IF(OR(ISBLANK(VLOOKUP(DATE(YEAR(AX8),MONTH(AX8),1),CPI_Con_F!$D$18:$G$67,4,FALSE)),ISERROR(VLOOKUP(DATE(YEAR(AX8),MONTH(AX8),1),CPI_Con_F!$D$18:$G$67,4,FALSE))),General!$H$24,VLOOKUP(DATE(YEAR(AX8),MONTH(AX8),1),CPI_Con_F!$D$18:$G$67,4,FALSE))) -> 2.698161711 | AY11: =AX11*(1+IF(OR(ISBLANK(VLOOKUP(DATE(YEAR(AY8),MONTH(AY8),1),CPI_Con_F!$D$18:$G$67,4,FALSE)),ISERROR(VLOOKUP(DATE(YEAR(AY8),MONTH(AY8),1),CPI_Con_F!$D$18:$G$67,4,FALSE))),General!$H$24,VLOOKUP(DATE(YEAR(AY8),MONTH(AY8),1),CPI_Con_F!$D$18:$G$67,4,FALSE))) -> 2.765615754 | AZ11: =AY11*(1+IF(OR(ISBLANK(VLOOKUP(DATE(YEAR(AZ8),MONTH(AZ8),1),CPI_Con_F!$D$18:$G$67,4,FALSE)),ISERROR(VLOOKUP(DATE(YEAR(AZ8),MONTH(AZ8),1),CPI_Con_F!$D$18:$G$67,4,FALSE))),General!$H$24,VLOOKUP(DATE(YEAR(AZ8),MONTH(AZ8),1),CPI_Con_F!$D$18:$G$67,4,FALSE))) -> 2.834756147 | BA11: =AZ11*(1+IF(OR(ISBLANK(VLOOKUP(DATE(YEAR(BA8),MONTH(BA8),1),CPI_Con_F!$D$18:$G$67,4,FALSE)),ISERROR(VLOOKUP(DATE(YEAR(BA8),MONTH(BA8),1),CPI_Con_F!$D$18:$G$67,4,FALSE))),General!$H$24,VLOOKUP(DATE(YEAR(BA8),MONTH(BA8),1),CPI_Con_F!$D$18:$G$67,4,FALSE))) -> 2.905625051 | BB11: =BA11*(1+IF(OR(ISBLANK(VLOOKUP(DATE(YEAR(BB8),MONTH(BB8),1),CPI_Con_F!$D$18:$G$67,4,FALSE)),ISERROR(VLOOKUP(DATE(YEAR(BB8),MONTH(BB8),1),CPI_Con_F!$D$18:$G$67,4,FALSE))),General!$H$24,VLOOKUP(DATE(YEAR(BB8),MONTH(BB8),1),CPI_Con_F!$D$18:$G$67,4,FALSE))) -> 2.978265677 | BC11: =BB11*(1+IF(OR(ISBLANK(VLOOKUP(DATE(YEAR(BC8),MONTH(BC8),1),CPI_Con_F!$D$18:$G$67,4,FALSE)),ISERROR(VLOOKUP(DATE(YEAR(BC8),MONTH(BC8),1),CPI_Con_F!$D$18:$G$67,4,FALSE))),General!$H$24,VLOOKUP(DATE(YEAR(BC8),MONTH(BC8),1),CPI_Con_F!$D$18:$G$67,4,FALSE))) -> 3.052722319 | BD11: =BC11*(1+IF(OR(ISBLANK(VLOOKUP(DATE(YEAR(BD8),MONTH(BD8),1),CPI_Con_F!$D$18:$G$67,4,FALSE)),ISERROR(VLOOKUP(DATE(YEAR(BD8),MONTH(BD8),1),CPI_Con_F!$D$18:$G$67,4,FALSE))),General!$H$24,VLOOKUP(DATE(YEAR(BD8),MONTH(BD8),1),CPI_Con_F!$D$18:$G$67,4,FALSE))) -> 3.129040377 | BE11: =BD11*(1+IF(OR(ISBLANK(VLOOKUP(DATE(YEAR(BE8),MONTH(BE8),1),CPI_Con_F!$D$18:$G$67,4,FALSE)),ISERROR(VLOOKUP(DATE(YEAR(BE8),MONTH(BE8),1),CPI_Con_F!$D$18:$G$67,4,FALSE))),General!$H$24,VLOOKUP(DATE(YEAR(BE8),MONTH(BE8),1),CPI_Con_F!$D$18:$G$67,4,FALSE))) -> 3.207266387 | BF11: =BE11*(1+IF(OR(ISBLANK(VLOOKUP(DATE(YEAR(BF8),MONTH(BF8),1),CPI_Con_F!$D$18:$G$67,4,FALSE)),ISERROR(VLOOKUP(DATE(YEAR(BF8),MONTH(BF8),1),CPI_Con_F!$D$18:$G$67,4,FALSE))),General!$H$24,VLOOKUP(DATE(YEAR(BF8),MONTH(BF8),1),CPI_Con_F!$D$18:$G$67,4,FALSE))) -> 3.287448046 | BG11: =BF11*(1+IF(OR(ISBLANK(VLOOKUP(DATE(YEAR(BG8),MONTH(BG8),1),CPI_Con_F!$D$18:$G$67,4,FALSE)),ISERROR(VLOOKUP(DATE(YEAR(BG8),MONTH(BG8),1),CPI_Con_F!$D$18:$G$67,4,FALSE))),General!$H$24,VLOOKUP(DATE(YEAR(BG8),MONTH(BG8),1),CPI_Con_F!$D$18:$G$67,4,FALSE))) -> 3.369634248
B12: CPI Index (lagged) | J12: =IF(J9=1,1,I11) -> 1 | K12: 1 | L12: 1.03 | M12: 1.05575 | N12: 1.08214375 | O12: 1.109197344 | P12: 1.136927277 | Q12: 1.165350459 | R12: 1.194484221 | S12: 1.224346326 | T12: 1.254954984 | U12: 1.286328859 | V12: 1.318487081 | W12: 1.351449258 | X12: 1.385235489 | Y12: 1.419866376 | Z12: 1.455363036 | AA12: 1.491747111 | AB12: 1.529040789 | AC12: 1.567266809 | AD12: 1.606448479 | AE12: 1.646609691 | AF12: 1.687774933 | AG12: 1.729969307 | AH12: 1.77321854 | AI12: 1.817549003 | AJ12: 1.862987728 | AK12: 1.909562421 | AL12: 1.957301482 | AM12: 2.006234019 | AN12: 2.056389869 | AO12: 2.107799616 | AP12: 2.160494606 | AQ12: 2.214506972 | AR12: 2.269869646 | AS12: 2.326616387 | AT12: 2.384781797 | AU12: 2.444401342 | AV12: 2.505511375 | AW12: 2.56814916 | AX12: 2.632352889 | AY12: 2.698161711 | AZ12: 2.765615754 | BA12: 2.834756147 | BB12: 2.905625051 | BC12: 2.978265677 | BD12: 3.052722319 | BE12: 3.129040377 | BF12: 3.207266387 | BG12: 3.287448046
B13: Discount Index (pre tax) | J13: =(1+General!J32)^(J$9-1) -> 1 | K13: =(1+General!K32)^(K$9-1) -> 1.0556 | L13: =(1+General!L32)^(L$9-1) -> 1.11429136 | M13: =(1+General!M32)^(M$9-1) -> 1.17624596 | N13: =(1+General!N32)^(N$9-1) -> 1.241645235 | O13: =(1+General!O32)^(O$9-1) -> 1.31068071 | P13: =(1+General!P32)^(P$9-1) -> 1.383554558 | Q13: =(1+General!Q32)^(Q$9-1) -> 1.460480191 | R13: =(1+General!R32)^(R$9-1) -> 1.54168289 | S13: =(1+General!S32)^(S$9-1) -> 1.627400458 | T13: =(1+General!T32)^(T$9-1) -> 1.717883924 | U13: =(1+General!U32)^(U$9-1) -> 1.81339827 | V13: =(1+General!V32)^(V$9-1) -> 1.914223214 | W13: =(1+General!W32)^(W$9-1) -> 2.020654024 | X13: =(1+General!X32)^(X$9-1) -> 2.133002388 | Y13: =(1+General!Y32)^(Y$9-1) -> 2.251597321 | Z13: =(1+General!Z32)^(Z$9-1) -> 2.376786132 | AA13: =(1+General!AA32)^(AA$9-1) -> 2.508935441 | AB13: =(1+General!AB32)^(AB$9-1) -> 2.648432251 | AC13: =(1+General!AC32)^(AC$9-1) -> 2.795685084 | AD13: =(1+General!AD32)^(AD$9-1) -> 2.951125175 | AE13: =(1+General!AE32)^(AE$9-1) -> 3.115207735 | AF13: =(1+General!AF32)^(AF$9-1) -> 3.288413285 | AG13: =(1+General!AG32)^(AG$9-1) -> 3.471249064 | AH13: =(1+General!AH32)^(AH$9-1) -> 3.664250512 | AI13: =(1+General!AI32)^(AI$9-1) -> 3.86798284 | AJ13: =(1+General!AJ32)^(AJ$9-1) -> 4.083042686 | AK13: =(1+General!AK32)^(AK$9-1) -> 4.310059859 | AL13: =(1+General!AL32)^(AL$9-1) -> 4.549699187 | AM13: =(1+General!AM32)^(AM$9-1) -> 4.802662462 | AN13: =(1+General!AN32)^(AN$9-1) -> 5.069690495 | AO13: =(1+General!AO32)^(AO$9-1) -> 5.351565287 | AP13: =(1+General!AP32)^(AP$9-1) -> 5.649112317 | AQ13: =(1+General!AQ32)^(AQ$9-1) -> 5.963202961 | AR13: =(1+General!AR32)^(AR$9-1) -> 6.294757046 | AS13: =(1+General!AS32)^(AS$9-1) -> 6.644745538 | AT13: =(1+General!AT32)^(AT$9-1) -> 7.01419339 | AU13: =(1+General!AU32)^(AU$9-1) -> 7.404182542 | AV13: =(1+General!AV32)^(AV$9-1) -> 7.815855092 | AW13: =(1+General!AW32)^(AW$9-1) -> 8.250416635 | AX13: =(1+General!AX32)^(AX$9-1) -> 8.709139799 | AY13: =(1+General!AY32)^(AY$9-1) -> 9.193367972 | AZ13: =(1+General!AZ32)^(AZ$9-1) -> 9.704519232 | BA13: =(1+General!BA32)^(BA$9-1) -> 10.2440905 | BB13: =(1+General!BB32)^(BB$9-1) -> 10.81366193 | BC13: =(1+General!BC32)^(BC$9-1) -> 11.41490154 | BD13: =(1+General!BD32)^(BD$9-1) -> 12.04957006 | BE13: =(1+General!BE32)^(BE$9-1) -> 12.71952616 | BF13: =(1+General!BF32)^(BF$9-1) -> 13.42673181 | BG13: =(1+General!BG32)^(BG$9-1) -> 14.1732581
J16: ="FY "&RIGHT(J10,2) -> FY 24 | K16: FY 25 | L16: FY 26 | M16: FY 27 | N16: FY 28 | O16: FY 29 | P16: FY 30 | Q16: FY 31 | R16: FY 32 | S16: FY 33 | T16: FY 34 | U16: FY 35 | V16: FY 36 | W16: FY 37 | X16: FY 38 | Y16: FY 39 | Z16: FY 40 | AA16: FY 41 | AB16: FY 42 | AC16: FY 43 | AD16: FY 44 | AE16: FY 45 | AF16: FY 46 | AG16: FY 47 | AH16: FY 48 | AI16: FY 49 | AJ16: FY 50 | AK16: FY 51 | AL16: FY 52 | AM16: FY 53 | AN16: FY 54 | AO16: FY 55 | AP16: FY 56 | AQ16: FY 57 | AR16: FY 58 | AS16: FY 59 | AT16: FY 60 | AU16: FY 61 | AV16: FY 62 | AW16: FY 63 | AX16: FY 64 | AY16: FY 65 | AZ16: FY 66 | BA16: FY 67 | BB16: FY 68 | BC16: FY 69 | BD16: FY 70 | BE16: FY 71 | BF16: FY 72 | BG16: FY 73
B17: Summary | J17: =J9 -> 1 | K17: 2 | L17: 3 | M17: 4 | N17: 5 | O17: 6 | P17: 7 | Q17: 8 | R17: 9 | S17: 10 | T17: 11 | U17: 12 | V17: 13 | W17: 14 | X17: 15 | Y17: 16 | Z17: 17 | AA17: 18 | AB17: 19 | AC17: 20 | AD17: 21 | AE17: 22 | AF17: 23 | AG17: 24 | AH17: 25 | AI17: 26 | AJ17: 27 | AK17: 28 | AL17: 29 | AM17: 30 | AN17: 31 | AO17: 32 | AP17: 33 | AQ17: 34 | AR17: 35 | AS17: 36 | AT17: 37 | AU17: 38 | AV17: 39 | AW17: 40 | AX17: 41 | AY17: 42 | AZ17: 43 | BA17: 44 | BB17: 45 | BC17: 46 | BD17: 47 | BE17: 48 | BF17: 49 | BG17: 50
A19: To determine the highest value project | E19: Present Value Cost
F20: Capital Expenditure | H20: =SUM(J20:BG20) -> -23.0515359 | J20: =-(J46)*J11/J13 -> 0 | K20: 0 | L20: -2.842389445 | M20: -5.059988157 | N20: -3.126650507 | O20: -4.597393189 | P20: -2.358404494 | Q20: -5.066710109 | R20: 0 | S20: 0 | T20: 0 | U20: 0 | V20: 0 | W20: 0 | X20: 0 | Y20: 0 | Z20: 0 | AA20: 0 | AB20: 0 | AC20: 0 | AD20: 0 | AE20: 0 | AF20: 0 | AG20: 0 | AH20: 0 | AI20: 0 | AJ20: 0 | AK20: 0 | AL20: 0 | AM20: 0 | AN20: 0 | AO20: 0 | AP20: 0 | AQ20: 0 | AR20: 0 | AS20: 0 | AT20: 0 | AU20: 0 | AV20: 0 | AW20: 0 | AX20: 0 | AY20: 0 | AZ20: 0 | BA20: 0 | BB20: 0 | BC20: 0 | BD20: 0 | BE20: 0 | BF20: 0 | BG20: 0
F21: Operating Expenditure | H21: =SUM(J21:BG21) -> -3.427814355 | J21: =-J75*J11/J13 -> -0.34 | K21: 0 | L21: 0 | M21: -0.0275999354 | N21: -0.07593294088 | O21: -0.1040919213 | P21: -0.1457157062 | Q21: -0.1643920471 | R21: -0.2088249592 | S21: -0.2027714884 | T21: -0.1968934972 | U21: -0.1911858986 | V21: -0.1856437534 | W21: -0.1802622653 | X21: -0.1750367771 | Y21: -0.1699627667 | Z21: -0.165035843 | AA21: -0.1602517422 | AB21: -0.1556063242 | AC21: -0.1510955687 | AD21: -0.1467155721 | AE21: -0.1424625439 | AF21: -0.1383328036 | AG21: 0 | AH21: 0 | AI21: 0 | AJ21: 0 | AK21: 0 | AL21: 0 | AM21: 0 | AN21: 0 | AO21: 0 | AP21: 0 | AQ21: 0 | AR21: 0 | AS21: 0 | AT21: 0 | AU21: 0 | AV21: 0 | AW21: 0 | AX21: 0 | AY21: 0 | AZ21: 0 | BA21: 0 | BB21: 0 | BC21: 0 | BD21: 0 | BE21: 0 | BF21: 0 | BG21: 0
F22: Net Benefits | H22: =SUM(J22:BG22) -> 135.6455483 | J22: =(J106)*J11/J13 -> 0 | K22: 0.09146196487 | L22: 0.09054679371 | M22: 2.359866132 | N22: 3.799716915 | O22: 5.067260875 | P22: 5.97482807 | Q22: 6.378804294 | R22: 7.589829613 | S22: 7.524161427 | T22: 8.409025397 | U22: 8.442971415 | V22: 8.38005868 | W22: 8.137135418 | X22: 7.901254076 | Y22: 7.672210523 | Z22: 7.449806543 | AA22: 7.233849665 | AB22: 7.024153 | AC22: 6.820535075 | AD22: 6.622819677 | AE22: 6.430835704 | AF22: 6.244417011 | AG22: 0 | AH22: 0 | AI22: 0 | AJ22: 0 | AK22: 0 | AL22: 0 | AM22: 0 | AN22: 0 | AO22: 0 | AP22: 0 | AQ22: 0 | AR22: 0 | AS22: 0 | AT22: 0 | AU22: 0 | AV22: 0 | AW22: 0 | AX22: 0 | AY22: 0 | AZ22: 0 | BA22: 0 | BB22: 0 | BC22: 0 | BD22: 0 | BE22: 0 | BF22: 0 | BG22: 0
E23: Total Present Value | H23: =SUM(J23:BG23) -> 109.166198 | J23: =SUM(J20:J22) -> -0.34 | K23: =SUM(K20:K22) -> 0.09146196487 | L23: -2.751842651 | M23: =SUM(M20:M22) -> -2.72772196 | N23: 0.5971334673 | O23: 0.3657757641 | P23: 3.47070787 | Q23: 1.147702137 | R23: 7.381004654 | S23: 7.321389938 | T23: 8.2121319 | U23: 8.251785516 | V23: 8.194414926 | W23: 7.956873152 | X23: 7.726217299 | Y23: 7.502247757 | Z23: 7.2847707 | AA23: 7.073597923 | AB23: 6.868546675 | AC23: 6.669439506 | AD23: 6.476104105 | AE23: 6.28837316 | AF23: 6.106084207 | AG23: 0 | AH23: 0 | AI23: 0 | AJ23: 0 | AK23: 0 | AL23: 0 | AM23: 0 | AN23: 0 | AO23: 0 | AP23: 0 | AQ23: 0 | AR23: 0 | AS23: 0 | AT23: 0 | AU23: 0 | AV23: 0 | AW23: 0 | AX23: 0 | AY23: 0 | AZ23: 0 | BA23: 0 | BB23: 0 | BC23: 0 | BD23: 0 | BE23: 0 | BF23: 0 | BG23: 0
A25: To determine the capex & opex need for the EDPR period | E25: Undiscounted
F26: Capital Expenditure | H26: =SUM(J26:BG26) -> -23.295 | J26: =-(J60)*J$6 -> 0 | K26: =-(K60)*K$6 -> 0 | L26: 0 | M26: -5.5 | N26: -3.5 | O26: -5.3 | P26: =-(P60)*P$6 -> -2.8 | Q26: -6.195 | R26: 0 | S26: 0 | T26: 0 | U26: 0 | V26: 0 | W26: 0 | X26: 0 | Y26: 0 | Z26: 0 | AA26: 0 | AB26: 0 | AC26: 0 | AD26: 0 | AE26: 0 | AF26: 0 | AG26: 0 | AH26: 0 | AI26: 0 | AJ26: 0 | AK26: 0 | AL26: 0 | AM26: 0 | AN26: 0 | AO26: 0 | AP26: 0 | AQ26: 0 | AR26: 0 | AS26: 0 | AT26: 0 | AU26: 0 | AV26: 0 | AW26: 0 | AX26: 0 | AY26: 0 | AZ26: 0 | BA26: 0 | BB26: 0 | BC26: 0 | BD26: 0 | BE26: 0 | BF26: 0 | BG26: 0
F27: Operating Expenditure | H27: =SUM(J27:BG27) -> -0.609 | J27: =-J89*J$6 -> 0 | K27: =-K89*K$6 -> 0 | L27: 0 | M27: -0.03 | N27: -0.085 | O27: -0.12 | P27: -0.173 | Q27: -0.201 | R27: 0 | S27: 0 | T27: 0 | U27: 0 | V27: 0 | W27: 0 | X27: 0 | Y27: 0 | Z27: 0 | AA27: 0 | AB27: 0 | AC27: 0 | AD27: 0 | AE27: 0 | AF27: 0 | AG27: 0 | AH27: 0 | AI27: 0 | AJ27: 0 | AK27: 0 | AL27: 0 | AM27: 0 | AN27: 0 | AO27: 0 | AP27: 0 | AQ27: 0 | AR27: 0 | AS27: 0 | AT27: 0 | AU27: 0 | AV27: 0 | AW27: 0 | AX27: 0 | AY27: 0 | AZ27: 0 | BA27: 0 | BB27: 0 | BC27: 0 | BD27: 0 | BE27: 0 | BF27: 0 | BG27: 0
F28: Net Benefits | H28: =SUM(J28:BG28) -> 27.5530457 | J28: =(J122)*J$6 -> 0 | K28: =(K122)*K$6 -> 0 | L28: 0 | M28: 2.565077887 | N28: 4.253436441 | O28: 5.841676256 | P28: 7.093574762 | Q28: 7.799280351 | R28: 0 | S28: 0 | T28: 0 | U28: 0 | V28: 0 | W28: 0 | X28: 0 | Y28: 0 | Z28: 0 | AA28: 0 | AB28: 0 | AC28: 0 | AD28: 0 | AE28: 0 | AF28: 0 | AG28: 0 | AH28: 0 | AI28: 0 | AJ28: 0 | AK28: 0 | AL28: 0 | AM28: 0 | AN28: 0 | AO28: 0 | AP28: 0 | AQ28: 0 | AR28: 0 | AS28: 0 | AT28: 0 | AU28: 0 | AV28: 0 | AW28: 0 | AX28: 0 | AY28: 0 | AZ28: 0 | BA28: 0 | BB28: 0 | BC28: 0 | BD28: 0 | BE28: 0 | BF28: 0 | BG28: 0
E29: Undiscounted Total Value | H29: =SUM(J29:BG29) -> 3.649045697 | J29: =SUM(J26:J28) -> 0 | K29: =SUM(K26:K28) -> 0 | L29: 0 | M29: -2.964922113 | N29: 0.6684364406 | O29: 0.4216762564 | P29: 4.120574762 | Q29: 1.403280351 | R29: 0 | S29: 0 | T29: 0 | U29: 0 | V29: 0 | W29: 0 | X29: 0 | Y29: 0 | Z29: 0 | AA29: 0 | AB29: 0 | AC29: 0 | AD29: 0 | AE29: 0 | AF29: 0 | AG29: 0 | AH29: 0 | AI29: 0 | AJ29: 0 | AK29: 0 | AL29: 0 | AM29: 0 | AN29: 0 | AO29: 0 | AP29: 0 | AQ29: 0 | AR29: 0 | AS29: 0 | AT29: 0 | AU29: 0 | AV29: 0 | AW29: 0 | AX29: 0 | AY29: 0 | AZ29: 0 | BA29: 0 | BB29: 0 | BC29: 0 | BD29: 0 | BE29: 0 | BF29: 0 | BG29: 0
B32: Capital Expenditure
F35: Category | G35: Description (optional) | I35: Dollar Basis
F36: Option 1 | G36: =General!G10 -> Economic Approach to Voltage Compliance (PVR > 1.0) | L36: 3 | M36: 5.5 | N36: 3.5 | O36: 5.3 | P36: 2.8 | Q36: 6.195
F46: Total Direct Capex | J46: =SUM(J36:J45) -> 0 | K46: =SUM(K36:K45) -> 0 | L46: =SUM(L36:L45) -> 3 | M46: 5.5 | N46: 3.5 | O46: 5.3 | P46: 2.8 | Q46: =SUM(Q36:Q45) -> 6.195 | R46: 0 | S46: 0 | T46: 0 | U46: 0 | V46: 0 | W46: 0 | X46: 0 | Y46: 0 | Z46: 0 | AA46: 0 | AB46: 0 | AC46: 0 | AD46: 0 | AE46: 0 | AF46: 0 | AG46: 0 | AH46: 0 | AI46: 0 | AJ46: 0 | AK46: 0 | AL46: 0 | AM46: 0 | AN46: 0 | AO46: 0 | AP46: 0 | AQ46: 0 | AR46: 0 | AS46: 0 | AT46: 0 | AU46: 0 | AV46: 0 | AW46: 0 | AX46: 0 | AY46: 0 | AZ46: 0 | BA46: 0 | BB46: 0 | BC46: 0 | BD46: 0 | BE46: 0 | BF46: 0 | BG46: 0
G49: Dollar Basis for Conversion | H49: Conversion Factor
F50: =F36 -> Option 1 | G50: 2024-06-30 | H50: 1 | J50: =J36*$H50 -> 0 | K50: 0 | L50: 3 | M50: 5.5 | N50: 3.5 | O50: 5.3 | P50: 2.8 | Q50: 6.195 | R50: 0 | S50: 0 | T50: 0 | U50: 0 | V50: 0 | W50: 0 | X50: 0 | Y50: 0 | Z50: 0 | AA50: 0 | AB50: 0 | AC50: 0 | AD50: 0 | AE50: 0 | AF50: 0 | AG50: 0 | AH50: 0 | AI50: 0 | AJ50: 0 | AK50: 0 | AL50: 0 | AM50: 0 | AN50: 0 | AO50: 0 | AP50: 0 | AQ50: 0 | AR50: 0 | AS50: 0 | AT50: 0 | AU50: 0 | AV50: 0 | AW50: 0 | AX50: 0 | AY50: 0 | AZ50: 0 | BA50: 0 | BB50: 0 | BC50: 0 | BD50: 0 | BE50: 0 | BF50: 0 | BG50: 0
F60: Total Direct Capex | J60: =SUM(J50:J59) -> 0 | K60: =SUM(K50:K59) -> 0 | L60: 3 | M60: 5.5 | N60: 3.5 | O60: 5.3 | P60: 2.8 | Q60: 6.195 | R60: 0 | S60: 0 | T60: 0 | U60: 0 | V60: 0 | W60: 0 | X60: 0 | Y60: 0 | Z60: 0 | AA60: 0 | AB60: 0 | AC60: 0 | AD60: 0 | AE60: 0 | AF60: 0 | AG60: 0 | AH60: 0 | AI60: 0 | AJ60: 0 | AK60: 0 | AL60: 0 | AM60: 0 | AN60: 0 | AO60: 0 | AP60: 0 | AQ60: 0 | AR60: 0 | AS60: 0 | AT60: 0 | AU60: 0 | AV60: 0 | AW60: 0 | AX60: 0 | AY60: 0 | AZ60: 0 | BA60: 0 | BB60: 0 | BC60: 0 | BD60: 0 | BE60: 0 | BF60: 0 | BG60: 0
B62: Operating Expenditure (enter costs as positive numbers and savings as negative numbers)
F64: Category | G64: Description (optional) | I64: Dollar Basis
F65: =F36 -> Option 1 | G65: =G36 -> Economic Approach to Voltage Compliance (PVR > 1.0) | J65: 0.34 | K65: 0 | L65: 0 | M65: 0.03 | N65: 0.085 | O65: 0.12 | P65: 0.173 | Q65: 0.201 | R65: 0.26295 | S65: 0.26295 | T65: 0.26295 | U65: 0.26295 | V65: 0.26295 | W65: =V65 -> 0.26295 | X65: 0.26295 | Y65: 0.26295 | Z65: 0.26295 | AA65: 0.26295 | AB65: 0.26295 | AC65: 0.26295 | AD65: 0.26295 | AE65: 0.26295 | AF65: 0.26295
F75: Total Opex | J75: =SUM(J65:J74) -> 0.34 | K75: =SUM(K65:K74) -> 0 | L75: 0 | M75: 0.03 | N75: 0.085 | O75: 0.12 | P75: =SUM(P65:P74) -> 0.173 | Q75: 0.201 | R75: 0.26295 | S75: 0.26295 | T75: 0.26295 | U75: 0.26295 | V75: 0.26295 | W75: 0.26295 | X75: 0.26295 | Y75: 0.26295 | Z75: 0.26295 | AA75: 0.26295 | AB75: 0.26295 | AC75: 0.26295 | AD75: 0.26295 | AE75: 0.26295 | AF75: 0.26295 | AG75: 0 | AH75: 0 | AI75: 0 | AJ75: 0 | AK75: 0 | AL75: 0 | AM75: 0 | AN75: 0 | AO75: 0 | AP75: 0 | AQ75: 0 | AR75: 0 | AS75: 0 | AT75: 0 | AU75: 0 | AV75: 0 | AW75: 0 | AX75: 0 | AY75: 0 | AZ75: 0 | BA75: 0 | BB75: 0 | BC75: 0 | BD75: 0 | BE75: 0 | BF75: 0 | BG75: 0
F78: Category | G78: Dollar Basis for Conversion | H78: Conversion Factor
F79: =F65 -> Option 1 | G79: 2024-06-30 | H79: 1 | J79: =J65*$H79 -> 0.34 | K79: =K65*$H79 -> 0 | L79: =L65*$H79 -> 0 | M79: 0.03 | N79: 0.085 | O79: 0.12 | P79: 0.173 | Q79: =Q65*$H79 -> 0.201 | R79: 0.26295 | S79: 0.26295 | T79: 0.26295 | U79: 0.26295 | V79: 0.26295 | W79: 0.26295 | X79: 0.26295 | Y79: 0.26295 | Z79: 0.26295 | AA79: 0.26295 | AB79: 0.26295 | AC79: 0.26295 | AD79: 0.26295 | AE79: 0.26295 | AF79: 0.26295 | AG79: =AG65*$H79 -> 0 | AH79: 0 | AI79: 0 | AJ79: 0 | AK79: 0 | AL79: 0 | AM79: 0 | AN79: 0 | AO79: 0 | AP79: 0 | AQ79: 0 | AR79: 0 | AS79: 0 | AT79: 0 | AU79: 0 | AV79: 0 | AW79: 0 | AX79: 0 | AY79: 0 | AZ79: 0 | BA79: 0 | BB79: 0 | BC79: 0 | BD79: 0 | BE79: 0 | BF79: 0 | BG79: 0
F89: Total Opex | J89: =SUM(J79:J88) -> 0.34 | K89: =SUM(K79:K88) -> 0 | L89: 0 | M89: 0.03 | N89: 0.085 | O89: 0.12 | P89: =SUM(P79:P88) -> 0.173 | Q89: =SUM(Q79:Q88) -> 0.201 | R89: 0.26295 | S89: 0.26295 | T89: 0.26295 | U89: 0.26295 | V89: 0.26295 | W89: 0.26295 | X89: 0.26295 | Y89: 0.26295 | Z89: 0.26295 | AA89: 0.26295 | AB89: 0.26295 | AC89: 0.26295 | AD89: 0.26295 | AE89: 0.26295 | AF89: 0.26295 | AG89: 0 | AH89: 0 | AI89: 0 | AJ89: 0 | AK89: 0 | AL89: 0 | AM89: 0 | AN89: 0 | AO89: 0 | AP89: 0 | AQ89: 0 | AR89: 0 | AS89: 0 | AT89: 0 | AU89: 0 | AV89: 0 | AW89: 0 | AX89: 0 | AY89: 0 | AZ89: 0 | BA89: 0 | BB89: 0 | BC89: 0 | BD89: 0 | BE89: 0 | BF89: 0 | BG89: 0
B91: Benefits
F93: Category | G93: Description (optional) | I93: Dollar basis
F94: Voltage Compliance | G94: Safety/HigherConsumption/CECV | J94: 0 | K94: 0.09373519429 | L94: 0.09556761535 | M94: 2.565077887 | N94: 4.253436441 | O94: 5.841676256 | P94: 7.093574762 | Q94: 7.799280351 | R94: 9.557026634 | S94: 9.757181656 | T94: 11.23019937 | U94: 11.61215 | V94: 11.86970415 | W94: =V94 -> 11.86970415 | X94: 11.86970415 | Y94: 11.86970415 | Z94: 11.86970415 | AA94: 11.86970415 | AB94: 11.86970415 | AC94: 11.86970415 | AD94: 11.86970415 | AE94: 11.86970415 | AF94: 11.86970415
F106: Net Benefits | J106: =SUM(J94:J105) -> 0 | K106: =SUM(K94:K105) -> 0.09373519429 | L106: 0.09556761535 | M106: 2.565077887 | N106: 4.253436441 | O106: 5.841676256 | P106: 7.093574762 | Q106: 7.799280351 | R106: 9.557026634 | S106: 9.757181656 | T106: 11.23019937 | U106: 11.61215 | V106: 11.86970415 | W106: 11.86970415 | X106: 11.86970415 | Y106: 11.86970415 | Z106: 11.86970415 | AA106: 11.86970415 | AB106: 11.86970415 | AC106: 11.86970415 | AD106: 11.86970415 | AE106: 11.86970415 | AF106: 11.86970415 | AG106: 0 | AH106: 0 | AI106: 0 | AJ106: 0 | AK106: 0 | AL106: 0 | AM106: 0 | AN106: 0 | AO106: 0 | AP106: 0 | AQ106: 0 | AR106: 0 | AS106: 0 | AT106: 0 | AU106: 0 | AV106: 0 | AW106: 0 | AX106: 0 | AY106: 0 | AZ106: 0 | BA106: 0 | BB106: 0 | BC106: 0 | BD106: 0 | BE106: 0 | BF106: 0 | BG106: 0
F109: Category | G109: Dollar basis | H109: Conversion Factor
F110: =F94 -> Voltage Compliance | G110: 2024-06-30 | H110: 1 | J110: =J94*$H110 -> 0 | K110: =K94*$H110 -> 0.09373519429 | L110: 0.09556761535 | M110: =M94*$H110 -> 2.565077887 | N110: 4.253436441 | O110: 5.841676256 | P110: =P94*$H110 -> 7.093574762 | Q110: 7.799280351 | R110: 9.557026634 | S110: 9.757181656 | T110: 11.23019937 | U110: 11.61215 | V110: 11.86970415 | W110: 11.86970415 | X110: 11.86970415 | Y110: 11.86970415 | Z110: 11.86970415 | AA110: 11.86970415 | AB110: 11.86970415 | AC110: 11.86970415 | AD110: 11.86970415 | AE110: 11.86970415 | AF110: 11.86970415 | AG110: 0 | AH110: 0 | AI110: 0 | AJ110: 0 | AK110: 0 | AL110: 0 | AM110: 0 | AN110: 0 | AO110: 0 | AP110: 0 | AQ110: 0 | AR110: 0 | AS110: 0 | AT110: 0 | AU110: 0 | AV110: 0 | AW110: 0 | AX110: 0 | AY110: 0 | AZ110: 0 | BA110: 0 | BB110: 0 | BC110: 0 | BD110: 0 | BE110: 0 | BF110: 0 | BG110: 0
F122: Net Benefits | J122: =SUM(J110:J121) -> 0 | K122: =SUM(K110:K121) -> 0.09373519429 | L122: 0.09556761535 | M122: 2.565077887 | N122: 4.253436441 | O122: 5.841676256 | P122: 7.093574762 | Q122: 7.799280351 | R122: 9.557026634 | S122: 9.757181656 | T122: 11.23019937 | U122: 11.61215 | V122: 11.86970415 | W122: 11.86970415 | X122: 11.86970415 | Y122: 11.86970415 | Z122: 11.86970415 | AA122: 11.86970415 | AB122: 11.86970415 | AC122: 11.86970415 | AD122: 11.86970415 | AE122: 11.86970415 | AF122: 11.86970415 | AG122: 0 | AH122: 0 | AI122: 0 | AJ122: 0 | AK122: 0 | AL122: 0 | AM122: 0 | AN122: 0 | AO122: 0 | AP122: 0 | AQ122: 0 | AR122: 0 | AS122: 0 | AT122: 0 | AU122: 0 | AV122: 0 | AW122: 0 | AX122: 0 | AY122: 0 | AZ122: 0 | BA122: 0 | BB122: 0 | BC122: 0 | BD122: 0 | BE122: 0 | BF122: 0 | BG122: 0
A124: END OF INPUTS FOR THIS OPTION

Sheet Option2_Analysis
B1: Analysis: Option 2
B2: =Cover!$C$9 -> AusNet Services
B3: =Cover!$C$10 -> Business Case Evaluation
B4: =Cover!$C$11 -> Voltage Compliance
B6: Regulatory Period Indicator | J6: =IF(AND(J$7>=General!$H$20,J$8<=General!$H$21),1,0) -> 0 | K6: =IF(AND(K$7>=General!$H$20,K$8<=General!$H$21),1,0) -> 0 | L6: =IF(AND(L$7>=General!$H$20,L$8<=General!$H$21),1,0) -> 0 | M6: =IF(AND(M$7>=General!$H$20,M$8<=General!$H$21),1,0) -> 1 | N6: =IF(AND(N$7>=General!$H$20,N$8<=General!$H$21),1,0) -> 1 | O6: =IF(AND(O$7>=General!$H$20,O$8<=General!$H$21),1,0) -> 1 | P6: =IF(AND(P$7>=General!$H$20,P$8<=General!$H$21),1,0) -> 1 | Q6: =IF(AND(Q$7>=General!$H$20,Q$8<=General!$H$21),1,0) -> 1 | R6: =IF(AND(R$7>=General!$H$20,R$8<=General!$H$21),1,0) -> 0 | S6: =IF(AND(S$7>=General!$H$20,S$8<=General!$H$21),1,0) -> 0 | T6: =IF(AND(T$7>=General!$H$20,T$8<=General!$H$21),1,0) -> 0 | U6: =IF(AND(U$7>=General!$H$20,U$8<=General!$H$21),1,0) -> 0 | V6: =IF(AND(V$7>=General!$H$20,V$8<=General!$H$21),1,0) -> 0 | W6: =IF(AND(W$7>=General!$H$20,W$8<=General!$H$21),1,0) -> 0 | X6: =IF(AND(X$7>=General!$H$20,X$8<=General!$H$21),1,0) -> 0 | Y6: =IF(AND(Y$7>=General!$H$20,Y$8<=General!$H$21),1,0) -> 0 | Z6: =IF(AND(Z$7>=General!$H$20,Z$8<=General!$H$21),1,0) -> 0 | AA6: =IF(AND(AA$7>=General!$H$20,AA$8<=General!$H$21),1,0) -> 0 | AB6: =IF(AND(AB$7>=General!$H$20,AB$8<=General!$H$21),1,0) -> 0 | AC6: =IF(AND(AC$7>=General!$H$20,AC$8<=General!$H$21),1,0) -> 0 | AD6: =IF(AND(AD$7>=General!$H$20,AD$8<=General!$H$21),1,0) -> 0 | AE6: =IF(AND(AE$7>=General!$H$20,AE$8<=General!$H$21),1,0) -> 0 | AF6: =IF(AND(AF$7>=General!$H$20,AF$8<=General!$H$21),1,0) -> 0 | AG6: =IF(AND(AG$7>=General!$H$20,AG$8<=General!$H$21),1,0) -> 0 | AH6: =IF(AND(AH$7>=General!$H$20,AH$8<=General!$H$21),1,0) -> 0 | AI6: =IF(AND(AI$7>=General!$H$20,AI$8<=General!$H$21),1,0) -> 0 | AJ6: =IF(AND(AJ$7>=General!$H$20,AJ$8<=General!$H$21),1,0) -> 0 | AK6: =IF(AND(AK$7>=General!$H$20,AK$8<=General!$H$21),1,0) -> 0 | AL6: =IF(AND(AL$7>=General!$H$20,AL$8<=General!$H$21),1,0) -> 0 | AM6: =IF(AND(AM$7>=General!$H$20,AM$8<=General!$H$21),1,0) -> 0 | AN6: =IF(AND(AN$7>=General!$H$20,AN$8<=General!$H$21),1,0) -> 0 | AO6: =IF(AND(AO$7>=General!$H$20,AO$8<=General!$H$21),1,0) -> 0 | AP6: =IF(AND(AP$7>=General!$H$20,AP$8<=General!$H$21),1,0) -> 0 | AQ6: =IF(AND(AQ$7>=General!$H$20,AQ$8<=General!$H$21),1,0) -> 0 | AR6: =IF(AND(AR$7>=General!$H$20,AR$8<=General!$H$21),1,0) -> 0 | AS6: =IF(AND(AS$7>=General!$H$20,AS$8<=General!$H$21),1,0) -> 0 | AT6: =IF(AND(AT$7>=General!$H$20,AT$8<=General!$H$21),1,0) -> 0 | AU6: =IF(AND(AU$7>=General!$H$20,AU$8<=General!$H$21),1,0) -> 0 | AV6: =IF(AND(AV$7>=General!$H$20,AV$8<=General!$H$21),1,0) -> 0 | AW6: =IF(AND(AW$7>=General!$H$20,AW$8<=General!$H$21),1,0) -> 0 | AX6: =IF(AND(AX$7>=General!$H$20,AX$8<=General!$H$21),1,0) -> 0 | AY6: =IF(AND(AY$7>=General!$H$20,AY$8<=General!$H$21),1,0) -> 0 | AZ6: =IF(AND(AZ$7>=General!$H$20,AZ$8<=General!$H$21),1,0) -> 0 | BA6: =IF(AND(BA$7>=General!$H$20,BA$8<=General!$H$21),1,0) -> 0 | BB6: =IF(AND(BB$7>=General!$H$20,BB$8<=General!$H$21),1,0) -> 0 | BC6: =IF(AND(BC$7>=General!$H$20,BC$8<=General!$H$21),1,0) -> 0 | BD6: =IF(AND(BD$7>=General!$H$20,BD$8<=General!$H$21),1,0) -> 0 | BE6: =IF(AND(BE$7>=General!$H$20,BE$8<=General!$H$21),1,0) -> 0 | BF6: =IF(AND(BF$7>=General!$H$20,BF$8<=General!$H$21),1,0) -> 0 | BG6: =IF(AND(BG$7>=General!$H$20,BG$8<=General!$H$21),1,0) -> 0
B7: Period Start Date | J7: =EDATE(General!$H$18,(J9-1)*12) -> 2023-07-01 | K7: =EDATE(General!$H$18,(K9-1)*12) -> 2024-07-01 | L7: =EDATE(General!$H$18,(L9-1)*12) -> 2025-07-01 | M7: =EDATE(General!$H$18,(M9-1)*12) -> 2026-07-01 | N7: =EDATE(General!$H$18,(N9-1)*12) -> 2027-07-01 | O7: =EDATE(General!$H$18,(O9-1)*12) -> 2028-07-01 | P7: =EDATE(General!$H$18,(P9-1)*12) -> 2029-07-01 | Q7: =EDATE(General!$H$18,(Q9-1)*12) -> 2030-07-01 | R7: =EDATE(General!$H$18,(R9-1)*12) -> 2031-07-01 | S7: =EDATE(General!$H$18,(S9-1)*12) -> 2032-07-01 | T7: =EDATE(General!$H$18,(T9-1)*12) -> 2033-07-01 | U7: =EDATE(General!$H$18,(U9-1)*12) -> 2034-07-01 | V7: =EDATE(General!$H$18,(V9-1)*12) -> 2035-07-01 | W7: =EDATE(General!$H$18,(W9-1)*12) -> 2036-07-01 | X7: =EDATE(General!$H$18,(X9-1)*12) -> 2037-07-01 | Y7: =EDATE(General!$H$18,(Y9-1)*12) -> 2038-07-01 | Z7: =EDATE(General!$H$18,(Z9-1)*12) -> 2039-07-01 | AA7: =EDATE(General!$H$18,(AA9-1)*12) -> 2040-07-01 | AB7: =EDATE(General!$H$18,(AB9-1)*12) -> 2041-07-01 | AC7: =EDATE(General!$H$18,(AC9-1)*12) -> 2042-07-01 | AD7: =EDATE(General!$H$18,(AD9-1)*12) -> 2043-07-01 | AE7: =EDATE(General!$H$18,(AE9-1)*12) -> 2044-07-01 | AF7: =EDATE(General!$H$18,(AF9-1)*12) -> 2045-07-01 | AG7: =EDATE(General!$H$18,(AG9-1)*12) -> 2046-07-01 | AH7: =EDATE(General!$H$18,(AH9-1)*12) -> 2047-07-01 | AI7: =EDATE(General!$H$18,(AI9-1)*12) -> 2048-07-01 | AJ7: =EDATE(General!$H$18,(AJ9-1)*12) -> 2049-07-01 | AK7: =EDATE(General!$H$18,(AK9-1)*12) -> 2050-07-01 | AL7: =EDATE(General!$H$18,(AL9-1)*12) -> 2051-07-01 | AM7: =EDATE(General!$H$18,(AM9-1)*12) -> 2052-07-01 | AN7: =EDATE(General!$H$18,(AN9-1)*12) -> 2053-07-01 | AO7: =EDATE(General!$H$18,(AO9-1)*12) -> 2054-07-01 | AP7: =EDATE(General!$H$18,(AP9-1)*12) -> 2055-07-01 | AQ7: =EDATE(General!$H$18,(AQ9-1)*12) -> 2056-07-01 | AR7: =EDATE(General!$H$18,(AR9-1)*12) -> 2057-07-01 | AS7: =EDATE(General!$H$18,(AS9-1)*12) -> 2058-07-01 | AT7: =EDATE(General!$H$18,(AT9-1)*12) -> 2059-07-01 | AU7: =EDATE(General!$H$18,(AU9-1)*12) -> 2060-07-01 | AV7: =EDATE(General!$H$18,(AV9-1)*12) -> 2061-07-01 | AW7: =EDATE(General!$H$18,(AW9-1)*12) -> 2062-07-01 | AX7: =EDATE(General!$H$18,(AX9-1)*12) -> 2063-07-01 | AY7: =EDATE(General!$H$18,(AY9-1)*12) -> 2064-07-01 | AZ7: =EDATE(General!$H$18,(AZ9-1)*12) -> 2065-07-01 | BA7: =EDATE(General!$H$18,(BA9-1)*12) -> 2066-07-01 | BB7: =EDATE(General!$H$18,(BB9-1)*12) -> 2067-07-01 | BC7: =EDATE(General!$H$18,(BC9-1)*12) -> 2068-07-01 | BD7: =EDATE(General!$H$18,(BD9-1)*12) -> 2069-07-01 | BE7: =EDATE(General!$H$18,(BE9-1)*12) -> 2070-07-01 | BF7: =EDATE(General!$H$18,(BF9-1)*12) -> 2071-07-01 | BG7: =EDATE(General!$H$18,(BG9-1)*12) -> 2072-07-01
B8: Period End Date | J8: =EDATE(J7,12)-1 -> 2024-06-30 | K8: =EDATE(K7,12)-1 -> 2025-06-30 | L8: 2026-06-30 | M8: 2027-06-30 | N8: 2028-06-30 | O8: 2029-06-30 | P8: 2030-06-30 | Q8: 2031-06-30 | R8: 2032-06-30 | S8: 2033-06-30 | T8: 2034-06-30 | U8: 2035-06-30 | V8: 2036-06-30 | W8: 2037-06-30 | X8: 2038-06-30 | Y8: 2039-06-30 | Z8: 2040-06-30 | AA8: 2041-06-30 | AB8: 2042-06-30 | AC8: 2043-06-30 | AD8: 2044-06-30 | AE8: 2045-06-30 | AF8: 2046-06-30 | AG8: 2047-06-30 | AH8: 2048-06-30 | AI8: 2049-06-30 | AJ8: 2050-06-30 | AK8: 2051-06-30 | AL8: 2052-06-30 | AM8: 2053-06-30 | AN8: 2054-06-30 | AO8: 2055-06-30 | AP8: 2056-06-30 | AQ8: 2057-06-30 | AR8: 2058-06-30 | AS8: 2059-06-30 | AT8: 2060-06-30 | AU8: 2061-06-30 | AV8: 2062-06-30 | AW8: 2063-06-30 | AX8: 2064-06-30 | AY8: 2065-06-30 | AZ8: 2066-06-30 | BA8: 2067-06-30 | BB8: 2068-06-30 | BC8: 2069-06-30 | BD8: 2070-06-30 | BE8: 2071-06-30 | BF8: 2072-06-30 | BG8: 2073-06-30
B9: ="Project Year" -> Project Year | J9: =COLUMNS($J9:J9) -> 1 | K9: =COLUMNS($J9:K9) -> 2 | L9: =COLUMNS($J9:L9) -> 3 | M9: =COLUMNS($J9:M9) -> 4 | N9: =COLUMNS($J9:N9) -> 5 | O9: =COLUMNS($J9:O9) -> 6 | P9: =COLUMNS($J9:P9) -> 7 | Q9: =COLUMNS($J9:Q9) -> 8 | R9: =COLUMNS($J9:R9) -> 9 | S9: =COLUMNS($J9:S9) -> 10 | T9: =COLUMNS($J9:T9) -> 11 | U9: =COLUMNS($J9:U9) -> 12 | V9: =COLUMNS($J9:V9) -> 13 | W9: =COLUMNS($J9:W9) -> 14 | X9: =COLUMNS($J9:X9) -> 15 | Y9: =COLUMNS($J9:Y9) -> 16 | Z9: =COLUMNS($J9:Z9) -> 17 | AA9: =COLUMNS($J9:AA9) -> 18 | AB9: =COLUMNS($J9:AB9) -> 19 | AC9: =COLUMNS($J9:AC9) -> 20 | AD9: =COLUMNS($J9:AD9) -> 21 | AE9: =COLUMNS($J9:AE9) -> 22 | AF9: =COLUMNS($J9:AF9) -> 23 | AG9: =COLUMNS($J9:AG9) -> 24 | AH9: =COLUMNS($J9:AH9) -> 25 | AI9: =COLUMNS($J9:AI9) -> 26 | AJ9: =COLUMNS($J9:AJ9) -> 27 | AK9: =COLUMNS($J9:AK9) -> 28 | AL9: =COLUMNS($J9:AL9) -> 29 | AM9: =COLUMNS($J9:AM9) -> 30 | AN9: =COLUMNS($J9:AN9) -> 31 | AO9: =COLUMNS($J9:AO9) -> 32 | AP9: =COLUMNS($J9:AP9) -> 33 | AQ9: =COLUMNS($J9:AQ9) -> 34 | AR9: =COLUMNS($J9:AR9) -> 35 | AS9: =COLUMNS($J9:AS9) -> 36 | AT9: =COLUMNS($J9:AT9) -> 37 | AU9: =COLUMNS($J9:AU9) -> 38 | AV9: =COLUMNS($J9:AV9) -> 39 | AW9: =COLUMNS($J9:AW9) -> 40 | AX9: =COLUMNS($J9:AX9) -> 41 | AY9: =COLUMNS($J9:AY9) -> 42 | AZ9: =COLUMNS($J9:AZ9) -> 43 | BA9: =COLUMNS($J9:BA9) -> 44 | BB9: =COLUMNS($J9:BB9) -> 45 | BC9: =COLUMNS($J9:BC9) -> 46 | BD9: =COLUMNS($J9:BD9) -> 47 | BE9: =COLUMNS($J9:BE9) -> 48 | BF9: =COLUMNS($J9:BF9) -> 49 | BG9: =COLUMNS($J9:BG9) -> 50
B10: Financial Year | J10: =YEAR(J8) -> 2024 | K10: =YEAR(K8) -> 2025 | L10: 2026 | M10: 2027 | N10: 2028 | O10: 2029 | P10: 2030 | Q10: 2031 | R10: 2032 | S10: 2033 | T10: 2034 | U10: 2035 | V10: 2036 | W10: 2037 | X10: 2038 | Y10: 2039 | Z10: 2040 | AA10: 2041 | AB10: 2042 | AC10: 2043 | AD10: 2044 | AE10: 2045 | AF10: 2046 | AG10: 2047 | AH10: 2048 | AI10: 2049 | AJ10: 2050 | AK10: 2051 | AL10: 2052 | AM10: 2053 | AN10: 2054 | AO10: 2055 | AP10: 2056 | AQ10: 2057 | AR10: 2058 | AS10: 2059 | AT10: 2060 | AU10: 2061 | AV10: 2062 | AW10: 2063 | AX10: 2064 | AY10: 2065 | AZ10: 2066 | BA10: 2067 | BB10: 2068 | BC10: 2069 | BD10: 2070 | BE10: 2071 | BF10: 2072 | BG10: 2073
B11: CPI index | J11: 1 | K11: =J11*(1+IF(OR(ISBLANK(VLOOKUP(DATE(YEAR(K8),MONTH(K8),1),CPI_Con_F!$D$18:$G$67,4,FALSE)),ISERROR(VLOOKUP(DATE(YEAR(K8),MONTH(K8),1),CPI_Con_F!$D$18:$G$67,4,FALSE))),General!$H$24,VLOOKUP(DATE(YEAR(K8),MONTH(K8),1),CPI_Con_F!$D$18:$G$67,4,FALSE))) -> 1.03 | L11: =K11*(1+IF(OR(ISBLANK(VLOOKUP(DATE(YEAR(L8),MONTH(L8),1),CPI_Con_F!$D$18:$G$67,4,FALSE)),ISERROR(VLOOKUP(DATE(YEAR(L8),MONTH(L8),1),CPI_Con_F!$D$18:$G$67,4,FALSE))),General!$H$24,VLOOKUP(DATE(YEAR(L8),MONTH(L8),1),CPI_Con_F!$D$18:$G$67,4,FALSE))) -> 1.05575 | M11: =L11*(1+IF(OR(ISBLANK(VLOOKUP(DATE(YEAR(M8),MONTH(M8),1),CPI_Con_F!$D$18:$G$67,4,FALSE)),ISERROR(VLOOKUP(DATE(YEAR(M8),MONTH(M8),1),CPI_Con_F!$D$18:$G$67,4,FALSE))),General!$H$24,VLOOKUP(DATE(YEAR(M8),MONTH(M8),1),CPI_Con_F!$D$18:$G$67,4,FALSE))) -> 1.08214375 | N11: =M11*(1+IF(OR(ISBLANK(VLOOKUP(DATE(YEAR(N8),MONTH(N8),1),CPI_Con_F!$D$18:$G$67,4,FALSE)),ISERROR(VLOOKUP(DATE(YEAR(N8),MONTH(N8),1),CPI_Con_F!$D$18:$G$67,4,FALSE))),General!$H$24,VLOOKUP(DATE(YEAR(N8),MONTH(N8),1),CPI_Con_F!$D$18:$G$67,4,FALSE))) -> 1.109197344 | O11: =N11*(1+IF(OR(ISBLANK(VLOOKUP(DATE(YEAR(O8),MONTH(O8),1),CPI_Con_F!$D$18:$G$67,4,FALSE)),ISERROR(VLOOKUP(DATE(YEAR(O8),MONTH(O8),1),CPI_Con_F!$D$18:$G$67,4,FALSE))),General!$H$24,VLOOKUP(DATE(YEAR(O8),MONTH(O8),1),CPI_Con_F!$D$18:$G$67,4,FALSE))) -> 1.136927277 | P11: =O11*(1+IF(OR(ISBLANK(VLOOKUP(DATE(YEAR(P8),MONTH(P8),1),CPI_Con_F!$D$18:$G$67,4,FALSE)),ISERROR(VLOOKUP(DATE(YEAR(P8),MONTH(P8),1),CPI_Con_F!$D$18:$G$67,4,FALSE))),General!$H$24,VLOOKUP(DATE(YEAR(P8),MONTH(P8),1),CPI_Con_F!$D$18:$G$67,4,FALSE))) -> 1.165350459 | Q11: =P11*(1+IF(OR(ISBLANK(VLOOKUP(DATE(YEAR(Q8),MONTH(Q8),1),CPI_Con_F!$D$18:$G$67,4,FALSE)),ISERROR(VLOOKUP(DATE(YEAR(Q8),MONTH(Q8),1),CPI_Con_F!$D$18:$G$67,4,FALSE))),General!$H$24,VLOOKUP(DATE(YEAR(Q8),MONTH(Q8),1),CPI_Con_F!$D$18:$G$67,4,FALSE))) -> 1.194484221 | R11: =Q11*(1+IF(OR(ISBLANK(VLOOKUP(DATE(YEAR(R8),MONTH(R8),1),CPI_Con_F!$D$18:$G$67,4,FALSE)),ISERROR(VLOOKUP(DATE(YEAR(R8),MONTH(R8),1),CPI_Con_F!$D$18:$G$67,4,FALSE))),General!$H$24,VLOOKUP(DATE(YEAR(R8),MONTH(R8),1),CPI_Con_F!$D$18:$G$67,4,FALSE))) -> 1.224346326 | S11: =R11*(1+IF(OR(ISBLANK(VLOOKUP(DATE(YEAR(S8),MONTH(S8),1),CPI_Con_F!$D$18:$G$67,4,FALSE)),ISERROR(VLOOKUP(DATE(YEAR(S8),MONTH(S8),1),CPI_Con_F!$D$18:$G$67,4,FALSE))),General!$H$24,VLOOKUP(DATE(YEAR(S8),MONTH(S8),1),CPI_Con_F!$D$18:$G$67,4,FALSE))) -> 1.254954984 | T11: =S11*(1+IF(OR(ISBLANK(VLOOKUP(DATE(YEAR(T8),MONTH(T8),1),CPI_Con_F!$D$18:$G$67,4,FALSE)),ISERROR(VLOOKUP(DATE(YEAR(T8),MONTH(T8),1),CPI_Con_F!$D$18:$G$67,4,FALSE))),General!$H$24,VLOOKUP(DATE(YEAR(T8),MONTH(T8),1),CPI_Con_F!$D$18:$G$67,4,FALSE))) -> 1.286328859 | U11: =T11*(1+IF(OR(ISBLANK(VLOOKUP(DATE(YEAR(U8),MONTH(U8),1),CPI_Con_F!$D$18:$G$67,4,FALSE)),ISERROR(VLOOKUP(DATE(YEAR(U8),MONTH(U8),1),CPI_Con_F!$D$18:$G$67,4,FALSE))),General!$H$24,VLOOKUP(DATE(YEAR(U8),MONTH(U8),1),CPI_Con_F!$D$18:$G$67,4,FALSE))) -> 1.318487081 | V11: =U11*(1+IF(OR(ISBLANK(VLOOKUP(DATE(YEAR(V8),MONTH(V8),1),CPI_Con_F!$D$18:$G$67,4,FALSE)),ISERROR(VLOOKUP(DATE(YEAR(V8),MONTH(V8),1),CPI_Con_F!$D$18:$G$67,4,FALSE))),General!$H$24,VLOOKUP(DATE(YEAR(V8),MONTH(V8),1),CPI_Con_F!$D$18:$G$67,4,FALSE))) -> 1.351449258 | W11: =V11*(1+IF(OR(ISBLANK(VLOOKUP(DATE(YEAR(W8),MONTH(W8),1),CPI_Con_F!$D$18:$G$67,4,FALSE)),ISERROR(VLOOKUP(DATE(YEAR(W8),MONTH(W8),1),CPI_Con_F!$D$18:$G$67,4,FALSE))),General!$H$24,VLOOKUP(DATE(YEAR(W8),MONTH(W8),1),CPI_Con_F!$D$18:$G$67,4,FALSE))) -> 1.385235489 | X11: =W11*(1+IF(OR(ISBLANK(VLOOKUP(DATE(YEAR(X8),MONTH(X8),1),CPI_Con_F!$D$18:$G$67,4,FALSE)),ISERROR(VLOOKUP(DATE(YEAR(X8),MONTH(X8),1),CPI_Con_F!$D$18:$G$67,4,FALSE))),General!$H$24,VLOOKUP(DATE(YEAR(X8),MONTH(X8),1),CPI_Con_F!$D$18:$G$67,4,FALSE))) -> 1.419866376 | Y11: =X11*(1+IF(OR(ISBLANK(VLOOKUP(DATE(YEAR(Y8),MONTH(Y8),1),CPI_Con_F!$D$18:$G$67,4,FALSE)),ISERROR(VLOOKUP(DATE(YEAR(Y8),MONTH(Y8),1),CPI_Con_F!$D$18:$G$67,4,FALSE))),General!$H$24,VLOOKUP(DATE(YEAR(Y8),MONTH(Y8),1),CPI_Con_F!$D$18:$G$67,4,FALSE))) -> 1.455363036 | Z11: =Y11*(1+IF(OR(ISBLANK(VLOOKUP(DATE(YEAR(Z8),MONTH(Z8),1),CPI_Con_F!$D$18:$G$67,4,FALSE)),ISERROR(VLOOKUP(DATE(YEAR(Z8),MONTH(Z8),1),CPI_Con_F!$D$18:$G$67,4,FALSE))),General!$H$24,VLOOKUP(DATE(YEAR(Z8),MONTH(Z8),1),CPI_Con_F!$D$18:$G$67,4,FALSE))) -> 1.491747111 | AA11: =Z11*(1+IF(OR(ISBLANK(VLOOKUP(DATE(YEAR(AA8),MONTH(AA8),1),CPI_Con_F!$D$18:$G$67,4,FALSE)),ISERROR(VLOOKUP(DATE(YEAR(AA8),MONTH(AA8),1),CPI_Con_F!$D$18:$G$67,4,FALSE))),General!$H$24,VLOOKUP(DATE(YEAR(AA8),MONTH(AA8),1),CPI_Con_F!$D$18:$G$67,4,FALSE))) -> 1.529040789 | AB11: =AA11*(1+IF(OR(ISBLANK(VLOOKUP(DATE(YEAR(AB8),MONTH(AB8),1),CPI_Con_F!$D$18:$G$67,4,FALSE)),ISERROR(VLOOKUP(DATE(YEAR(AB8),MONTH(AB8),1),CPI_Con_F!$D$18:$G$67,4,FALSE))),General!$H$24,VLOOKUP(DATE(YEAR(AB8),MONTH(AB8),1),CPI_Con_F!$D$18:$G$67,4,FALSE))) -> 1.567266809 | AC11: =AB11*(1+IF(OR(ISBLANK(VLOOKUP(DATE(YEAR(AC8),MONTH(AC8),1),CPI_Con_F!$D$18:$G$67,4,FALSE)),ISERROR(VLOOKUP(DATE(YEAR(AC8),MONTH(AC8),1),CPI_Con_F!$D$18:$G$67,4,FALSE))),General!$H$24,VLOOKUP(DATE(YEAR(AC8),MONTH(AC8),1),CPI_Con_F!$D$18:$G$67,4,FALSE))) -> 1.606448479 | AD11: =AC11*(1+IF(OR(ISBLANK(VLOOKUP(DATE(YEAR(AD8),MONTH(AD8),1),CPI_Con_F!$D$18:$G$67,4,FALSE)),ISERROR(VLOOKUP(DATE(YEAR(AD8),MONTH(AD8),1),CPI_Con_F!$D$18:$G$67,4,FALSE))),General!$H$24,VLOOKUP(DATE(YEAR(AD8),MONTH(AD8),1),CPI_Con_F!$D$18:$G$67,4,FALSE))) -> 1.646609691 | AE11: =AD11*(1+IF(OR(ISBLANK(VLOOKUP(DATE(YEAR(AE8),MONTH(AE8),1),CPI_Con_F!$D$18:$G$67,4,FALSE)),ISERROR(VLOOKUP(DATE(YEAR(AE8),MONTH(AE8),1),CPI_Con_F!$D$18:$G$67,4,FALSE))),General!$H$24,VLOOKUP(DATE(YEAR(AE8),MONTH(AE8),1),CPI_Con_F!$D$18:$G$67,4,FALSE))) -> 1.687774933 | AF11: =AE11*(1+IF(OR(ISBLANK(VLOOKUP(DATE(YEAR(AF8),MONTH(AF8),1),CPI_Con_F!$D$18:$G$67,4,FALSE)),ISERROR(VLOOKUP(DATE(YEAR(AF8),MONTH(AF8),1),CPI_Con_F!$D$18:$G$67,4,FALSE))),General!$H$24,VLOOKUP(DATE(YEAR(AF8),MONTH(AF8),1),CPI_Con_F!$D$18:$G$67,4,FALSE))) -> 1.729969307 | AG11: =AF11*(1+IF(OR(ISBLANK(VLOOKUP(DATE(YEAR(AG8),MONTH(AG8),1),CPI_Con_F!$D$18:$G$67,4,FALSE)),ISERROR(VLOOKUP(DATE(YEAR(AG8),MONTH(AG8),1),CPI_Con_F!$D$18:$G$67,4,FALSE))),General!$H$24,VLOOKUP(DATE(YEAR(AG8),MONTH(AG8),1),CPI_Con_F!$D$18:$G$67,4,FALSE))) -> 1.77321854 | AH11: =AG11*(1+IF(OR(ISBLANK(VLOOKUP(DATE(YEAR(AH8),MONTH(AH8),1),CPI_Con_F!$D$18:$G$67,4,FALSE)),ISERROR(VLOOKUP(DATE(YEAR(AH8),MONTH(AH8),1),CPI_Con_F!$D$18:$G$67,4,FALSE))),General!$H$24,VLOOKUP(DATE(YEAR(AH8),MONTH(AH8),1),CPI_Con_F!$D$18:$G$67,4,FALSE))) -> 1.817549003 | AI11: =AH11*(1+IF(OR(ISBLANK(VLOOKUP(DATE(YEAR(AI8),MONTH(AI8),1),CPI_Con_F!$D$18:$G$67,4,FALSE)),ISERROR(VLOOKUP(DATE(YEAR(AI8),MONTH(AI8),1),CPI_Con_F!$D$18:$G$67,4,FALSE))),General!$H$24,VLOOKUP(DATE(YEAR(AI8),MONTH(AI8),1),CPI_Con_F!$D$18:$G$67,4,FALSE))) -> 1.862987728 | AJ11: =AI11*(1+IF(OR(ISBLANK(VLOOKUP(DATE(YEAR(AJ8),MONTH(AJ8),1),CPI_Con_F!$D$18:$G$67,4,FALSE)),ISERROR(VLOOKUP(DATE(YEAR(AJ8),MONTH(AJ8),1),CPI_Con_F!$D$18:$G$67,4,FALSE))),General!$H$24,VLOOKUP(DATE(YEAR(AJ8),MONTH(AJ8),1),CPI_Con_F!$D$18:$G$67,4,FALSE))) -> 1.909562421 | AK11: =AJ11*(1+IF(OR(ISBLANK(VLOOKUP(DATE(YEAR(AK8),MONTH(AK8),1),CPI_Con_F!$D$18:$G$67,4,FALSE)),ISERROR(VLOOKUP(DATE(YEAR(AK8),MONTH(AK8),1),CPI_Con_F!$D$18:$G$67,4,FALSE))),General!$H$24,VLOOKUP(DATE(YEAR(AK8),MONTH(AK8),1),CPI_Con_F!$D$18:$G$67,4,FALSE))) -> 1.957301482 | AL11: =AK11*(1+IF(OR(ISBLANK(VLOOKUP(DATE(YEAR(AL8),MONTH(AL8),1),CPI_Con_F!$D$18:$G$67,4,FALSE)),ISERROR(VLOOKUP(DATE(YEAR(AL8),MONTH(AL8),1),CPI_Con_F!$D$18:$G$67,4,FALSE))),General!$H$24,VLOOKUP(DATE(YEAR(AL8),MONTH(AL8),1),CPI_Con_F!$D$18:$G$67,4,FALSE))) -> 2.006234019 | AM11: =AL11*(1+IF(OR(ISBLANK(VLOOKUP(DATE(YEAR(AM8),MONTH(AM8),1),CPI_Con_F!$D$18:$G$67,4,FALSE)),ISERROR(VLOOKUP(DATE(YEAR(AM8),MONTH(AM8),1),CPI_Con_F!$D$18:$G$67,4,FALSE))),General!$H$24,VLOOKUP(DATE(YEAR(AM8),MONTH(AM8),1),CPI_Con_F!$D$18:$G$67,4,FALSE))) -> 2.056389869 | AN11: =AM11*(1+IF(OR(ISBLANK(VLOOKUP(DATE(YEAR(AN8),MONTH(AN8),1),CPI_Con_F!$D$18:$G$67,4,FALSE)),ISERROR(VLOOKUP(DATE(YEAR(AN8),MONTH(AN8),1),CPI_Con_F!$D$18:$G$67,4,FALSE))),General!$H$24,VLOOKUP(DATE(YEAR(AN8),MONTH(AN8),1),CPI_Con_F!$D$18:$G$67,4,FALSE))) -> 2.107799616 | AO11: =AN11*(1+IF(OR(ISBLANK(VLOOKUP(DATE(YEAR(AO8),MONTH(AO8),1),CPI_Con_F!$D$18:$G$67,4,FALSE)),ISERROR(VLOOKUP(DATE(YEAR(AO8),MONTH(AO8),1),CPI_Con_F!$D$18:$G$67,4,FALSE))),General!$H$24,VLOOKUP(DATE(YEAR(AO8),MONTH(AO8),1),CPI_Con_F!$D$18:$G$67,4,FALSE))) -> 2.160494606 | AP11: =AO11*(1+IF(OR(ISBLANK(VLOOKUP(DATE(YEAR(AP8),MONTH(AP8),1),CPI_Con_F!$D$18:$G$67,4,FALSE)),ISERROR(VLOOKUP(DATE(YEAR(AP8),MONTH(AP8),1),CPI_Con_F!$D$18:$G$67,4,FALSE))),General!$H$24,VLOOKUP(DATE(YEAR(AP8),MONTH(AP8),1),CPI_Con_F!$D$18:$G$67,4,FALSE))) -> 2.214506972 | AQ11: =AP11*(1+IF(OR(ISBLANK(VLOOKUP(DATE(YEAR(AQ8),MONTH(AQ8),1),CPI_Con_F!$D$18:$G$67,4,FALSE)),ISERROR(VLOOKUP(DATE(YEAR(AQ8),MONTH(AQ8),1),CPI_Con_F!$D$18:$G$67,4,FALSE))),General!$H$24,VLOOKUP(DATE(YEAR(AQ8),MONTH(AQ8),1),CPI_Con_F!$D$18:$G$67,4,FALSE))) -> 2.269869646 | AR11: =AQ11*(1+IF(OR(ISBLANK(VLOOKUP(DATE(YEAR(AR8),MONTH(AR8),1),CPI_Con_F!$D$18:$G$67,4,FALSE)),ISERROR(VLOOKUP(DATE(YEAR(AR8),MONTH(AR8),1),CPI_Con_F!$D$18:$G$67,4,FALSE))),General!$H$24,VLOOKUP(DATE(YEAR(AR8),MONTH(AR8),1),CPI_Con_F!$D$18:$G$67,4,FALSE))) -> 2.326616387 | AS11: =AR11*(1+IF(OR(ISBLANK(VLOOKUP(DATE(YEAR(AS8),MONTH(AS8),1),CPI_Con_F!$D$18:$G$67,4,FALSE)),ISERROR(VLOOKUP(DATE(YEAR(AS8),MONTH(AS8),1),CPI_Con_F!$D$18:$G$67,4,FALSE))),General!$H$24,VLOOKUP(DATE(YEAR(AS8),MONTH(AS8),1),CPI_Con_F!$D$18:$G$67,4,FALSE))) -> 2.384781797 | AT11: =AS11*(1+IF(OR(ISBLANK(VLOOKUP(DATE(YEAR(AT8),MONTH(AT8),1),CPI_Con_F!$D$18:$G$67,4,FALSE)),ISERROR(VLOOKUP(DATE(YEAR(AT8),MONTH(AT8),1),CPI_Con_F!$D$18:$G$67,4,FALSE))),General!$H$24,VLOOKUP(DATE(YEAR(AT8),MONTH(AT8),1),CPI_Con_F!$D$18:$G$67,4,FALSE))) -> 2.444401342 | AU11: =AT11*(1+IF(OR(ISBLANK(VLOOKUP(DATE(YEAR(AU8),MONTH(AU8),1),CPI_Con_F!$D$18:$G$67,4,FALSE)),ISERROR(VLOOKUP(DATE(YEAR(AU8),MONTH(AU8),1),CPI_Con_F!$D$18:$G$67,4,FALSE))),General!$H$24,VLOOKUP(DATE(YEAR(AU8),MONTH(AU8),1),CPI_Con_F!$D$18:$G$67,4,FALSE))) -> 2.505511375 | AV11: =AU11*(1+IF(OR(ISBLANK(VLOOKUP(DATE(YEAR(AV8),MONTH(AV8),1),CPI_Con_F!$D$18:$G$67,4,FALSE)),ISERROR(VLOOKUP(DATE(YEAR(AV8),MONTH(AV8),1),CPI_Con_F!$D$18:$G$67,4,FALSE))),General!$H$24,VLOOKUP(DATE(YEAR(AV8),MONTH(AV8),1),CPI_Con_F!$D$18:$G$67,4,FALSE))) -> 2.56814916 | AW11: =AV11*(1+IF(OR(ISBLANK(VLOOKUP(DATE(YEAR(AW8),MONTH(AW8),1),CPI_Con_F!$D$18:$G$67,4,FALSE)),ISERROR(VLOOKUP(DATE(YEAR(AW8),MONTH(AW8),1),CPI_Con_F!$D$18:$G$67,4,FALSE))),General!$H$24,VLOOKUP(DATE(YEAR(AW8),MONTH(AW8),1),CPI_Con_F!$D$18:$G$67,4,FALSE))) -> 2.632352889 | AX11: =AW11*(1+IF(OR(ISBLANK(VLOOKUP(DATE(YEAR(AX8),MONTH(AX8),1),CPI_Con_F!$D$18:$G$67,4,FALSE)),ISERROR(VLOOKUP(DATE(YEAR(AX8),MONTH(AX8),1),CPI_Con_F!$D$18:$G$67,4,FALSE))),General!$H$24,VLOOKUP(DATE(YEAR(AX8),MONTH(AX8),1),CPI_Con_F!$D$18:$G$67,4,FALSE))) -> 2.698161711 | AY11: =AX11*(1+IF(OR(ISBLANK(VLOOKUP(DATE(YEAR(AY8),MONTH(AY8),1),CPI_Con_F!$D$18:$G$67,4,FALSE)),ISERROR(VLOOKUP(DATE(YEAR(AY8),MONTH(AY8),1),CPI_Con_F!$D$18:$G$67,4,FALSE))),General!$H$24,VLOOKUP(DATE(YEAR(AY8),MONTH(AY8),1),CPI_Con_F!$D$18:$G$67,4,FALSE))) -> 2.765615754 | AZ11: =AY11*(1+IF(OR(ISBLANK(VLOOKUP(DATE(YEAR(AZ8),MONTH(AZ8),1),CPI_Con_F!$D$18:$G$67,4,FALSE)),ISERROR(VLOOKUP(DATE(YEAR(AZ8),MONTH(AZ8),1),CPI_Con_F!$D$18:$G$67,4,FALSE))),General!$H$24,VLOOKUP(DATE(YEAR(AZ8),MONTH(AZ8),1),CPI_Con_F!$D$18:$G$67,4,FALSE))) -> 2.834756147 | BA11: =AZ11*(1+IF(OR(ISBLANK(VLOOKUP(DATE(YEAR(BA8),MONTH(BA8),1),CPI_Con_F!$D$18:$G$67,4,FALSE)),ISERROR(VLOOKUP(DATE(YEAR(BA8),MONTH(BA8),1),CPI_Con_F!$D$18:$G$67,4,FALSE))),General!$H$24,VLOOKUP(DATE(YEAR(BA8),MONTH(BA8),1),CPI_Con_F!$D$18:$G$67,4,FALSE))) -> 2.905625051 | BB11: =BA11*(1+IF(OR(ISBLANK(VLOOKUP(DATE(YEAR(BB8),MONTH(BB8),1),CPI_Con_F!$D$18:$G$67,4,FALSE)),ISERROR(VLOOKUP(DATE(YEAR(BB8),MONTH(BB8),1),CPI_Con_F!$D$18:$G$67,4,FALSE))),General!$H$24,VLOOKUP(DATE(YEAR(BB8),MONTH(BB8),1),CPI_Con_F!$D$18:$G$67,4,FALSE))) -> 2.978265677 | BC11: =BB11*(1+IF(OR(ISBLANK(VLOOKUP(DATE(YEAR(BC8),MONTH(BC8),1),CPI_Con_F!$D$18:$G$67,4,FALSE)),ISERROR(VLOOKUP(DATE(YEAR(BC8),MONTH(BC8),1),CPI_Con_F!$D$18:$G$67,4,FALSE))),General!$H$24,VLOOKUP(DATE(YEAR(BC8),MONTH(BC8),1),CPI_Con_F!$D$18:$G$67,4,FALSE))) -> 3.052722319 | BD11: =BC11*(1+IF(OR(ISBLANK(VLOOKUP(DATE(YEAR(BD8),MONTH(BD8),1),CPI_Con_F!$D$18:$G$67,4,FALSE)),ISERROR(VLOOKUP(DATE(YEAR(BD8),MONTH(BD8),1),CPI_Con_F!$D$18:$G$67,4,FALSE))),General!$H$24,VLOOKUP(DATE(YEAR(BD8),MONTH(BD8),1),CPI_Con_F!$D$18:$G$67,4,FALSE))) -> 3.129040377 | BE11: =BD11*(1+IF(OR(ISBLANK(VLOOKUP(DATE(YEAR(BE8),MONTH(BE8),1),CPI_Con_F!$D$18:$G$67,4,FALSE)),ISERROR(VLOOKUP(DATE(YEAR(BE8),MONTH(BE8),1),CPI_Con_F!$D$18:$G$67,4,FALSE))),General!$H$24,VLOOKUP(DATE(YEAR(BE8),MONTH(BE8),1),CPI_Con_F!$D$18:$G$67,4,FALSE))) -> 3.207266387 | BF11: =BE11*(1+IF(OR(ISBLANK(VLOOKUP(DATE(YEAR(BF8),MONTH(BF8),1),CPI_Con_F!$D$18:$G$67,4,FALSE)),ISERROR(VLOOKUP(DATE(YEAR(BF8),MONTH(BF8),1),CPI_Con_F!$D$18:$G$67,4,FALSE))),General!$H$24,VLOOKUP(DATE(YEAR(BF8),MONTH(BF8),1),CPI_Con_F!$D$18:$G$67,4,FALSE))) -> 3.287448046 | BG11: =BF11*(1+IF(OR(ISBLANK(VLOOKUP(DATE(YEAR(BG8),MONTH(BG8),1),CPI_Con_F!$D$18:$G$67,4,FALSE)),ISERROR(VLOOKUP(DATE(YEAR(BG8),MONTH(BG8),1),CPI_Con_F!$D$18:$G$67,4,FALSE))),General!$H$24,VLOOKUP(DATE(YEAR(BG8),MONTH(BG8),1),CPI_Con_F!$D$18:$G$67,4,FALSE))) -> 3.369634248
B12: CPI Index (lagged) | J12: =IF(J9=1,1,I11) -> 1 | K12: 1 | L12: 1.03 | M12: 1.05575 | N12: 1.08214375 | O12: 1.109197344 | P12: 1.136927277 | Q12: 1.165350459 | R12: 1.194484221 | S12: 1.224346326 | T12: 1.254954984 | U12: 1.286328859 | V12: 1.318487081 | W12: 1.351449258 | X12: 1.385235489 | Y12: 1.419866376 | Z12: 1.455363036 | AA12: 1.491747111 | AB12: 1.529040789 | AC12: 1.567266809 | AD12: 1.606448479 | AE12: 1.646609691 | AF12: 1.687774933 | AG12: 1.729969307 | AH12: 1.77321854 | AI12: 1.817549003 | AJ12: 1.862987728 | AK12: 1.909562421 | AL12: 1.957301482 | AM12: 2.006234019 | AN12: 2.056389869 | AO12: 2.107799616 | AP12: 2.160494606 | AQ12: 2.214506972 | AR12: 2.269869646 | AS12: 2.326616387 | AT12: 2.384781797 | AU12: 2.444401342 | AV12: 2.505511375 | AW12: 2.56814916 | AX12: 2.632352889 | AY12: 2.698161711 | AZ12: 2.765615754 | BA12: 2.834756147 | BB12: 2.905625051 | BC12: 2.978265677 | BD12: 3.052722319 | BE12: 3.129040377 | BF12: 3.207266387 | BG12: 3.287448046
B13: Discount Index (pre tax) | J13: =(1+General!J32)^(J$9-1) -> 1 | K13: =(1+General!K32)^(K$9-1) -> 1.0556 | L13: =(1+General!L32)^(L$9-1) -> 1.11429136 | M13: =(1+General!M32)^(M$9-1) -> 1.17624596 | N13: =(1+General!N32)^(N$9-1) -> 1.241645235 | O13: =(1+General!O32)^(O$9-1) -> 1.31068071 | P13: =(1+General!P32)^(P$9-1) -> 1.383554558 | Q13: =(1+General!Q32)^(Q$9-1) -> 1.460480191 | R13: =(1+General!R32)^(R$9-1) -> 1.54168289 | S13: =(1+General!S32)^(S$9-1) -> 1.627400458 | T13: =(1+General!T32)^(T$9-1) -> 1.717883924 | U13: =(1+General!U32)^(U$9-1) -> 1.81339827 | V13: =(1+General!V32)^(V$9-1) -> 1.914223214 | W13: =(1+General!W32)^(W$9-1) -> 2.020654024 | X13: =(1+General!X32)^(X$9-1) -> 2.133002388 | Y13: =(1+General!Y32)^(Y$9-1) -> 2.251597321 | Z13: =(1+General!Z32)^(Z$9-1) -> 2.376786132 | AA13: =(1+General!AA32)^(AA$9-1) -> 2.508935441 | AB13: =(1+General!AB32)^(AB$9-1) -> 2.648432251 | AC13: =(1+General!AC32)^(AC$9-1) -> 2.795685084 | AD13: =(1+General!AD32)^(AD$9-1) -> 2.951125175 | AE13: =(1+General!AE32)^(AE$9-1) -> 3.115207735 | AF13: =(1+General!AF32)^(AF$9-1) -> 3.288413285 | AG13: =(1+General!AG32)^(AG$9-1) -> 3.471249064 | AH13: =(1+General!AH32)^(AH$9-1) -> 3.664250512 | AI13: =(1+General!AI32)^(AI$9-1) -> 3.86798284 | AJ13: =(1+General!AJ32)^(AJ$9-1) -> 4.083042686 | AK13: =(1+General!AK32)^(AK$9-1) -> 4.310059859 | AL13: =(1+General!AL32)^(AL$9-1) -> 4.549699187 | AM13: =(1+General!AM32)^(AM$9-1) -> 4.802662462 | AN13: =(1+General!AN32)^(AN$9-1) -> 5.069690495 | AO13: =(1+General!AO32)^(AO$9-1) -> 5.351565287 | AP13: =(1+General!AP32)^(AP$9-1) -> 5.649112317 | AQ13: =(1+General!AQ32)^(AQ$9-1) -> 5.963202961 | AR13: =(1+General!AR32)^(AR$9-1) -> 6.294757046 | AS13: =(1+General!AS32)^(AS$9-1) -> 6.644745538 | AT13: =(1+General!AT32)^(AT$9-1) -> 7.01419339 | AU13: =(1+General!AU32)^(AU$9-1) -> 7.404182542 | AV13: =(1+General!AV32)^(AV$9-1) -> 7.815855092 | AW13: =(1+General!AW32)^(AW$9-1) -> 8.250416635 | AX13: =(1+General!AX32)^(AX$9-1) -> 8.709139799 | AY13: =(1+General!AY32)^(AY$9-1) -> 9.193367972 | AZ13: =(1+General!AZ32)^(AZ$9-1) -> 9.704519232 | BA13: =(1+General!BA32)^(BA$9-1) -> 10.2440905 | BB13: =(1+General!BB32)^(BB$9-1) -> 10.81366193 | BC13: =(1+General!BC32)^(BC$9-1) -> 11.41490154 | BD13: =(1+General!BD32)^(BD$9-1) -> 12.04957006 | BE13: =(1+General!BE32)^(BE$9-1) -> 12.71952616 | BF13: =(1+General!BF32)^(BF$9-1) -> 13.42673181 | BG13: =(1+General!BG32)^(BG$9-1) -> 14.1732581
J16: ="FY "&RIGHT(J10,2) -> FY 24 | K16: FY 25 | L16: FY 26 | M16: FY 27 | N16: FY 28 | O16: FY 29 | P16: FY 30 | Q16: FY 31 | R16: FY 32 | S16: FY 33 | T16: FY 34 | U16: FY 35 | V16: FY 36 | W16: FY 37 | X16: FY 38 | Y16: FY 39 | Z16: FY 40 | AA16: FY 41 | AB16: FY 42 | AC16: FY 43 | AD16: FY 44 | AE16: FY 45 | AF16: FY 46 | AG16: FY 47 | AH16: FY 48 | AI16: FY 49 | AJ16: FY 50 | AK16: FY 51 | AL16: FY 52 | AM16: FY 53 | AN16: FY 54 | AO16: FY 55 | AP16: FY 56 | AQ16: FY 57 | AR16: FY 58 | AS16: FY 59 | AT16: FY 60 | AU16: FY 61 | AV16: FY 62 | AW16: FY 63 | AX16: FY 64 | AY16: FY 65 | AZ16: FY 66 | BA16: FY 67 | BB16: FY 68 | BC16: FY 69 | BD16: FY 70 | BE16: FY 71 | BF16: FY 72 | BG16: FY 73
B17: Summary | J17: =J9 -> 1 | K17: 2 | L17: 3 | M17: 4 | N17: 5 | O17: 6 | P17: 7 | Q17: 8 | R17: 9 | S17: 10 | T17: 11 | U17: 12 | V17: 13 | W17: 14 | X17: 15 | Y17: 16 | Z17: 17 | AA17: 18 | AB17: 19 | AC17: 20 | AD17: 21 | AE17: 22 | AF17: 23 | AG17: 24 | AH17: 25 | AI17: 26 | AJ17: 27 | AK17: 28 | AL17: 29 | AM17: 30 | AN17: 31 | AO17: 32 | AP17: 33 | AQ17: 34 | AR17: 35 | AS17: 36 | AT17: 37 | AU17: 38 | AV17: 39 | AW17: 40 | AX17: 41 | AY17: 42 | AZ17: 43 | BA17: 44 | BB17: 45 | BC17: 46 | BD17: 47 | BE17: 48 | BF17: 49 | BG17: 50
A19: To determine the highest value project | E19: Present Value Cost
F20: Capital Expenditure | H20: =SUM(J20:BG20) -> -726.4675933 | J20: =-(J46)*J11/J13 -> -5 | K20: 0 | L20: -76.0812908 | M20: -151.4316456 | N20: -112.545125 | O20: -107.3421915 | P20: -105.1571292 | Q20: -168.9102112 | R20: 0 | S20: 0 | T20: 0 | U20: 0 | V20: 0 | W20: 0 | X20: 0 | Y20: 0 | Z20: 0 | AA20: 0 | AB20: 0 | AC20: 0 | AD20: 0 | AE20: 0 | AF20: 0 | AG20: 0 | AH20: 0 | AI20: 0 | AJ20: 0 | AK20: 0 | AL20: 0 | AM20: 0 | AN20: 0 | AO20: 0 | AP20: 0 | AQ20: 0 | AR20: 0 | AS20: 0 | AT20: 0 | AU20: 0 | AV20: 0 | AW20: 0 | AX20: 0 | AY20: 0 | AZ20: 0 | BA20: 0 | BB20: 0 | BC20: 0 | BD20: 0 | BE20: 0 | BF20: 0 | BG20: 0
F21: Operating Expenditure | H21: =SUM(J21:BG21) -> -49.01588026 | J21: =-J75*J11/J13 -> -1.575 | K21: -0.04878741948 | L21: -0.04737315741 | M21: -0.7847581632 | N21: -2.232428462 | O21: -3.260679434 | P21: -4.208463322 | Q21: -5.107555399 | R21: -6.599634283 | S21: -6.408322414 | T21: -6.222556342 | U21: -6.042175303 | V21: -5.867023196 | W21: -0.06951357179 | X21: -0.06749849478 | Y21: -0.06554183132 | Z21: -0.06364188813 | AA21: -0.06179702096 | AB21: -0.06000563328 | AC21: -0.05826617479 | AD21: -0.05657714017 | AE21: -0.05493706771 | AF21: -0.05334453808 | AG21: 0 | AH21: 0 | AI21: 0 | AJ21: 0 | AK21: 0 | AL21: 0 | AM21: 0 | AN21: 0 | AO21: 0 | AP21: 0 | AQ21: 0 | AR21: 0 | AS21: 0 | AT21: 0 | AU21: 0 | AV21: 0 | AW21: 0 | AX21: 0 | AY21: 0 | AZ21: 0 | BA21: 0 | BB21: 0 | BC21: 0 | BD21: 0 | BE21: 0 | BF21: 0 | BG21: 0
F22: Net Benefits | H22: =SUM(J22:BG22) -> 162.3536576 | J22: =(J106)*J11/J13 -> 0 | K22: 0.1756053388 | L22: 0.171604135 | M22: 5.963926971 | N22: 8.099666991 | O22: 8.891976239 | P22: 10.04149672 | Q22: 9.961667333 | R22: 9.672895999 | S22: 9.392495641 | T22: 9.1202236 | U22: 8.85584425 | V22: 8.599128795 | W22: 8.349855073 | X22: 8.107807361 | Y22: 7.872776189 | Z22: 7.64455816 | AA22: 7.422955773 | AB22: 7.207777252 | AC22: 6.99883638 | AD22: 6.79595234 | AE22: 6.598949553 | AF22: 6.407657533 | AG22: 0 | AH22: 0 | AI22: 0 | AJ22: 0 | AK22: 0 | AL22: 0 | AM22: 0 | AN22: 0 | AO22: 0 | AP22: 0 | AQ22: 0 | AR22: 0 | AS22: 0 | AT22: 0 | AU22: 0 | AV22: 0 | AW22: 0 | AX22: 0 | AY22: 0 | AZ22: 0 | BA22: 0 | BB22: 0 | BC22: 0 | BD22: 0 | BE22: 0 | BF22: 0 | BG22: 0
E23: Total Present Value | H23: =SUM(J23:BG23) -> -613.1298159 | J23: =SUM(J20:J22) -> -6.575 | K23: =SUM(K20:K22) -> 0.1268179193 | L23: -75.95705983 | M23: =SUM(M20:M22) -> -146.2524768 | N23: -106.6778865 | O23: -101.7108947 | P23: -99.32409578 | Q23: -164.0560993 | R23: 3.073261716 | S23: 2.984173228 | T23: 2.897667259 | U23: 2.813668947 | V23: 2.732105599 | W23: 8.280341501 | X23: 8.040308866 | Y23: 7.807234357 | Z23: 7.580916272 | AA23: 7.361158752 | AB23: 7.147771619 | AC23: 6.940570206 | AD23: 6.7393752 | AE23: 6.544012485 | AF23: 6.354312995 | AG23: 0 | AH23: 0 | AI23: 0 | AJ23: 0 | AK23: 0 | AL23: 0 | AM23: 0 | AN23: 0 | AO23: 0 | AP23: 0 | AQ23: 0 | AR23: 0 | AS23: 0 | AT23: 0 | AU23: 0 | AV23: 0 | AW23: 0 | AX23: 0 | AY23: 0 | AZ23: 0 | BA23: 0 | BB23: 0 | BC23: 0 | BD23: 0 | BE23: 0 | BF23: 0 | BG23: 0
A25: To determine the capex & opex need for the EDPR period | E25: Undiscounted
F26: Capital Expenditure | H26: =SUM(J26:BG26) -> -745.7024 | J26: =-(J60)*J$6 -> 0 | K26: =-(K60)*K$6 -> 0 | L26: 0 | M26: -164.6 | N26: -125.984 | O26: -123.747 | P26: =-(P60)*P$6 -> -124.8471 | Q26: -206.5243 | R26: 0 | S26: 0 | T26: 0 | U26: 0 | V26: 0 | W26: 0 | X26: 0 | Y26: 0 | Z26: 0 | AA26: 0 | AB26: 0 | AC26: 0 | AD26: 0 | AE26: 0 | AF26: 0 | AG26: 0 | AH26: 0 | AI26: 0 | AJ26: 0 | AK26: 0 | AL26: 0 | AM26: 0 | AN26: 0 | AO26: 0 | AP26: 0 | AQ26: 0 | AR26: 0 | AS26: 0 | AT26: 0 | AU26: 0 | AV26: 0 | AW26: 0 | AX26: 0 | AY26: 0 | AZ26: 0 | BA26: 0 | BB26: 0 | BC26: 0 | BD26: 0 | BE26: 0 | BF26: 0 | BG26: 0
F27: Operating Expenditure | H27: =SUM(J27:BG27) -> -18.352411 | J27: =-J89*J$6 -> 0 | K27: =-K89*K$6 -> 0 | L27: 0 | M27: -0.853 | N27: -2.499 | O27: -3.759 | P27: -4.99647 | Q27: -6.244941 | R27: 0 | S27: 0 | T27: 0 | U27: 0 | V27: 0 | W27: 0 | X27: 0 | Y27: 0 | Z27: 0 | AA27: 0 | AB27: 0 | AC27: 0 | AD27: 0 | AE27: 0 | AF27: 0 | AG27: 0 | AH27: 0 | AI27: 0 | AJ27: 0 | AK27: 0 | AL27: 0 | AM27: 0 | AN27: 0 | AO27: 0 | AP27: 0 | AQ27: 0 | AR27: 0 | AS27: 0 | AT27: 0 | AU27: 0 | AV27: 0 | AW27: 0 | AX27: 0 | AY27: 0 | AZ27: 0 | BA27: 0 | BB27: 0 | BC27: 0 | BD27: 0 | BE27: 0 | BF27: 0 | BG27: 0
F28: Net Benefits | H28: =SUM(J28:BG28) -> 49.90199497 | J28: =(J122)*J$6 -> 0 | K28: =(K122)*K$6 -> 0 | L28: 0 | M28: 6.482544489 | N28: 9.066838269 | O28: 10.25091223 | P28: 11.92169998 | Q28: 12.18 | R28: 0 | S28: 0 | T28: 0 | U28: 0 | V28: 0 | W28: 0 | X28: 0 | Y28: 0 | Z28: 0 | AA28: 0 | AB28: 0 | AC28: 0 | AD28: 0 | AE28: 0 | AF28: 0 | AG28: 0 | AH28: 0 | AI28: 0 | AJ28: 0 | AK28: 0 | AL28: 0 | AM28: 0 | AN28: 0 | AO28: 0 | AP28: 0 | AQ28: 0 | AR28: 0 | AS28: 0 | AT28: 0 | AU28: 0 | AV28: 0 | AW28: 0 | AX28: 0 | AY28: 0 | AZ28: 0 | BA28: 0 | BB28: 0 | BC28: 0 | BD28: 0 | BE28: 0 | BF28: 0 | BG28: 0
E29: Undiscounted Total Value | H29: =SUM(J29:BG29) -> -714.152816 | J29: =SUM(J26:J28) -> 0 | K29: =SUM(K26:K28) -> 0 | L29: 0 | M29: -158.9704555 | N29: -119.4161617 | O29: -117.2550878 | P29: -117.92187 | Q29: -200.589241 | R29: 0 | S29: 0 | T29: 0 | U29: 0 | V29: 0 | W29: 0 | X29: 0 | Y29: 0 | Z29: 0 | AA29: 0 | AB29: 0 | AC29: 0 | AD29: 0 | AE29: 0 | AF29: 0 | AG29: 0 | AH29: 0 | AI29: 0 | AJ29: 0 | AK29: 0 | AL29: 0 | AM29: 0 | AN29: 0 | AO29: 0 | AP29: 0 | AQ29: 0 | AR29: 0 | AS29: 0 | AT29: 0 | AU29: 0 | AV29: 0 | AW29: 0 | AX29: 0 | AY29: 0 | AZ29: 0 | BA29: 0 | BB29: 0 | BC29: 0 | BD29: 0 | BE29: 0 | BF29: 0 | BG29: 0
B32: Capital Expenditure
F35: Category | G35: Description (optional) | I35: Dollar Basis
F36: Option 2 | G36: =General!G11 -> Full Voltage Compliance | J36: 5 | K36: 0 | L36: 80.3 | M36: 164.6 | N36: 125.984 | O36: 123.747 | P36: 124.8471 | Q36: 206.5243
F46: Total Direct Capex | J46: =SUM(J36:J45) -> 5 | K46: =SUM(K36:K45) -> 0 | L46: =SUM(L36:L45) -> 80.3 | M46: 164.6 | N46: 125.984 | O46: 123.747 | P46: 124.8471 | Q46: =SUM(Q36:Q45) -> 206.5243 | R46: 0 | S46: 0 | T46: 0 | U46: 0 | V46: 0 | W46: 0 | X46: 0 | Y46: 0 | Z46: 0 | AA46: 0 | AB46: 0 | AC46: 0 | AD46: 0 | AE46: 0 | AF46: 0 | AG46: 0 | AH46: 0 | AI46: 0 | AJ46: 0 | AK46: 0 | AL46: 0 | AM46: 0 | AN46: 0 | AO46: 0 | AP46: 0 | AQ46: 0 | AR46: 0 | AS46: 0 | AT46: 0 | AU46: 0 | AV46: 0 | AW46: 0 | AX46: 0 | AY46: 0 | AZ46: 0 | BA46: 0 | BB46: 0 | BC46: 0 | BD46: 0 | BE46: 0 | BF46: 0 | BG46: 0
G49: Dollar Basis for Conversion | H49: Conversion Factor
F50: =F36 -> Option 2 | G50: 2024-06-30 | H50: 1 | J50: =J36*$H50 -> 5 | K50: 0 | L50: 80.3 | M50: 164.6 | N50: 125.984 | O50: 123.747 | P50: 124.8471 | Q50: 206.5243 | R50: 0 | S50: 0 | T50: 0 | U50: 0 | V50: 0 | W50: 0 | X50: 0 | Y50: 0 | Z50: 0 | AA50: 0 | AB50: 0 | AC50: 0 | AD50: 0 | AE50: 0 | AF50: 0 | AG50: 0 | AH50: 0 | AI50: 0 | AJ50: 0 | AK50: 0 | AL50: 0 | AM50: 0 | AN50: 0 | AO50: 0 | AP50: 0 | AQ50: 0 | AR50: 0 | AS50: 0 | AT50: 0 | AU50: 0 | AV50: 0 | AW50: 0 | AX50: 0 | AY50: 0 | AZ50: 0 | BA50: 0 | BB50: 0 | BC50: 0 | BD50: 0 | BE50: 0 | BF50: 0 | BG50: 0
F60: Total Direct Capex | J60: =SUM(J50:J59) -> 5 | K60: =SUM(K50:K59) -> 0 | L60: 80.3 | M60: 164.6 | N60: 125.984 | O60: 123.747 | P60: 124.8471 | Q60: 206.5243 | R60: 0 | S60: 0 | T60: 0 | U60: 0 | V60: 0 | W60: 0 | X60: 0 | Y60: 0 | Z60: 0 | AA60: 0 | AB60: 0 | AC60: 0 | AD60: 0 | AE60: 0 | AF60: 0 | AG60: 0 | AH60: 0 | AI60: 0 | AJ60: 0 | AK60: 0 | AL60: 0 | AM60: 0 | AN60: 0 | AO60: 0 | AP60: 0 | AQ60: 0 | AR60: 0 | AS60: 0 | AT60: 0 | AU60: 0 | AV60: 0 | AW60: 0 | AX60: 0 | AY60: 0 | AZ60: 0 | BA60: 0 | BB60: 0 | BC60: 0 | BD60: 0 | BE60: 0 | BF60: 0 | BG60: 0
B62: Operating Expenditure (enter costs as positive numbers and savings as negative numbers)
F64: Category | G64: Description (optional) | I64: Dollar Basis
F65: =F36 -> Option 2 | J65: 1.575 | K65: 0.05 | L65: 0.05 | M65: 0.853 | N65: 2.499 | O65: 3.759 | P65: 4.99647 | Q65: 6.244941 | R65: 8.310184 | S65: 8.310184 | T65: 8.310184 | U65: 8.310184 | V65: 8.310184 | W65: 0.1014 | X65: 0.1014 | Y65: 0.1014 | Z65: 0.1014 | AA65: 0.1014 | AB65: =AA65 -> 0.1014 | AC65: 0.1014 | AD65: 0.1014 | AE65: 0.1014 | AF65: 0.1014
F75: Total Opex | J75: =SUM(J65:J74) -> 1.575 | K75: =SUM(K65:K74) -> 0.05 | L75: 0.05 | M75: 0.853 | N75: 2.499 | O75: 3.759 | P75: =SUM(P65:P74) -> 4.99647 | Q75: 6.244941 | R75: 8.310184 | S75: 8.310184 | T75: 8.310184 | U75: 8.310184 | V75: 8.310184 | W75: 0.1014 | X75: 0.1014 | Y75: 0.1014 | Z75: 0.1014 | AA75: 0.1014 | AB75: 0.1014 | AC75: 0.1014 | AD75: 0.1014 | AE75: 0.1014 | AF75: 0.1014 | AG75: 0 | AH75: 0 | AI75: 0 | AJ75: 0 | AK75: 0 | AL75: 0 | AM75: 0 | AN75: 0 | AO75: 0 | AP75: 0 | AQ75: 0 | AR75: 0 | AS75: 0 | AT75: 0 | AU75: 0 | AV75: 0 | AW75: 0 | AX75: 0 | AY75: 0 | AZ75: 0 | BA75: 0 | BB75: 0 | BC75: 0 | BD75: 0 | BE75: 0 | BF75: 0 | BG75: 0
F78: Category | G78: Dollar Basis for Conversion | H78: Conversion Factor
F79: =F65 -> Option 2 | G79: 2024-06-30 | H79: 1 | J79: =J65*$H79 -> 1.575 | K79: 0.05 | L79: 0.05 | M79: 0.853 | N79: 2.499 | O79: 3.759 | P79: 4.99647 | Q79: 6.244941 | R79: 8.310184 | S79: 8.310184 | T79: 8.310184 | U79: 8.310184 | V79: 8.310184 | W79: 0.1014 | X79: 0.1014 | Y79: 0.1014 | Z79: 0.1014 | AA79: 0.1014 | AB79: 0.1014 | AC79: 0.1014 | AD79: 0.1014 | AE79: 0.1014 | AF79: 0.1014 | AG79: 0 | AH79: 0 | AI79: 0 | AJ79: 0 | AK79: 0 | AL79: 0 | AM79: 0 | AN79: 0 | AO79: 0 | AP79: 0 | AQ79: 0 | AR79: 0 | AS79: 0 | AT79: 0 | AU79: 0 | AV79: 0 | AW79: 0 | AX79: 0 | AY79: 0 | AZ79: 0 | BA79: 0 | BB79: 0 | BC79: 0 | BD79: 0 | BE79: 0 | BF79: 0 | BG79: 0
F89: Total Opex | J89: =SUM(J79:J88) -> 1.575 | K89: =SUM(K79:K88) -> 0.05 | L89: 0.05 | M89: 0.853 | N89: 2.499 | O89: 3.759 | P89: =SUM(P79:P88) -> 4.99647 | Q89: =SUM(Q79:Q88) -> 6.244941 | R89: 8.310184 | S89: 8.310184 | T89: 8.310184 | U89: 8.310184 | V89: 8.310184 | W89: 0.1014 | X89: 0.1014 | Y89: 0.1014 | Z89: 0.1014 | AA89: 0.1014 | AB89: 0.1014 | AC89: 0.1014 | AD89: 0.1014 | AE89: 0.1014 | AF89: 0.1014 | AG89: 0 | AH89: 0 | AI89: 0 | AJ89: 0 | AK89: 0 | AL89: 0 | AM89: 0 | AN89: 0 | AO89: 0 | AP89: 0 | AQ89: 0 | AR89: 0 | AS89: 0 | AT89: 0 | AU89: 0 | AV89: 0 | AW89: 0 | AX89: 0 | AY89: 0 | AZ89: 0 | BA89: 0 | BB89: 0 | BC89: 0 | BD89: 0 | BE89: 0 | BF89: 0 | BG89: 0
B91: Benefits
F93: Category | G93: Description (optional) | I93: Dollar basis
F94: Voltage Compliance | G94: Safety/HigherConsumption/CECV | J94: 0 | K94: 0.1799698987 | L94: 0.1811195879 | M94: 6.482544489 | N94: 9.066838269 | O94: 10.25091223 | P94: 11.92169998 | Q94: 12.18 | R94: =Q94 -> 12.18 | S94: 12.18 | T94: 12.18 | U94: 12.18 | V94: 12.18 | W94: 12.18 | X94: 12.18 | Y94: 12.18 | Z94: 12.18 | AA94: 12.18 | AB94: 12.18 | AC94: 12.18 | AD94: 12.18 | AE94: 12.18 | AF94: 12.18
F106: Net Benefits | J106: =SUM(J94:J105) -> 0 | K106: =SUM(K94:K105) -> 0.1799698987 | L106: 0.1811195879 | M106: 6.482544489 | N106: 9.066838269 | O106: 10.25091223 | P106: 11.92169998 | Q106: 12.18 | R106: 12.18 | S106: 12.18 | T106: 12.18 | U106: 12.18 | V106: 12.18 | W106: 12.18 | X106: 12.18 | Y106: 12.18 | Z106: 12.18 | AA106: 12.18 | AB106: 12.18 | AC106: 12.18 | AD106: 12.18 | AE106: 12.18 | AF106: 12.18 | AG106: 0 | AH106: 0 | AI106: 0 | AJ106: 0 | AK106: 0 | AL106: 0 | AM106: 0 | AN106: 0 | AO106: 0 | AP106: 0 | AQ106: 0 | AR106: 0 | AS106: 0 | AT106: 0 | AU106: 0 | AV106: 0 | AW106: 0 | AX106: 0 | AY106: 0 | AZ106: 0 | BA106: 0 | BB106: 0 | BC106: 0 | BD106: 0 | BE106: 0 | BF106: 0 | BG106: 0
F109: Category | G109: Dollar basis | H109: Conversion Factor
F110: =F94 -> Voltage Compliance | G110: 2024-06-30 | H110: 1 | J110: =J94*$H110 -> 0 | K110: 0.1799698987 | L110: 0.1811195879 | M110: 6.482544489 | N110: 9.066838269 | O110: 10.25091223 | P110: 11.92169998 | Q110: 12.18 | R110: 12.18 | S110: 12.18 | T110: 12.18 | U110: 12.18 | V110: 12.18 | W110: 12.18 | X110: 12.18 | Y110: 12.18 | Z110: 12.18 | AA110: 12.18 | AB110: 12.18 | AC110: 12.18 | AD110: 12.18 | AE110: 12.18 | AF110: 12.18 | AG110: 0 | AH110: 0 | AI110: 0 | AJ110: 0 | AK110: 0 | AL110: 0 | AM110: 0 | AN110: 0 | AO110: 0 | AP110: 0 | AQ110: 0 | AR110: 0 | AS110: 0 | AT110: 0 | AU110: 0 | AV110: 0 | AW110: 0 | AX110: 0 | AY110: 0 | AZ110: 0 | BA110: 0 | BB110: 0 | BC110: 0 | BD110: 0 | BE110: 0 | BF110: 0 | BG110: 0
F122: Net Benefits | J122: =SUM(J110:J121) -> 0 | K122: =SUM(K110:K121) -> 0.1799698987 | L122: 0.1811195879 | M122: 6.482544489 | N122: 9.066838269 | O122: 10.25091223 | P122: 11.92169998 | Q122: 12.18 | R122: 12.18 | S122: 12.18 | T122: 12.18 | U122: 12.18 | V122: 12.18 | W122: 12.18 | X122: 12.18 | Y122: 12.18 | Z122: 12.18 | AA122: 12.18 | AB122: 12.18 | AC122: 12.18 | AD122: 12.18 | AE122: 12.18 | AF122: 12.18 | AG122: 0 | AH122: 0 | AI122: 0 | AJ122: 0 | AK122: 0 | AL122: 0 | AM122: 0 | AN122: 0 | AO122: 0 | AP122: 0 | AQ122: 0 | AR122: 0 | AS122: 0 | AT122: 0 | AU122: 0 | AV122: 0 | AW122: 0 | AX122: 0 | AY122: 0 | AZ122: 0 | BA122: 0 | BB122: 0 | BC122: 0 | BD122: 0 | BE122: 0 | BF122: 0 | BG122: 0
A124: END OF INPUTS FOR THIS OPTION

Sheet Do Nothing Risk
B1: Analysis: Do Nothing Risk
B2: =Cover!$C$9 -> AusNet Services
B3: =Cover!$C$10 -> Business Case Evaluation
B4: =Cover!$C$11 -> Voltage Compliance
B6: Regulatory Period Indicator | J6: =IF(AND(J$7>=General!$H$20,J$8<=General!$H$21),1,0) -> 0 | K6: =IF(AND(K$7>=General!$H$20,K$8<=General!$H$21),1,0) -> 0 | L6: =IF(AND(L$7>=General!$H$20,L$8<=General!$H$21),1,0) -> 0 | M6: =IF(AND(M$7>=General!$H$20,M$8<=General!$H$21),1,0) -> 1 | N6: =IF(AND(N$7>=General!$H$20,N$8<=General!$H$21),1,0) -> 1 | O6: =IF(AND(O$7>=General!$H$20,O$8<=General!$H$21),1,0) -> 1 | P6: =IF(AND(P$7>=General!$H$20,P$8<=General!$H$21),1,0) -> 1 | Q6: =IF(AND(Q$7>=General!$H$20,Q$8<=General!$H$21),1,0) -> 1 | R6: =IF(AND(R$7>=General!$H$20,R$8<=General!$H$21),1,0) -> 0 | S6: =IF(AND(S$7>=General!$H$20,S$8<=General!$H$21),1,0) -> 0 | T6: =IF(AND(T$7>=General!$H$20,T$8<=General!$H$21),1,0) -> 0 | U6: =IF(AND(U$7>=General!$H$20,U$8<=General!$H$21),1,0) -> 0 | V6: =IF(AND(V$7>=General!$H$20,V$8<=General!$H$21),1,0) -> 0 | W6: =IF(AND(W$7>=General!$H$20,W$8<=General!$H$21),1,0) -> 0 | X6: =IF(AND(X$7>=General!$H$20,X$8<=General!$H$21),1,0) -> 0 | Y6: =IF(AND(Y$7>=General!$H$20,Y$8<=General!$H$21),1,0) -> 0 | Z6: =IF(AND(Z$7>=General!$H$20,Z$8<=General!$H$21),1,0) -> 0 | AA6: =IF(AND(AA$7>=General!$H$20,AA$8<=General!$H$21),1,0) -> 0 | AB6: =IF(AND(AB$7>=General!$H$20,AB$8<=General!$H$21),1,0) -> 0 | AC6: =IF(AND(AC$7>=General!$H$20,AC$8<=General!$H$21),1,0) -> 0 | AD6: =IF(AND(AD$7>=General!$H$20,AD$8<=General!$H$21),1,0) -> 0 | AE6: =IF(AND(AE$7>=General!$H$20,AE$8<=General!$H$21),1,0) -> 0 | AF6: =IF(AND(AF$7>=General!$H$20,AF$8<=General!$H$21),1,0) -> 0 | AG6: =IF(AND(AG$7>=General!$H$20,AG$8<=General!$H$21),1,0) -> 0 | AH6: =IF(AND(AH$7>=General!$H$20,AH$8<=General!$H$21),1,0) -> 0 | AI6: =IF(AND(AI$7>=General!$H$20,AI$8<=General!$H$21),1,0) -> 0 | AJ6: =IF(AND(AJ$7>=General!$H$20,AJ$8<=General!$H$21),1,0) -> 0 | AK6: =IF(AND(AK$7>=General!$H$20,AK$8<=General!$H$21),1,0) -> 0 | AL6: =IF(AND(AL$7>=General!$H$20,AL$8<=General!$H$21),1,0) -> 0 | AM6: =IF(AND(AM$7>=General!$H$20,AM$8<=General!$H$21),1,0) -> 0 | AN6: =IF(AND(AN$7>=General!$H$20,AN$8<=General!$H$21),1,0) -> 0 | AO6: =IF(AND(AO$7>=General!$H$20,AO$8<=General!$H$21),1,0) -> 0 | AP6: =IF(AND(AP$7>=General!$H$20,AP$8<=General!$H$21),1,0) -> 0 | AQ6: =IF(AND(AQ$7>=General!$H$20,AQ$8<=General!$H$21),1,0) -> 0 | AR6: =IF(AND(AR$7>=General!$H$20,AR$8<=General!$H$21),1,0) -> 0 | AS6: =IF(AND(AS$7>=General!$H$20,AS$8<=General!$H$21),1,0) -> 0 | AT6: =IF(AND(AT$7>=General!$H$20,AT$8<=General!$H$21),1,0) -> 0 | AU6: =IF(AND(AU$7>=General!$H$20,AU$8<=General!$H$21),1,0) -> 0 | AV6: =IF(AND(AV$7>=General!$H$20,AV$8<=General!$H$21),1,0) -> 0 | AW6: =IF(AND(AW$7>=General!$H$20,AW$8<=General!$H$21),1,0) -> 0 | AX6: =IF(AND(AX$7>=General!$H$20,AX$8<=General!$H$21),1,0) -> 0 | AY6: =IF(AND(AY$7>=General!$H$20,AY$8<=General!$H$21),1,0) -> 0 | AZ6: =IF(AND(AZ$7>=General!$H$20,AZ$8<=General!$H$21),1,0) -> 0 | BA6: =IF(AND(BA$7>=General!$H$20,BA$8<=General!$H$21),1,0) -> 0 | BB6: =IF(AND(BB$7>=General!$H$20,BB$8<=General!$H$21),1,0) -> 0 | BC6: =IF(AND(BC$7>=General!$H$20,BC$8<=General!$H$21),1,0) -> 0 | BD6: =IF(AND(BD$7>=General!$H$20,BD$8<=General!$H$21),1,0) -> 0 | BE6: =IF(AND(BE$7>=General!$H$20,BE$8<=General!$H$21),1,0) -> 0 | BF6: =IF(AND(BF$7>=General!$H$20,BF$8<=General!$H$21),1,0) -> 0 | BG6: =IF(AND(BG$7>=General!$H$20,BG$8<=General!$H$21),1,0) -> 0
B7: Period Start Date | J7: =EDATE(General!$H$18,(J9-1)*12) -> 2023-07-01 | K7: =EDATE(General!$H$18,(K9-1)*12) -> 2024-07-01 | L7: =EDATE(General!$H$18,(L9-1)*12) -> 2025-07-01 | M7: =EDATE(General!$H$18,(M9-1)*12) -> 2026-07-01 | N7: =EDATE(General!$H$18,(N9-1)*12) -> 2027-07-01 | O7: =EDATE(General!$H$18,(O9-1)*12) -> 2028-07-01 | P7: =EDATE(General!$H$18,(P9-1)*12) -> 2029-07-01 | Q7: =EDATE(General!$H$18,(Q9-1)*12) -> 2030-07-01 | R7: =EDATE(General!$H$18,(R9-1)*12) -> 2031-07-01 | S7: =EDATE(General!$H$18,(S9-1)*12) -> 2032-07-01 | T7: =EDATE(General!$H$18,(T9-1)*12) -> 2033-07-01 | U7: =EDATE(General!$H$18,(U9-1)*12) -> 2034-07-01 | V7: =EDATE(General!$H$18,(V9-1)*12) -> 2035-07-01 | W7: =EDATE(General!$H$18,(W9-1)*12) -> 2036-07-01 | X7: =EDATE(General!$H$18,(X9-1)*12) -> 2037-07-01 | Y7: =EDATE(General!$H$18,(Y9-1)*12) -> 2038-07-01 | Z7: =EDATE(General!$H$18,(Z9-1)*12) -> 2039-07-01 | AA7: =EDATE(General!$H$18,(AA9-1)*12) -> 2040-07-01 | AB7: =EDATE(General!$H$18,(AB9-1)*12) -> 2041-07-01 | AC7: =EDATE(General!$H$18,(AC9-1)*12) -> 2042-07-01 | AD7: =EDATE(General!$H$18,(AD9-1)*12) -> 2043-07-01 | AE7: =EDATE(General!$H$18,(AE9-1)*12) -> 2044-07-01 | AF7: =EDATE(General!$H$18,(AF9-1)*12) -> 2045-07-01 | AG7: =EDATE(General!$H$18,(AG9-1)*12) -> 2046-07-01 | AH7: =EDATE(General!$H$18,(AH9-1)*12) -> 2047-07-01 | AI7: =EDATE(General!$H$18,(AI9-1)*12) -> 2048-07-01 | AJ7: =EDATE(General!$H$18,(AJ9-1)*12) -> 2049-07-01 | AK7: =EDATE(General!$H$18,(AK9-1)*12) -> 2050-07-01 | AL7: =EDATE(General!$H$18,(AL9-1)*12) -> 2051-07-01 | AM7: =EDATE(General!$H$18,(AM9-1)*12) -> 2052-07-01 | AN7: =EDATE(General!$H$18,(AN9-1)*12) -> 2053-07-01 | AO7: =EDATE(General!$H$18,(AO9-1)*12) -> 2054-07-01 | AP7: =EDATE(General!$H$18,(AP9-1)*12) -> 2055-07-01 | AQ7: =EDATE(General!$H$18,(AQ9-1)*12) -> 2056-07-01 | AR7: =EDATE(General!$H$18,(AR9-1)*12) -> 2057-07-01 | AS7: =EDATE(General!$H$18,(AS9-1)*12) -> 2058-07-01 | AT7: =EDATE(General!$H$18,(AT9-1)*12) -> 2059-07-01 | AU7: =EDATE(General!$H$18,(AU9-1)*12) -> 2060-07-01 | AV7: =EDATE(General!$H$18,(AV9-1)*12) -> 2061-07-01 | AW7: =EDATE(General!$H$18,(AW9-1)*12) -> 2062-07-01 | AX7: =EDATE(General!$H$18,(AX9-1)*12) -> 2063-07-01 | AY7: =EDATE(General!$H$18,(AY9-1)*12) -> 2064-07-01 | AZ7: =EDATE(General!$H$18,(AZ9-1)*12) -> 2065-07-01 | BA7: =EDATE(General!$H$18,(BA9-1)*12) -> 2066-07-01 | BB7: =EDATE(General!$H$18,(BB9-1)*12) -> 2067-07-01 | BC7: =EDATE(General!$H$18,(BC9-1)*12) -> 2068-07-01 | BD7: =EDATE(General!$H$18,(BD9-1)*12) -> 2069-07-01 | BE7: =EDATE(General!$H$18,(BE9-1)*12) -> 2070-07-01 | BF7: =EDATE(General!$H$18,(BF9-1)*12) -> 2071-07-01 | BG7: =EDATE(General!$H$18,(BG9-1)*12) -> 2072-07-01
B8: Period End Date | J8: =EDATE(J7,12)-1 -> 2024-06-30 | K8: =EDATE(K7,12)-1 -> 2025-06-30 | L8: 2026-06-30 | M8: 2027-06-30 | N8: 2028-06-30 | O8: 2029-06-30 | P8: 2030-06-30 | Q8: 2031-06-30 | R8: 2032-06-30 | S8: 2033-06-30 | T8: 2034-06-30 | U8: 2035-06-30 | V8: 2036-06-30 | W8: 2037-06-30 | X8: 2038-06-30 | Y8: 2039-06-30 | Z8: 2040-06-30 | AA8: 2041-06-30 | AB8: 2042-06-30 | AC8: 2043-06-30 | AD8: 2044-06-30 | AE8: 2045-06-30 | AF8: 2046-06-30 | AG8: 2047-06-30 | AH8: 2048-06-30 | AI8: 2049-06-30 | AJ8: 2050-06-30 | AK8: 2051-06-30 | AL8: 2052-06-30 | AM8: 2053-06-30 | AN8: 2054-06-30 | AO8: 2055-06-30 | AP8: 2056-06-30 | AQ8: 2057-06-30 | AR8: 2058-06-30 | AS8: 2059-06-30 | AT8: 2060-06-30 | AU8: 2061-06-30 | AV8: 2062-06-30 | AW8: 2063-06-30 | AX8: 2064-06-30 | AY8: 2065-06-30 | AZ8: 2066-06-30 | BA8: 2067-06-30 | BB8: 2068-06-30 | BC8: 2069-06-30 | BD8: 2070-06-30 | BE8: 2071-06-30 | BF8: 2072-06-30 | BG8: 2073-06-30
B9: ="Project Year" -> Project Year | J9: =COLUMNS($J9:J9) -> 1 | K9: =COLUMNS($J9:K9) -> 2 | L9: =COLUMNS($J9:L9) -> 3 | M9: =COLUMNS($J9:M9) -> 4 | N9: =COLUMNS($J9:N9) -> 5 | O9: =COLUMNS($J9:O9) -> 6 | P9: =COLUMNS($J9:P9) -> 7 | Q9: =COLUMNS($J9:Q9) -> 8 | R9: =COLUMNS($J9:R9) -> 9 | S9: =COLUMNS($J9:S9) -> 10 | T9: =COLUMNS($J9:T9) -> 11 | U9: =COLUMNS($J9:U9) -> 12 | V9: =COLUMNS($J9:V9) -> 13 | W9: =COLUMNS($J9:W9) -> 14 | X9: =COLUMNS($J9:X9) -> 15 | Y9: =COLUMNS($J9:Y9) -> 16 | Z9: =COLUMNS($J9:Z9) -> 17 | AA9: =COLUMNS($J9:AA9) -> 18 | AB9: =COLUMNS($J9:AB9) -> 19 | AC9: =COLUMNS($J9:AC9) -> 20 | AD9: =COLUMNS($J9:AD9) -> 21 | AE9: =COLUMNS($J9:AE9) -> 22 | AF9: =COLUMNS($J9:AF9) -> 23 | AG9: =COLUMNS($J9:AG9) -> 24 | AH9: =COLUMNS($J9:AH9) -> 25 | AI9: =COLUMNS($J9:AI9) -> 26 | AJ9: =COLUMNS($J9:AJ9) -> 27 | AK9: =COLUMNS($J9:AK9) -> 28 | AL9: =COLUMNS($J9:AL9) -> 29 | AM9: =COLUMNS($J9:AM9) -> 30 | AN9: =COLUMNS($J9:AN9) -> 31 | AO9: =COLUMNS($J9:AO9) -> 32 | AP9: =COLUMNS($J9:AP9) -> 33 | AQ9: =COLUMNS($J9:AQ9) -> 34 | AR9: =COLUMNS($J9:AR9) -> 35 | AS9: =COLUMNS($J9:AS9) -> 36 | AT9: =COLUMNS($J9:AT9) -> 37 | AU9: =COLUMNS($J9:AU9) -> 38 | AV9: =COLUMNS($J9:AV9) -> 39 | AW9: =COLUMNS($J9:AW9) -> 40 | AX9: =COLUMNS($J9:AX9) -> 41 | AY9: =COLUMNS($J9:AY9) -> 42 | AZ9: =COLUMNS($J9:AZ9) -> 43 | BA9: =COLUMNS($J9:BA9) -> 44 | BB9: =COLUMNS($J9:BB9) -> 45 | BC9: =COLUMNS($J9:BC9) -> 46 | BD9: =COLUMNS($J9:BD9) -> 47 | BE9: =COLUMNS($J9:BE9) -> 48 | BF9: =COLUMNS($J9:BF9) -> 49 | BG9: =COLUMNS($J9:BG9) -> 50
B10: Financial Year | J10: =YEAR(J8)+1 -> 2025 | K10: =YEAR(K8)+1 -> 2026 | L10: 2027 | M10: 2028 | N10: 2029 | O10: 2030 | P10: 2031 | Q10: 2032 | R10: 2033 | S10: 2034 | T10: 2035 | U10: 2036 | V10: 2037 | W10: 2038 | X10: 2039 | Y10: 2040 | Z10: 2041 | AA10: 2042 | AB10: 2043 | AC10: 2044 | AD10: 2045 | AE10: 2046 | AF10: 2047 | AG10: 2048 | AH10: 2049 | AI10: 2050 | AJ10: 2051 | AK10: 2052 | AL10: 2053 | AM10: 2054 | AN10: 2055 | AO10: 2056 | AP10: 2057 | AQ10: 2058 | AR10: 2059 | AS10: 2060 | AT10: 2061 | AU10: 2062 | AV10: 2063 | AW10: 2064 | AX10: 2065 | AY10: 2066 | AZ10: 2067 | BA10: 2068 | BB10: 2069 | BC10: 2070 | BD10: 2071 | BE10: 2072 | BF10: 2073 | BG10: 2074
B11: CPI index | J11: 1 | K11: =J11*(1+IF(OR(ISBLANK(VLOOKUP(DATE(YEAR(K8),MONTH(K8),1),CPI_Con_F!$D$18:$G$67,4,FALSE)),ISERROR(VLOOKUP(DATE(YEAR(K8),MONTH(K8),1),CPI_Con_F!$D$18:$G$67,4,FALSE))),General!$H$24,VLOOKUP(DATE(YEAR(K8),MONTH(K8),1),CPI_Con_F!$D$18:$G$67,4,FALSE))) -> 1.03 | L11: =K11*(1+IF(OR(ISBLANK(VLOOKUP(DATE(YEAR(L8),MONTH(L8),1),CPI_Con_F!$D$18:$G$67,4,FALSE)),ISERROR(VLOOKUP(DATE(YEAR(L8),MONTH(L8),1),CPI_Con_F!$D$18:$G$67,4,FALSE))),General!$H$24,VLOOKUP(DATE(YEAR(L8),MONTH(L8),1),CPI_Con_F!$D$18:$G$67,4,FALSE))) -> 1.05575 | M11: =L11*(1+IF(OR(ISBLANK(VLOOKUP(DATE(YEAR(M8),MONTH(M8),1),CPI_Con_F!$D$18:$G$67,4,FALSE)),ISERROR(VLOOKUP(DATE(YEAR(M8),MONTH(M8),1),CPI_Con_F!$D$18:$G$67,4,FALSE))),General!$H$24,VLOOKUP(DATE(YEAR(M8),MONTH(M8),1),CPI_Con_F!$D$18:$G$67,4,FALSE))) -> 1.08214375 | N11: =M11*(1+IF(OR(ISBLANK(VLOOKUP(DATE(YEAR(N8),MONTH(N8),1),CPI_Con_F!$D$18:$G$67,4,FALSE)),ISERROR(VLOOKUP(DATE(YEAR(N8),MONTH(N8),1),CPI_Con_F!$D$18:$G$67,4,FALSE))),General!$H$24,VLOOKUP(DATE(YEAR(N8),MONTH(N8),1),CPI_Con_F!$D$18:$G$67,4,FALSE))) -> 1.109197344 | O11: =N11*(1+IF(OR(ISBLANK(VLOOKUP(DATE(YEAR(O8),MONTH(O8),1),CPI_Con_F!$D$18:$G$67,4,FALSE)),ISERROR(VLOOKUP(DATE(YEAR(O8),MONTH(O8),1),CPI_Con_F!$D$18:$G$67,4,FALSE))),General!$H$24,VLOOKUP(DATE(YEAR(O8),MONTH(O8),1),CPI_Con_F!$D$18:$G$67,4,FALSE))) -> 1.136927277 | P11: =O11*(1+IF(OR(ISBLANK(VLOOKUP(DATE(YEAR(P8),MONTH(P8),1),CPI_Con_F!$D$18:$G$67,4,FALSE)),ISERROR(VLOOKUP(DATE(YEAR(P8),MONTH(P8),1),CPI_Con_F!$D$18:$G$67,4,FALSE))),General!$H$24,VLOOKUP(DATE(YEAR(P8),MONTH(P8),1),CPI_Con_F!$D$18:$G$67,4,FALSE))) -> 1.165350459 | Q11: =P11*(1+IF(OR(ISBLANK(VLOOKUP(DATE(YEAR(Q8),MONTH(Q8),1),CPI_Con_F!$D$18:$G$67,4,FALSE)),ISERROR(VLOOKUP(DATE(YEAR(Q8),MONTH(Q8),1),CPI_Con_F!$D$18:$G$67,4,FALSE))),General!$H$24,VLOOKUP(DATE(YEAR(Q8),MONTH(Q8),1),CPI_Con_F!$D$18:$G$67,4,FALSE))) -> 1.194484221 | R11: =Q11*(1+IF(OR(ISBLANK(VLOOKUP(DATE(YEAR(R8),MONTH(R8),1),CPI_Con_F!$D$18:$G$67,4,FALSE)),ISERROR(VLOOKUP(DATE(YEAR(R8),MONTH(R8),1),CPI_Con_F!$D$18:$G$67,4,FALSE))),General!$H$24,VLOOKUP(DATE(YEAR(R8),MONTH(R8),1),CPI_Con_F!$D$18:$G$67,4,FALSE))) -> 1.224346326 | S11: =R11*(1+IF(OR(ISBLANK(VLOOKUP(DATE(YEAR(S8),MONTH(S8),1),CPI_Con_F!$D$18:$G$67,4,FALSE)),ISERROR(VLOOKUP(DATE(YEAR(S8),MONTH(S8),1),CPI_Con_F!$D$18:$G$67,4,FALSE))),General!$H$24,VLOOKUP(DATE(YEAR(S8),MONTH(S8),1),CPI_Con_F!$D$18:$G$67,4,FALSE))) -> 1.254954984 | T11: =S11*(1+IF(OR(ISBLANK(VLOOKUP(DATE(YEAR(T8),MONTH(T8),1),CPI_Con_F!$D$18:$G$67,4,FALSE)),ISERROR(VLOOKUP(DATE(YEAR(T8),MONTH(T8),1),CPI_Con_F!$D$18:$G$67,4,FALSE))),General!$H$24,VLOOKUP(DATE(YEAR(T8),MONTH(T8),1),CPI_Con_F!$D$18:$G$67,4,FALSE))) -> 1.286328859 | U11: =T11*(1+IF(OR(ISBLANK(VLOOKUP(DATE(YEAR(U8),MONTH(U8),1),CPI_Con_F!$D$18:$G$67,4,FALSE)),ISERROR(VLOOKUP(DATE(YEAR(U8),MONTH(U8),1),CPI_Con_F!$D$18:$G$67,4,FALSE))),General!$H$24,VLOOKUP(DATE(YEAR(U8),MONTH(U8),1),CPI_Con_F!$D$18:$G$67,4,FALSE))) -> 1.318487081 | V11: =U11*(1+IF(OR(ISBLANK(VLOOKUP(DATE(YEAR(V8),MONTH(V8),1),CPI_Con_F!$D$18:$G$67,4,FALSE)),ISERROR(VLOOKUP(DATE(YEAR(V8),MONTH(V8),1),CPI_Con_F!$D$18:$G$67,4,FALSE))),General!$H$24,VLOOKUP(DATE(YEAR(V8),MONTH(V8),1),CPI_Con_F!$D$18:$G$67,4,FALSE))) -> 1.351449258 | W11: =V11*(1+IF(OR(ISBLANK(VLOOKUP(DATE(YEAR(W8),MONTH(W8),1),CPI_Con_F!$D$18:$G$67,4,FALSE)),ISERROR(VLOOKUP(DATE(YEAR(W8),MONTH(W8),1),CPI_Con_F!$D$18:$G$67,4,FALSE))),General!$H$24,VLOOKUP(DATE(YEAR(W8),MONTH(W8),1),CPI_Con_F!$D$18:$G$67,4,FALSE))) -> 1.385235489 | X11: =W11*(1+IF(OR(ISBLANK(VLOOKUP(DATE(YEAR(X8),MONTH(X8),1),CPI_Con_F!$D$18:$G$67,4,FALSE)),ISERROR(VLOOKUP(DATE(YEAR(X8),MONTH(X8),1),CPI_Con_F!$D$18:$G$67,4,FALSE))),General!$H$24,VLOOKUP(DATE(YEAR(X8),MONTH(X8),1),CPI_Con_F!$D$18:$G$67,4,FALSE))) -> 1.419866376 | Y11: =X11*(1+IF(OR(ISBLANK(VLOOKUP(DATE(YEAR(Y8),MONTH(Y8),1),CPI_Con_F!$D$18:$G$67,4,FALSE)),ISERROR(VLOOKUP(DATE(YEAR(Y8),MONTH(Y8),1),CPI_Con_F!$D$18:$G$67,4,FALSE))),General!$H$24,VLOOKUP(DATE(YEAR(Y8),MONTH(Y8),1),CPI_Con_F!$D$18:$G$67,4,FALSE))) -> 1.455363036 | Z11: =Y11*(1+IF(OR(ISBLANK(VLOOKUP(DATE(YEAR(Z8),MONTH(Z8),1),CPI_Con_F!$D$18:$G$67,4,FALSE)),ISERROR(VLOOKUP(DATE(YEAR(Z8),MONTH(Z8),1),CPI_Con_F!$D$18:$G$67,4,FALSE))),General!$H$24,VLOOKUP(DATE(YEAR(Z8),MONTH(Z8),1),CPI_Con_F!$D$18:$G$67,4,FALSE))) -> 1.491747111 | AA11: =Z11*(1+IF(OR(ISBLANK(VLOOKUP(DATE(YEAR(AA8),MONTH(AA8),1),CPI_Con_F!$D$18:$G$67,4,FALSE)),ISERROR(VLOOKUP(DATE(YEAR(AA8),MONTH(AA8),1),CPI_Con_F!$D$18:$G$67,4,FALSE))),General!$H$24,VLOOKUP(DATE(YEAR(AA8),MONTH(AA8),1),CPI_Con_F!$D$18:$G$67,4,FALSE))) -> 1.529040789 | AB11: =AA11*(1+IF(OR(ISBLANK(VLOOKUP(DATE(YEAR(AB8),MONTH(AB8),1),CPI_Con_F!$D$18:$G$67,4,FALSE)),ISERROR(VLOOKUP(DATE(YEAR(AB8),MONTH(AB8),1),CPI_Con_F!$D$18:$G$67,4,FALSE))),General!$H$24,VLOOKUP(DATE(YEAR(AB8),MONTH(AB8),1),CPI_Con_F!$D$18:$G$67,4,FALSE))) -> 1.567266809 | AC11: =AB11*(1+IF(OR(ISBLANK(VLOOKUP(DATE(YEAR(AC8),MONTH(AC8),1),CPI_Con_F!$D$18:$G$67,4,FALSE)),ISERROR(VLOOKUP(DATE(YEAR(AC8),MONTH(AC8),1),CPI_Con_F!$D$18:$G$67,4,FALSE))),General!$H$24,VLOOKUP(DATE(YEAR(AC8),MONTH(AC8),1),CPI_Con_F!$D$18:$G$67,4,FALSE))) -> 1.606448479 | AD11: =AC11*(1+IF(OR(ISBLANK(VLOOKUP(DATE(YEAR(AD8),MONTH(AD8),1),CPI_Con_F!$D$18:$G$67,4,FALSE)),ISERROR(VLOOKUP(DATE(YEAR(AD8),MONTH(AD8),1),CPI_Con_F!$D$18:$G$67,4,FALSE))),General!$H$24,VLOOKUP(DATE(YEAR(AD8),MONTH(AD8),1),CPI_Con_F!$D$18:$G$67,4,FALSE))) -> 1.646609691 | AE11: =AD11*(1+IF(OR(ISBLANK(VLOOKUP(DATE(YEAR(AE8),MONTH(AE8),1),CPI_Con_F!$D$18:$G$67,4,FALSE)),ISERROR(VLOOKUP(DATE(YEAR(AE8),MONTH(AE8),1),CPI_Con_F!$D$18:$G$67,4,FALSE))),General!$H$24,VLOOKUP(DATE(YEAR(AE8),MONTH(AE8),1),CPI_Con_F!$D$18:$G$67,4,FALSE))) -> 1.687774933 | AF11: =AE11*(1+IF(OR(ISBLANK(VLOOKUP(DATE(YEAR(AF8),MONTH(AF8),1),CPI_Con_F!$D$18:$G$67,4,FALSE)),ISERROR(VLOOKUP(DATE(YEAR(AF8),MONTH(AF8),1),CPI_Con_F!$D$18:$G$67,4,FALSE))),General!$H$24,VLOOKUP(DATE(YEAR(AF8),MONTH(AF8),1),CPI_Con_F!$D$18:$G$67,4,FALSE))) -> 1.729969307 | AG11: =AF11*(1+IF(OR(ISBLANK(VLOOKUP(DATE(YEAR(AG8),MONTH(AG8),1),CPI_Con_F!$D$18:$G$67,4,FALSE)),ISERROR(VLOOKUP(DATE(YEAR(AG8),MONTH(AG8),1),CPI_Con_F!$D$18:$G$67,4,FALSE))),General!$H$24,VLOOKUP(DATE(YEAR(AG8),MONTH(AG8),1),CPI_Con_F!$D$18:$G$67,4,FALSE))) -> 1.77321854 | AH11: =AG11*(1+IF(OR(ISBLANK(VLOOKUP(DATE(YEAR(AH8),MONTH(AH8),1),CPI_Con_F!$D$18:$G$67,4,FALSE)),ISERROR(VLOOKUP(DATE(YEAR(AH8),MONTH(AH8),1),CPI_Con_F!$D$18:$G$67,4,FALSE))),General!$H$24,VLOOKUP(DATE(YEAR(AH8),MONTH(AH8),1),CPI_Con_F!$D$18:$G$67,4,FALSE))) -> 1.817549003 | AI11: =AH11*(1+IF(OR(ISBLANK(VLOOKUP(DATE(YEAR(AI8),MONTH(AI8),1),CPI_Con_F!$D$18:$G$67,4,FALSE)),ISERROR(VLOOKUP(DATE(YEAR(AI8),MONTH(AI8),1),CPI_Con_F!$D$18:$G$67,4,FALSE))),General!$H$24,VLOOKUP(DATE(YEAR(AI8),MONTH(AI8),1),CPI_Con_F!$D$18:$G$67,4,FALSE))) -> 1.862987728 | AJ11: =AI11*(1+IF(OR(ISBLANK(VLOOKUP(DATE(YEAR(AJ8),MONTH(AJ8),1),CPI_Con_F!$D$18:$G$67,4,FALSE)),ISERROR(VLOOKUP(DATE(YEAR(AJ8),MONTH(AJ8),1),CPI_Con_F!$D$18:$G$67,4,FALSE))),General!$H$24,VLOOKUP(DATE(YEAR(AJ8),MONTH(AJ8),1),CPI_Con_F!$D$18:$G$67,4,FALSE))) -> 1.909562421 | AK11: =AJ11*(1+IF(OR(ISBLANK(VLOOKUP(DATE(YEAR(AK8),MONTH(AK8),1),CPI_Con_F!$D$18:$G$67,4,FALSE)),ISERROR(VLOOKUP(DATE(YEAR(AK8),MONTH(AK8),1),CPI_Con_F!$D$18:$G$67,4,FALSE))),General!$H$24,VLOOKUP(DATE(YEAR(AK8),MONTH(AK8),1),CPI_Con_F!$D$18:$G$67,4,FALSE))) -> 1.957301482 | AL11: =AK11*(1+IF(OR(ISBLANK(VLOOKUP(DATE(YEAR(AL8),MONTH(AL8),1),CPI_Con_F!$D$18:$G$67,4,FALSE)),ISERROR(VLOOKUP(DATE(YEAR(AL8),MONTH(AL8),1),CPI_Con_F!$D$18:$G$67,4,FALSE))),General!$H$24,VLOOKUP(DATE(YEAR(AL8),MONTH(AL8),1),CPI_Con_F!$D$18:$G$67,4,FALSE))) -> 2.006234019 | AM11: =AL11*(1+IF(OR(ISBLANK(VLOOKUP(DATE(YEAR(AM8),MONTH(AM8),1),CPI_Con_F!$D$18:$G$67,4,FALSE)),ISERROR(VLOOKUP(DATE(YEAR(AM8),MONTH(AM8),1),CPI_Con_F!$D$18:$G$67,4,FALSE))),General!$H$24,VLOOKUP(DATE(YEAR(AM8),MONTH(AM8),1),CPI_Con_F!$D$18:$G$67,4,FALSE))) -> 2.056389869 | AN11: =AM11*(1+IF(OR(ISBLANK(VLOOKUP(DATE(YEAR(AN8),MONTH(AN8),1),CPI_Con_F!$D$18:$G$67,4,FALSE)),ISERROR(VLOOKUP(DATE(YEAR(AN8),MONTH(AN8),1),CPI_Con_F!$D$18:$G$67,4,FALSE))),General!$H$24,VLOOKUP(DATE(YEAR(AN8),MONTH(AN8),1),CPI_Con_F!$D$18:$G$67,4,FALSE))) -> 2.107799616 | AO11: =AN11*(1+IF(OR(ISBLANK(VLOOKUP(DATE(YEAR(AO8),MONTH(AO8),1),CPI_Con_F!$D$18:$G$67,4,FALSE)),ISERROR(VLOOKUP(DATE(YEAR(AO8),MONTH(AO8),1),CPI_Con_F!$D$18:$G$67,4,FALSE))),General!$H$24,VLOOKUP(DATE(YEAR(AO8),MONTH(AO8),1),CPI_Con_F!$D$18:$G$67,4,FALSE))) -> 2.160494606 | AP11: =AO11*(1+IF(OR(ISBLANK(VLOOKUP(DATE(YEAR(AP8),MONTH(AP8),1),CPI_Con_F!$D$18:$G$67,4,FALSE)),ISERROR(VLOOKUP(DATE(YEAR(AP8),MONTH(AP8),1),CPI_Con_F!$D$18:$G$67,4,FALSE))),General!$H$24,VLOOKUP(DATE(YEAR(AP8),MONTH(AP8),1),CPI_Con_F!$D$18:$G$67,4,FALSE))) -> 2.214506972 | AQ11: =AP11*(1+IF(OR(ISBLANK(VLOOKUP(DATE(YEAR(AQ8),MONTH(AQ8),1),CPI_Con_F!$D$18:$G$67,4,FALSE)),ISERROR(VLOOKUP(DATE(YEAR(AQ8),MONTH(AQ8),1),CPI_Con_F!$D$18:$G$67,4,FALSE))),General!$H$24,VLOOKUP(DATE(YEAR(AQ8),MONTH(AQ8),1),CPI_Con_F!$D$18:$G$67,4,FALSE))) -> 2.269869646 | AR11: =AQ11*(1+IF(OR(ISBLANK(VLOOKUP(DATE(YEAR(AR8),MONTH(AR8),1),CPI_Con_F!$D$18:$G$67,4,FALSE)),ISERROR(VLOOKUP(DATE(YEAR(AR8),MONTH(AR8),1),CPI_Con_F!$D$18:$G$67,4,FALSE))),General!$H$24,VLOOKUP(DATE(YEAR(AR8),MONTH(AR8),1),CPI_Con_F!$D$18:$G$67,4,FALSE))) -> 2.326616387 | AS11: =AR11*(1+IF(OR(ISBLANK(VLOOKUP(DATE(YEAR(AS8),MONTH(AS8),1),CPI_Con_F!$D$18:$G$67,4,FALSE)),ISERROR(VLOOKUP(DATE(YEAR(AS8),MONTH(AS8),1),CPI_Con_F!$D$18:$G$67,4,FALSE))),General!$H$24,VLOOKUP(DATE(YEAR(AS8),MONTH(AS8),1),CPI_Con_F!$D$18:$G$67,4,FALSE))) -> 2.384781797 | AT11: =AS11*(1+IF(OR(ISBLANK(VLOOKUP(DATE(YEAR(AT8),MONTH(AT8),1),CPI_Con_F!$D$18:$G$67,4,FALSE)),ISERROR(VLOOKUP(DATE(YEAR(AT8),MONTH(AT8),1),CPI_Con_F!$D$18:$G$67,4,FALSE))),General!$H$24,VLOOKUP(DATE(YEAR(AT8),MONTH(AT8),1),CPI_Con_F!$D$18:$G$67,4,FALSE))) -> 2.444401342 | AU11: =AT11*(1+IF(OR(ISBLANK(VLOOKUP(DATE(YEAR(AU8),MONTH(AU8),1),CPI_Con_F!$D$18:$G$67,4,FALSE)),ISERROR(VLOOKUP(DATE(YEAR(AU8),MONTH(AU8),1),CPI_Con_F!$D$18:$G$67,4,FALSE))),General!$H$24,VLOOKUP(DATE(YEAR(AU8),MONTH(AU8),1),CPI_Con_F!$D$18:$G$67,4,FALSE))) -> 2.505511375 | AV11: =AU11*(1+IF(OR(ISBLANK(VLOOKUP(DATE(YEAR(AV8),MONTH(AV8),1),CPI_Con_F!$D$18:$G$67,4,FALSE)),ISERROR(VLOOKUP(DATE(YEAR(AV8),MONTH(AV8),1),CPI_Con_F!$D$18:$G$67,4,FALSE))),General!$H$24,VLOOKUP(DATE(YEAR(AV8),MONTH(AV8),1),CPI_Con_F!$D$18:$G$67,4,FALSE))) -> 2.56814916 | AW11: =AV11*(1+IF(OR(ISBLANK(VLOOKUP(DATE(YEAR(AW8),MONTH(AW8),1),CPI_Con_F!$D$18:$G$67,4,FALSE)),ISERROR(VLOOKUP(DATE(YEAR(AW8),MONTH(AW8),1),CPI_Con_F!$D$18:$G$67,4,FALSE))),General!$H$24,VLOOKUP(DATE(YEAR(AW8),MONTH(AW8),1),CPI_Con_F!$D$18:$G$67,4,FALSE))) -> 2.632352889 | AX11: =AW11*(1+IF(OR(ISBLANK(VLOOKUP(DATE(YEAR(AX8),MONTH(AX8),1),CPI_Con_F!$D$18:$G$67,4,FALSE)),ISERROR(VLOOKUP(DATE(YEAR(AX8),MONTH(AX8),1),CPI_Con_F!$D$18:$G$67,4,FALSE))),General!$H$24,VLOOKUP(DATE(YEAR(AX8),MONTH(AX8),1),CPI_Con_F!$D$18:$G$67,4,FALSE))) -> 2.698161711 | AY11: =AX11*(1+IF(OR(ISBLANK(VLOOKUP(DATE(YEAR(AY8),MONTH(AY8),1),CPI_Con_F!$D$18:$G$67,4,FALSE)),ISERROR(VLOOKUP(DATE(YEAR(AY8),MONTH(AY8),1),CPI_Con_F!$D$18:$G$67,4,FALSE))),General!$H$24,VLOOKUP(DATE(YEAR(AY8),MONTH(AY8),1),CPI_Con_F!$D$18:$G$67,4,FALSE))) -> 2.765615754 | AZ11: =AY11*(1+IF(OR(ISBLANK(VLOOKUP(DATE(YEAR(AZ8),MONTH(AZ8),1),CPI_Con_F!$D$18:$G$67,4,FALSE)),ISERROR(VLOOKUP(DATE(YEAR(AZ8),MONTH(AZ8),1),CPI_Con_F!$D$18:$G$67,4,FALSE))),General!$H$24,VLOOKUP(DATE(YEAR(AZ8),MONTH(AZ8),1),CPI_Con_F!$D$18:$G$67,4,FALSE))) -> 2.834756147 | BA11: =AZ11*(1+IF(OR(ISBLANK(VLOOKUP(DATE(YEAR(BA8),MONTH(BA8),1),CPI_Con_F!$D$18:$G$67,4,FALSE)),ISERROR(VLOOKUP(DATE(YEAR(BA8),MONTH(BA8),1),CPI_Con_F!$D$18:$G$67,4,FALSE))),General!$H$24,VLOOKUP(DATE(YEAR(BA8),MONTH(BA8),1),CPI_Con_F!$D$18:$G$67,4,FALSE))) -> 2.905625051 | BB11: =BA11*(1+IF(OR(ISBLANK(VLOOKUP(DATE(YEAR(BB8),MONTH(BB8),1),CPI_Con_F!$D$18:$G$67,4,FALSE)),ISERROR(VLOOKUP(DATE(YEAR(BB8),MONTH(BB8),1),CPI_Con_F!$D$18:$G$67,4,FALSE))),General!$H$24,VLOOKUP(DATE(YEAR(BB8),MONTH(BB8),1),CPI_Con_F!$D$18:$G$67,4,FALSE))) -> 2.978265677 | BC11: =BB11*(1+IF(OR(ISBLANK(VLOOKUP(DATE(YEAR(BC8),MONTH(BC8),1),CPI_Con_F!$D$18:$G$67,4,FALSE)),ISERROR(VLOOKUP(DATE(YEAR(BC8),MONTH(BC8),1),CPI_Con_F!$D$18:$G$67,4,FALSE))),General!$H$24,VLOOKUP(DATE(YEAR(BC8),MONTH(BC8),1),CPI_Con_F!$D$18:$G$67,4,FALSE))) -> 3.052722319 | BD11: =BC11*(1+IF(OR(ISBLANK(VLOOKUP(DATE(YEAR(BD8),MONTH(BD8),1),CPI_Con_F!$D$18:$G$67,4,FALSE)),ISERROR(VLOOKUP(DATE(YEAR(BD8),MONTH(BD8),1),CPI_Con_F!$D$18:$G$67,4,FALSE))),General!$H$24,VLOOKUP(DATE(YEAR(BD8),MONTH(BD8),1),CPI_Con_F!$D$18:$G$67,4,FALSE))) -> 3.129040377 | BE11: =BD11*(1+IF(OR(ISBLANK(VLOOKUP(DATE(YEAR(BE8),MONTH(BE8),1),CPI_Con_F!$D$18:$G$67,4,FALSE)),ISERROR(VLOOKUP(DATE(YEAR(BE8),MONTH(BE8),1),CPI_Con_F!$D$18:$G$67,4,FALSE))),General!$H$24,VLOOKUP(DATE(YEAR(BE8),MONTH(BE8),1),CPI_Con_F!$D$18:$G$67,4,FALSE))) -> 3.207266387 | BF11: =BE11*(1+IF(OR(ISBLANK(VLOOKUP(DATE(YEAR(BF8),MONTH(BF8),1),CPI_Con_F!$D$18:$G$67,4,FALSE)),ISERROR(VLOOKUP(DATE(YEAR(BF8),MONTH(BF8),1),CPI_Con_F!$D$18:$G$67,4,FALSE))),General!$H$24,VLOOKUP(DATE(YEAR(BF8),MONTH(BF8),1),CPI_Con_F!$D$18:$G$67,4,FALSE))) -> 3.287448046 | BG11: =BF11*(1+IF(OR(ISBLANK(VLOOKUP(DATE(YEAR(BG8),MONTH(BG8),1),CPI_Con_F!$D$18:$G$67,4,FALSE)),ISERROR(VLOOKUP(DATE(YEAR(BG8),MONTH(BG8),1),CPI_Con_F!$D$18:$G$67,4,FALSE))),General!$H$24,VLOOKUP(DATE(YEAR(BG8),MONTH(BG8),1),CPI_Con_F!$D$18:$G$67,4,FALSE))) -> 3.369634248
B12: CPI Index (lagged) | J12: =IF(J9=1,1,I11) -> 1 | K12: 1 | L12: 1.03 | M12: 1.05575 | N12: 1.08214375 | O12: 1.109197344 | P12: 1.136927277 | Q12: 1.165350459 | R12: 1.194484221 | S12: 1.224346326 | T12: 1.254954984 | U12: 1.286328859 | V12: 1.318487081 | W12: 1.351449258 | X12: 1.385235489 | Y12: 1.419866376 | Z12: 1.455363036 | AA12: 1.491747111 | AB12: 1.529040789 | AC12: 1.567266809 | AD12: 1.606448479 | AE12: 1.646609691 | AF12: 1.687774933 | AG12: 1.729969307 | AH12: 1.77321854 | AI12: 1.817549003 | AJ12: 1.862987728 | AK12: 1.909562421 | AL12: 1.957301482 | AM12: 2.006234019 | AN12: 2.056389869 | AO12: 2.107799616 | AP12: 2.160494606 | AQ12: 2.214506972 | AR12: 2.269869646 | AS12: 2.326616387 | AT12: 2.384781797 | AU12: 2.444401342 | AV12: 2.505511375 | AW12: 2.56814916 | AX12: 2.632352889 | AY12: 2.698161711 | AZ12: 2.765615754 | BA12: 2.834756147 | BB12: 2.905625051 | BC12: 2.978265677 | BD12: 3.052722319 | BE12: 3.129040377 | BF12: 3.207266387 | BG12: 3.287448046
B13: Discount Index (pre tax) | J13: =(1+General!J32)^(J$9-1) -> 1 | K13: =(1+General!K32)^(K$9-1) -> 1.0556 | L13: =(1+General!L32)^(L$9-1) -> 1.11429136 | M13: =(1+General!M32)^(M$9-1) -> 1.17624596 | N13: =(1+General!N32)^(N$9-1) -> 1.241645235 | O13: =(1+General!O32)^(O$9-1) -> 1.31068071 | P13: =(1+General!P32)^(P$9-1) -> 1.383554558 | Q13: =(1+General!Q32)^(Q$9-1) -> 1.460480191 | R13: =(1+General!R32)^(R$9-1) -> 1.54168289 | S13: =(1+General!S32)^(S$9-1) -> 1.627400458 | T13: =(1+General!T32)^(T$9-1) -> 1.717883924 | U13: =(1+General!U32)^(U$9-1) -> 1.81339827 | V13: =(1+General!V32)^(V$9-1) -> 1.914223214 | W13: =(1+General!W32)^(W$9-1) -> 2.020654024 | X13: =(1+General!X32)^(X$9-1) -> 2.133002388 | Y13: =(1+General!Y32)^(Y$9-1) -> 2.251597321 | Z13: =(1+General!Z32)^(Z$9-1) -> 2.376786132 | AA13: =(1+General!AA32)^(AA$9-1) -> 2.508935441 | AB13: =(1+General!AB32)^(AB$9-1) -> 2.648432251 | AC13: =(1+General!AC32)^(AC$9-1) -> 2.795685084 | AD13: =(1+General!AD32)^(AD$9-1) -> 2.951125175 | AE13: =(1+General!AE32)^(AE$9-1) -> 3.115207735 | AF13: =(1+General!AF32)^(AF$9-1) -> 3.288413285 | AG13: =(1+General!AG32)^(AG$9-1) -> 3.471249064 | AH13: =(1+General!AH32)^(AH$9-1) -> 3.664250512 | AI13: =(1+General!AI32)^(AI$9-1) -> 3.86798284 | AJ13: =(1+General!AJ32)^(AJ$9-1) -> 4.083042686 | AK13: =(1+General!AK32)^(AK$9-1) -> 4.310059859 | AL13: =(1+General!AL32)^(AL$9-1) -> 4.549699187 | AM13: =(1+General!AM32)^(AM$9-1) -> 4.802662462 | AN13: =(1+General!AN32)^(AN$9-1) -> 5.069690495 | AO13: =(1+General!AO32)^(AO$9-1) -> 5.351565287 | AP13: =(1+General!AP32)^(AP$9-1) -> 5.649112317 | AQ13: =(1+General!AQ32)^(AQ$9-1) -> 5.963202961 | AR13: =(1+General!AR32)^(AR$9-1) -> 6.294757046 | AS13: =(1+General!AS32)^(AS$9-1) -> 6.644745538 | AT13: =(1+General!AT32)^(AT$9-1) -> 7.01419339 | AU13: =(1+General!AU32)^(AU$9-1) -> 7.404182542 | AV13: =(1+General!AV32)^(AV$9-1) -> 7.815855092 | AW13: =(1+General!AW32)^(AW$9-1) -> 8.250416635 | AX13: =(1+General!AX32)^(AX$9-1) -> 8.709139799 | AY13: =(1+General!AY32)^(AY$9-1) -> 9.193367972 | AZ13: =(1+General!AZ32)^(AZ$9-1) -> 9.704519232 | BA13: =(1+General!BA32)^(BA$9-1) -> 10.2440905 | BB13: =(1+General!BB32)^(BB$9-1) -> 10.81366193 | BC13: =(1+General!BC32)^(BC$9-1) -> 11.41490154 | BD13: =(1+General!BD32)^(BD$9-1) -> 12.04957006 | BE13: =(1+General!BE32)^(BE$9-1) -> 12.71952616 | BF13: =(1+General!BF32)^(BF$9-1) -> 13.42673181 | BG13: =(1+General!BG32)^(BG$9-1) -> 14.1732581
J16: ="FY "&RIGHT(J10,2) -> FY 25 | K16: FY 26 | L16: FY 27 | M16: FY 28 | N16: FY 29 | O16: FY 30 | P16: FY 31 | Q16: FY 32 | R16: FY 33 | S16: FY 34 | T16: FY 35 | U16: FY 36 | V16: FY 37 | W16: FY 38 | X16: FY 39 | Y16: FY 40 | Z16: FY 41 | AA16: FY 42 | AB16: FY 43 | AC16: FY 44 | AD16: FY 45 | AE16: FY 46 | AF16: FY 47 | AG16: FY 48 | AH16: FY 49 | AI16: FY 50 | AJ16: FY 51 | AK16: FY 52 | AL16: FY 53 | AM16: FY 54 | AN16: FY 55 | AO16: FY 56 | AP16: FY 57 | AQ16: FY 58 | AR16: FY 59 | AS16: FY 60 | AT16: FY 61 | AU16: FY 62 | AV16: FY 63 | AW16: FY 64 | AX16: FY 65 | AY16: FY 66 | AZ16: FY 67 | BA16: FY 68 | BB16: FY 69 | BC16: FY 70 | BD16: FY 71 | BE16: FY 72 | BF16: FY 73 | BG16: FY 74
B17: Summary | J17: =J9 -> 1 | K17: 2 | L17: 3 | M17: 4 | N17: 5 | O17: 6 | P17: 7 | Q17: 8 | R17: 9 | S17: 10 | T17: 11 | U17: 12 | V17: 13 | W17: 14 | X17: 15 | Y17: 16 | Z17: 17 | AA17: 18 | AB17: 19 | AC17: 20 | AD17: 21 | AE17: 22 | AF17: 23 | AG17: 24 | AH17: 25 | AI17: 26 | AJ17: 27 | AK17: 28 | AL17: 29 | AM17: 30 | AN17: 31 | AO17: 32 | AP17: 33 | AQ17: 34 | AR17: 35 | AS17: 36 | AT17: 37 | AU17: 38 | AV17: 39 | AW17: 40 | AX17: 41 | AY17: 42 | AZ17: 43 | BA17: 44 | BB17: 45 | BC17: 46 | BD17: 47 | BE17: 48 | BF17: 49 | BG17: 50
A19: To determine the highest value project | E19: Present Value Cost
F20: Capital Expenditure | H20: =SUM(J20:BG20) -> 0 | J20: =-(J46)*J11/J13 -> 0 | K20: 0 | L20: 0 | M20: 0 | N20: 0 | O20: 0 | P20: 0 | Q20: 0 | R20: 0 | S20: 0 | T20: 0 | U20: 0 | V20: 0 | W20: 0 | X20: 0 | Y20: 0 | Z20: 0 | AA20: 0 | AB20: 0 | AC20: 0 | AD20: 0 | AE20: 0 | AF20: 0 | AG20: 0 | AH20: 0 | AI20: 0 | AJ20: 0 | AK20: 0 | AL20: 0 | AM20: 0 | AN20: 0 | AO20: 0 | AP20: 0 | AQ20: 0 | AR20: 0 | AS20: 0 | AT20: 0 | AU20: 0 | AV20: 0 | AW20: 0 | AX20: 0 | AY20: 0 | AZ20: 0 | BA20: 0 | BB20: 0 | BC20: 0 | BD20: 0 | BE20: 0 | BF20: 0 | BG20: 0
F21: Operating Expenditure | H21: =SUM(J21:BG21) -> 0 | J21: =-J75*J11/J13 -> 0 | K21: 0 | L21: 0 | M21: 0 | N21: 0 | O21: 0 | P21: 0 | Q21: 0 | R21: 0 | S21: 0 | T21: 0 | U21: 0 | V21: 0 | W21: 0 | X21: 0 | Y21: 0 | Z21: 0 | AA21: 0 | AB21: 0 | AC21: 0 | AD21: 0 | AE21: 0 | AF21: 0 | AG21: 0 | AH21: 0 | AI21: 0 | AJ21: 0 | AK21: 0 | AL21: 0 | AM21: 0 | AN21: 0 | AO21: 0 | AP21: 0 | AQ21: 0 | AR21: 0 | AS21: 0 | AT21: 0 | AU21: 0 | AV21: 0 | AW21: 0 | AX21: 0 | AY21: 0 | AZ21: 0 | BA21: 0 | BB21: 0 | BC21: 0 | BD21: 0 | BE21: 0 | BF21: 0 | BG21: 0
F22: Net Benefits | H22: =SUM(J22:BG22) -> 162.3696117 | J22: =(J106)*J11/J13 -> 5.1 | K22: 4.949732671 | L22: 5.35146644 | M22: 6.044644601 | N22: 5.956220396 | O22: 6.686219891 | P22: 6.859208566 | Q22: 6.813393407 | R22: 7.471229428 | S22: 7.426660624 | T22: 8.78504425 | U22: 8.824872896 | V22: 8.609055216 | W22: 8.359493744 | X22: 8.117166623 | Y22: 7.881864143 | Z22: 7.65338267 | AA22: 7.431524476 | AB22: 7.216097563 | AC22: 7.0069155 | AD22: 6.80379726 | AE22: 6.606567063 | AF22: 6.415054225 | AG22: 0 | AH22: 0 | AI22: 0 | AJ22: 0 | AK22: 0 | AL22: 0 | AM22: 0 | AN22: 0 | AO22: 0 | AP22: 0 | AQ22: 0 | AR22: 0 | AS22: 0 | AT22: 0 | AU22: 0 | AV22: 0 | AW22: 0 | AX22: 0 | AY22: 0 | AZ22: 0 | BA22: 0 | BB22: 0 | BC22: 0 | BD22: 0 | BE22: 0 | BF22: 0 | BG22: 0
E23: Total Present Value | H23: =SUM(J23:BG23) -> 162.3696117 | J23: =SUM(J20:J22) -> 5.1 | K23: =SUM(K20:K22) -> 4.949732671 | L23: 5.35146644 | M23: =SUM(M20:M22) -> 6.044644601 | N23: 5.956220396 | O23: 6.686219891 | P23: 6.859208566 | Q23: 6.813393407 | R23: 7.471229428 | S23: 7.426660624 | T23: 8.78504425 | U23: 8.824872896 | V23: 8.609055216 | W23: 8.359493744 | X23: 8.117166623 | Y23: 7.881864143 | Z23: 7.65338267 | AA23: 7.431524476 | AB23: 7.216097563 | AC23: 7.0069155 | AD23: 6.80379726 | AE23: 6.606567063 | AF23: 6.415054225 | AG23: 0 | AH23: 0 | AI23: 0 | AJ23: 0 | AK23: 0 | AL23: 0 | AM23: 0 | AN23: 0 | AO23: 0 | AP23: 0 | AQ23: 0 | AR23: 0 | AS23: 0 | AT23: 0 | AU23: 0 | AV23: 0 | AW23: 0 | AX23: 0 | AY23: 0 | AZ23: 0 | BA23: 0 | BB23: 0 | BC23: 0 | BD23: 0 | BE23: 0 | BF23: 0 | BG23: 0
A25: To determine the capex & opex need for the EDPR period | E25: Undiscounted
F26: Capital Expenditure | H26: =SUM(J26:BG26) -> 0 | J26: =-(J60)*J$6 -> 0 | K26: =-(K60)*K$6 -> 0 | L26: 0 | M26: 0 | N26: 0 | O26: 0 | P26: =-(P60)*P$6 -> 0 | Q26: 0 | R26: 0 | S26: 0 | T26: 0 | U26: 0 | V26: 0 | W26: 0 | X26: 0 | Y26: 0 | Z26: 0 | AA26: 0 | AB26: 0 | AC26: 0 | AD26: 0 | AE26: 0 | AF26: 0 | AG26: 0 | AH26: 0 | AI26: 0 | AJ26: 0 | AK26: 0 | AL26: 0 | AM26: 0 | AN26: 0 | AO26: 0 | AP26: 0 | AQ26: 0 | AR26: 0 | AS26: 0 | AT26: 0 | AU26: 0 | AV26: 0 | AW26: 0 | AX26: 0 | AY26: 0 | AZ26: 0 | BA26: 0 | BB26: 0 | BC26: 0 | BD26: 0 | BE26: 0 | BF26: 0 | BG26: 0
F27: Operating Expenditure | H27: =SUM(J27:BG27) -> 0 | J27: =-J89*J$6 -> 0 | K27: =-K89*K$6 -> 0 | L27: 0 | M27: 0 | N27: 0 | O27: 0 | P27: 0 | Q27: 0 | R27: 0 | S27: 0 | T27: 0 | U27: 0 | V27: 0 | W27: 0 | X27: 0 | Y27: 0 | Z27: 0 | AA27: 0 | AB27: 0 | AC27: 0 | AD27: 0 | AE27: 0 | AF27: 0 | AG27: 0 | AH27: 0 | AI27: 0 | AJ27: 0 | AK27: 0 | AL27: 0 | AM27: 0 | AN27: 0 | AO27: 0 | AP27: 0 | AQ27: 0 | AR27: 0 | AS27: 0 | AT27: 0 | AU27: 0 | AV27: 0 | AW27: 0 | AX27: 0 | AY27: 0 | AZ27: 0 | BA27: 0 | BB27: 0 | BC27: 0 | BD27: 0 | BE27: 0 | BF27: 0 | BG27: 0
F28: Net Benefits | H28: =SUM(J28:BG28) -> 37.41997924 | J28: =(J122)*J$6 -> 0 | K28: =(K122)*K$6 -> 0 | L28: 0 | M28: 6.570281248 | N28: 6.667445351 | O28: 7.708056275 | P28: 8.143549605 | Q28: 8.330646761 | R28: 0 | S28: 0 | T28: 0 | U28: 0 | V28: 0 | W28: 0 | X28: 0 | Y28: 0 | Z28: 0 | AA28: 0 | AB28: 0 | AC28: 0 | AD28: 0 | AE28: 0 | AF28: 0 | AG28: 0 | AH28: 0 | AI28: 0 | AJ28: 0 | AK28: 0 | AL28: 0 | AM28: 0 | AN28: 0 | AO28: 0 | AP28: 0 | AQ28: 0 | AR28: 0 | AS28: 0 | AT28: 0 | AU28: 0 | AV28: 0 | AW28: 0 | AX28: 0 | AY28: 0 | AZ28: 0 | BA28: 0 | BB28: 0 | BC28: 0 | BD28: 0 | BE28: 0 | BF28: 0 | BG28: 0
E29: Undiscounted Total Value | H29: =SUM(J29:BG29) -> 37.41997924 | J29: =SUM(J26:J28) -> 0 | K29: =SUM(K26:K28) -> 0 | L29: 0 | M29: 6.570281248 | N29: 6.667445351 | O29: 7.708056275 | P29: 8.143549605 | Q29: 8.330646761 | R29: 0 | S29: 0 | T29: 0 | U29: 0 | V29: 0 | W29: 0 | X29: 0 | Y29: 0 | Z29: 0 | AA29: 0 | AB29: 0 | AC29: 0 | AD29: 0 | AE29: 0 | AF29: 0 | AG29: 0 | AH29: 0 | AI29: 0 | AJ29: 0 | AK29: 0 | AL29: 0 | AM29: 0 | AN29: 0 | AO29: 0 | AP29: 0 | AQ29: 0 | AR29: 0 | AS29: 0 | AT29: 0 | AU29: 0 | AV29: 0 | AW29: 0 | AX29: 0 | AY29: 0 | AZ29: 0 | BA29: 0 | BB29: 0 | BC29: 0 | BD29: 0 | BE29: 0 | BF29: 0 | BG29: 0
B32: Capital Expenditure
F35: Category | G35: Description (optional) | I35: Dollar Basis
F46: Total Direct Capex | J46: =SUM(J36:J45) -> 0 | K46: =SUM(K36:K45) -> 0 | L46: =SUM(L36:L45) -> 0 | M46: 0 | N46: 0 | O46: 0 | P46: 0 | Q46: =SUM(Q36:Q45) -> 0 | R46: 0 | S46: 0 | T46: 0 | U46: 0 | V46: 0 | W46: 0 | X46: 0 | Y46: 0 | Z46: 0 | AA46: 0 | AB46: 0 | AC46: 0 | AD46: 0 | AE46: 0 | AF46: 0 | AG46: 0 | AH46: 0 | AI46: 0 | AJ46: 0 | AK46: 0 | AL46: 0 | AM46: 0 | AN46: 0 | AO46: 0 | AP46: 0 | AQ46: 0 | AR46: 0 | AS46: 0 | AT46: 0 | AU46: 0 | AV46: 0 | AW46: 0 | AX46: 0 | AY46: 0 | AZ46: 0 | BA46: 0 | BB46: 0 | BC46: 0 | BD46: 0 | BE46: 0 | BF46: 0 | BG46: 0
G49: Dollar Basis for Conversion | H49: Conversion Factor
F60: Total Direct Capex | J60: =SUM(J50:J59) -> 0 | K60: =SUM(K50:K59) -> 0 | L60: 0 | M60: 0 | N60: 0 | O60: 0 | P60: 0 | Q60: 0 | R60: 0 | S60: 0 | T60: 0 | U60: 0 | V60: 0 | W60: 0 | X60: 0 | Y60: 0 | Z60: 0 | AA60: 0 | AB60: 0 | AC60: 0 | AD60: 0 | AE60: 0 | AF60: 0 | AG60: 0 | AH60: 0 | AI60: 0 | AJ60: 0 | AK60: 0 | AL60: 0 | AM60: 0 | AN60: 0 | AO60: 0 | AP60: 0 | AQ60: 0 | AR60: 0 | AS60: 0 | AT60: 0 | AU60: 0 | AV60: 0 | AW60: 0 | AX60: 0 | AY60: 0 | AZ60: 0 | BA60: 0 | BB60: 0 | BC60: 0 | BD60: 0 | BE60: 0 | BF60: 0 | BG60: 0
B62: Operating Expenditure (enter costs as positive numbers and savings as negative numbers)
F64: Category | G64: Description (optional) | I64: Dollar Basis
F75: Total Opex | J75: =SUM(J65:J74) -> 0 | K75: =SUM(K65:K74) -> 0 | L75: 0 | M75: 0 | N75: 0 | O75: 0 | P75: =SUM(P65:P74) -> 0 | Q75: 0 | R75: 0 | S75: 0 | T75: 0 | U75: 0 | V75: 0 | W75: 0 | X75: 0 | Y75: 0 | Z75: 0 | AA75: 0 | AB75: 0 | AC75: 0 | AD75: 0 | AE75: 0 | AF75: 0 | AG75: 0 | AH75: 0 | AI75: 0 | AJ75: 0 | AK75: 0 | AL75: 0 | AM75: 0 | AN75: 0 | AO75: 0 | AP75: 0 | AQ75: 0 | AR75: 0 | AS75: 0 | AT75: 0 | AU75: 0 | AV75: 0 | AW75: 0 | AX75: 0 | AY75: 0 | AZ75: 0 | BA75: 0 | BB75: 0 | BC75: 0 | BD75: 0 | BE75: 0 | BF75: 0 | BG75: 0
F78: Category | G78: Dollar Basis for Conversion | H78: Conversion Factor
F89: Total Opex | J89: =SUM(J79:J88) -> 0 | K89: =SUM(K79:K88) -> 0 | L89: 0 | M89: 0 | N89: 0 | O89: 0 | P89: =SUM(P79:P88) -> 0 | Q89: =SUM(Q79:Q88) -> 0 | R89: 0 | S89: 0 | T89: 0 | U89: 0 | V89: 0 | W89: 0 | X89: 0 | Y89: 0 | Z89: 0 | AA89: 0 | AB89: 0 | AC89: 0 | AD89: 0 | AE89: 0 | AF89: 0 | AG89: 0 | AH89: 0 | AI89: 0 | AJ89: 0 | AK89: 0 | AL89: 0 | AM89: 0 | AN89: 0 | AO89: 0 | AP89: 0 | AQ89: 0 | AR89: 0 | AS89: 0 | AT89: 0 | AU89: 0 | AV89: 0 | AW89: 0 | AX89: 0 | AY89: 0 | AZ89: 0 | BA89: 0 | BB89: 0 | BC89: 0 | BD89: 0 | BE89: 0 | BF89: 0 | BG89: 0
B91: Benefits
F93: Category | G93: Description (optional) | I93: Dollar basis
F94: Do Nothing Risk | G94: Increased Consumption/Safety | J94: 3.1 | K94: 4.10153422 | L94: 4.873939781 | M94: 6.030642837 | N94: 6.109239787 | O94: 6.916774363 | P94: 7.500741466 | Q94: 7.659328704 | R94: 8.444031531 | S94: 8.52838128 | T94: 9.082539387 | U94: 9.062167091 | V94: 9.297651829 | W94: =V94 -> 9.297651829 | X94: 9.297651829 | Y94: 9.297651829 | Z94: 9.297651829 | AA94: 9.297651829 | AB94: 9.297651829 | AC94: 9.297651829 | AD94: 9.297651829 | AE94: 9.297651829 | AF94: 9.297651829
G95: Voltage-Curtailed Generation | J95: 1.6 | K95: 0.6816664903 | L95: 0.5483982359 | M95: 0.3667601397 | N95: 0.4171567415 | O95: 0.6513155514 | P95: 0.4957659451 | Q95: 0.5129752828 | R95: 0.7463409038 | S95: 0.8589245251 | T95: 2.230580041 | U95: 2.574574634 | V95: 2.37156723 | W95: =V95 -> 2.37156723 | X95: 2.37156723 | Y95: 2.37156723 | Z95: 2.37156723 | AA95: 2.37156723 | AB95: 2.37156723 | AC95: 2.37156723 | AD95: 2.37156723 | AE95: 2.37156723 | AF95: 2.37156723
G96: Emissions | J96: 0.4 | K96: 0.2895544418 | L96: 0.2258673518 | M96: 0.1728782719 | N96: 0.141048823 | O96: 0.139966361 | P96: 0.1470421934 | Q96: 0.1583427736 | R96: 0.2173142016 | S96: 0.2434387654 | T96: 0.419250704 | U96: 0.5006614218 | V96: 0.524840947 | W96: =V96 -> 0.524840947 | X96: =W96 -> 0.524840947 | Y96: =X96 -> 0.524840947 | Z96: =Y96 -> 0.524840947 | AA96: =Z96 -> 0.524840947 | AB96: =AA96 -> 0.524840947 | AC96: =AB96 -> 0.524840947 | AD96: =AC96 -> 0.524840947 | AE96: =AD96 -> 0.524840947 | AF96: =AE96 -> 0.524840947
F106: Net Benefits | J106: =SUM(J94:J105) -> 5.1 | K106: =SUM(K94:K105) -> 5.072755153 | L106: 5.648205369 | M106: 6.570281248 | N106: 6.667445351 | O106: 7.708056275 | P106: 8.143549605 | Q106: 8.330646761 | R106: 9.407686637 | S106: 9.63074457 | T106: 11.73237013 | U106: 12.13740315 | V106: 12.19406001 | W106: 12.19406001 | X106: 12.19406001 | Y106: 12.19406001 | Z106: 12.19406001 | AA106: 12.19406001 | AB106: 12.19406001 | AC106: 12.19406001 | AD106: 12.19406001 | AE106: 12.19406001 | AF106: 12.19406001 | AG106: 0 | AH106: 0 | AI106: 0 | AJ106: 0 | AK106: 0 | AL106: 0 | AM106: 0 | AN106: 0 | AO106: 0 | AP106: 0 | AQ106: 0 | AR106: 0 | AS106: 0 | AT106: 0 | AU106: 0 | AV106: 0 | AW106: 0 | AX106: 0 | AY106: 0 | AZ106: 0 | BA106: 0 | BB106: 0 | BC106: 0 | BD106: 0 | BE106: 0 | BF106: 0 | BG106: 0
F109: Category | G109: Dollar basis | H109: Conversion Factor
F110: Increased Consumption/Safety | G110: 2024-06-30 | H110: 1 | J110: =J94*$H110 -> 3.1 | K110: =K94*$H110 -> 4.10153422 | L110: 4.873939781 | M110: 6.030642837 | N110: 6.109239787 | O110: 6.916774363 | P110: 7.500741466 | Q110: 7.659328704 | R110: 8.444031531 | S110: 8.52838128 | T110: 9.082539387 | U110: 9.062167091 | V110: 9.297651829 | W110: 9.297651829 | X110: 9.297651829 | Y110: 9.297651829 | Z110: 9.297651829 | AA110: 9.297651829 | AB110: 9.297651829 | AC110: 9.297651829 | AD110: 9.297651829 | AE110: 9.297651829 | AF110: 9.297651829 | AG110: 0 | AH110: 0 | AI110: 0 | AJ110: 0 | AK110: 0 | AL110: 0 | AM110: 0 | AN110: 0 | AO110: 0 | AP110: 0 | AQ110: 0 | AR110: 0 | AS110: 0 | AT110: 0 | AU110: 0 | AV110: 0 | AW110: 0 | AX110: 0 | AY110: 0 | AZ110: 0 | BA110: 0 | BB110: 0 | BC110: 0 | BD110: 0 | BE110: 0 | BF110: 0 | BG110: 0
F111: Voltage-Curtailed Generation | G111: 2024-06-30 | H111: 1 | J111: =J95*$H111 -> 1.6 | K111: 0.6816664903 | L111: 0.5483982359 | M111: 0.3667601397 | N111: 0.4171567415 | O111: 0.6513155514 | P111: 0.4957659451 | Q111: 0.5129752828 | R111: 0.7463409038 | S111: 0.8589245251 | T111: 2.230580041 | U111: 2.574574634 | V111: 2.37156723 | W111: 2.37156723 | X111: 2.37156723 | Y111: 2.37156723 | Z111: 2.37156723 | AA111: 2.37156723 | AB111: 2.37156723 | AC111: 2.37156723 | AD111: 2.37156723 | AE111: 2.37156723 | AF111: 2.37156723 | AG111: 0 | AH111: 0 | AI111: 0 | AJ111: 0 | AK111: 0 | AL111: 0 | AM111: 0 | AN111: 0 | AO111: 0 | AP111: 0 | AQ111: 0 | AR111: 0 | AS111: 0 | AT111: 0 | AU111: 0 | AV111: 0 | AW111: 0 | AX111: 0 | AY111: 0 | AZ111: 0 | BA111: 0 | BB111: 0 | BC111: 0 | BD111: 0 | BE111: 0 | BF111: 0 | BG111: 0
F112: Emissions | G112: 2024-06-30 | H112: 1 | J112: =J96*$H112 -> 0.4 | K112: 0.2895544418 | L112: 0.2258673518 | M112: 0.1728782719 | N112: 0.141048823 | O112: 0.139966361 | P112: 0.1470421934 | Q112: 0.1583427736 | R112: 0.2173142016 | S112: 0.2434387654 | T112: 0.419250704 | U112: 0.5006614218 | V112: 0.524840947 | W112: 0.524840947 | X112: 0.524840947 | Y112: 0.524840947 | Z112: 0.524840947 | AA112: 0.524840947 | AB112: 0.524840947 | AC112: 0.524840947 | AD112: 0.524840947 | AE112: 0.524840947 | AF112: 0.524840947 | AG112: 0 | AH112: 0 | AI112: 0 | AJ112: 0 | AK112: 0 | AL112: 0 | AM112: 0 | AN112: 0 | AO112: 0 | AP112: 0 | AQ112: 0 | AR112: 0 | AS112: 0 | AT112: 0 | AU112: 0 | AV112: 0 | AW112: 0 | AX112: 0 | AY112: 0 | AZ112: 0 | BA112: 0 | BB112: 0 | BC112: 0 | BD112: 0 | BE112: 0 | BF112: 0 | BG112: 0
F122: Net Benefits | J122: =SUM(J110:J121) -> 5.1 | K122: =SUM(K110:K121) -> 5.072755153 | L122: 5.648205369 | M122: 6.570281248 | N122: 6.667445351 | O122: 7.708056275 | P122: 8.143549605 | Q122: 8.330646761 | R122: 9.407686637 | S122: 9.63074457 | T122: 11.73237013 | U122: 12.13740315 | V122: 12.19406001 | W122: 12.19406001 | X122: 12.19406001 | Y122: 12.19406001 | Z122: 12.19406001 | AA122: 12.19406001 | AB122: 12.19406001 | AC122: 12.19406001 | AD122: 12.19406001 | AE122: 12.19406001 | AF122: 12.19406001 | AG122: 0 | AH122: 0 | AI122: 0 | AJ122: 0 | AK122: 0 | AL122: 0 | AM122: 0 | AN122: 0 | AO122: 0 | AP122: 0 | AQ122: 0 | AR122: 0 | AS122: 0 | AT122: 0 | AU122: 0 | AV122: 0 | AW122: 0 | AX122: 0 | AY122: 0 | AZ122: 0 | BA122: 0 | BB122: 0 | BC122: 0 | BD122: 0 | BE122: 0 | BF122: 0 | BG122: 0
A124: END OF INPUTS FOR THIS OPTION

Sheet A_CPI
C6: Appendix A - CPI
C7: Section 5.
C9: =Cover!$C$9 -> AusNet Services
C10: =Cover!$C$10 -> Business Case Evaluation
C11: =Cover!$C$11 -> Voltage Compliance

Sheet CPI
B1: Appendix A: CPI Raw Data
B2: =Cover!$C$9 -> AusNet Services
B3: =Cover!$C$10 -> Business Case Evaluation
B4: =Cover!$C$11 -> Voltage Compliance
C6: CPI from ABS
E8: Index Numbers ; All groups CPI ; Australia ;
D9: Unit | E9: Index Numbers
D10: Series Type | E10: Original
D11: Data Type | E11: INDEX
D12: Frequency | E12: Quarter
D13: Collection Month | E13: 3
D14: Series Start | E14: 1948-09-01
D15: Series End | E15: 2023-03-01
D16: No. Obs | E16: 299
D17: Series ID | E17: A2325846C
D18: 2014-03-01 | E18: 105.4
D19: 2014-06-01 | E19: 105.9
D20: 2014-09-01 | E20: 106.4
D21: 2014-12-01 | E21: 106.6
D22: 2015-03-01 | E22: 106.8
D23: 2015-06-01 | E23: 107.5
D24: 2015-09-01 | E24: 108
D25: 2015-12-01 | E25: 108.4
D26: 2016-03-01 | E26: 108.2
D27: 2016-06-01 | E27: 108.6
D28: 2016-09-01 | E28: 109.4
D29: 2016-12-01 | E29: 110
D30: 2017-03-01 | E30: 110.5
D31: 2017-06-01 | E31: 110.7
D32: 2017-09-01 | E32: 111.4
D33: 2017-12-01 | E33: 112.1
D34: 2018-03-01 | E34: 112.6
D35: 2018-06-01 | E35: 113
D36: 2018-09-01 | E36: 113.5
D37: 2018-12-01 | E37: 114.1
D38: 2019-03-01 | E38: 114.1
D39: 2019-06-01 | E39: 114.8
D40: 2019-09-01 | E40: 115.4
D41: 2019-12-01 | E41: 116.2
D42: 2020-03-01 | E42: 116.6
D43: 2020-06-01 | E43: 114.4
D44: 2020-09-01 | E44: 116.2
D45: 2020-12-01 | E45: 117.2
D46: 2021-03-01 | E46: 117.9
D47: 2021-06-01 | E47: 118.8
D48: 2021-09-01 | E48: 119.7
D49: 2021-12-01 | E49: 121.3
D50: 2022-03-01 | E50: 123.9
D51: 2022-06-01 | E51: 126.1
D52: 2022-09-01 | E52: 128.4
D53: 2022-12-01 | E53: 130.8
D54: 2023-03-01 | E54: 132.6

Sheet CPI_Con_F
B1: Appendix A: Conversion Factors
B2: =Cover!$C$9 -> AusNet Services
B3: =Cover!$C$10 -> Business Case Evaluation
B4: =Cover!$C$11 -> Voltage Compliance
B6: Converting Actual CPI into Escalation Using the Lagged Approach
E8: =CPI!E8 -> Index Numbers ; All groups CPI ; Australia ;
D9: =CPI!D9 -> Unit | E9: =CPI!E9 -> Index Numbers
D10: =CPI!D10 -> Series Type | E10: =CPI!E10 -> Original
D11: =CPI!D11 -> Data Type | E11: =CPI!E11 -> INDEX
D12: =CPI!D12 -> Frequency | E12: =CPI!E12 -> Quarter
D13: =CPI!D13 -> Collection Month | E13: =CPI!E13 -> 3
D14: =CPI!D14 -> Series Start | E14: =CPI!E14 -> 1948-09-01
D15: =CPI!D15 -> Series End | E15: =CPI!E15 -> 2023-03-01
D16: =CPI!D16 -> No. Obs | E16: =CPI!E16 -> 299
D17: =CPI!D17 -> Series ID | E17: =CPI!E17 -> A2325846C | F17: Actual or Forecast | G17: RBA Forecast | H17: User Entered CPI | I17: One year lag | J17: Quarterly change % | K17: Index
D18: =CPI!D18 -> 2014-03-01 | E18: =CPI!E18 -> 105.4 | F18: A
D19: =CPI!D19 -> 2014-06-01 | E19: =CPI!E19 -> 105.9 | F19: A
D20: =CPI!D20 -> 2014-09-01 | E20: =CPI!E20 -> 106.4 | F20: A
D21: =CPI!D21 -> 2014-12-01 | E21: =CPI!E21 -> 106.6 | F21: A
D22: =CPI!D22 -> 2015-03-01 | E22: =CPI!E22 -> 106.8 | F22: A | I22: =E18 -> 105.4
D23: =CPI!D23 -> 2015-06-01 | E23: =CPI!E23 -> 107.5 | F23: A | I23: 105.9
D24: =CPI!D24 -> 2015-09-01 | E24: =CPI!E24 -> 108 | F24: A | I24: 106.4
D25: =CPI!D25 -> 2015-12-01 | E25: =CPI!E25 -> 108.4 | F25: A | I25: 106.6
D26: =CPI!D26 -> 2016-03-01 | E26: =CPI!E26 -> 108.2 | F26: A | I26: 106.8 | J26: =I26/I25-1 -> 0.001876172608
D27: =CPI!D27 -> 2016-06-01 | E27: =CPI!E27 -> 108.6 | F27: A | I27: 107.5 | J27: =I27/I26-1 -> 0.006554307116
D28: =CPI!D28 -> 2016-09-01 | E28: =CPI!E28 -> 109.4 | F28: A | I28: 108 | J28: 0.004651162791
D29: =CPI!D29 -> 2016-12-01 | E29: =CPI!E29 -> 110 | F29: A | I29: 108.4 | J29: 0.003703703704
D30: =CPI!D30 -> 2017-03-01 | E30: =CPI!E30 -> 110.5 | F30: A | I30: 108.2 | J30: -0.00184501845 | K30: 1
D31: =CPI!D31 -> 2017-06-01 | E31: =CPI!E31 -> 110.7 | F31: A | I31: 108.6 | J31: 0.003696857671 | K31: =K30*(1+$J31) -> 1.003696858
D32: =CPI!D32 -> 2017-09-01 | E32: =CPI!E32 -> 111.4 | F32: A | I32: 109.4 | J32: 0.007366482505 | K32: =K31*(1+$J32) -> 1.011090573
D33: =CPI!D33 -> 2017-12-01 | E33: =CPI!E33 -> 112.1 | F33: A | I33: 110 | J33: 0.005484460695 | K33: 1.01663586
D34: =CPI!D34 -> 2018-03-01 | E34: =CPI!E34 -> 112.6 | F34: A | I34: 110.5 | J34: 0.004545454545 | K34: =K33*(1+$J34) -> 1.021256932
D35: =CPI!D35 -> 2018-06-01 | E35: =CPI!E35 -> 113 | F35: A | I35: 110.7 | J35: 0.001809954751 | K35: 1.02310536
D36: =CPI!D36 -> 2018-09-01 | E36: =CPI!E36 -> 113.5 | F36: A | I36: 111.4 | J36: 0.006323396567 | K36: 1.029574861
D37: =CPI!D37 -> 2018-12-01 | E37: =CPI!E37 -> 114.1 | F37: A | I37: 112.1 | J37: 0.006283662478 | K37: 1.036044362
D38: =CPI!D38 -> 2019-03-01 | E38: =CPI!E38 -> 114.1 | F38: A | I38: 112.6 | J38: 0.004460303301 | K38: 1.040665434
D39: =CPI!D39 -> 2019-06-01 | E39: =CPI!E39 -> 114.8 | F39: A | I39: 113 | J39: 0.003552397869 | K39: 1.044362292
D40: =CPI!D40 -> 2019-09-01 | E40: =CPI!E40 -> 115.4 | F40: A | I40: 113.5 | J40: 0.004424778761 | K40: 1.048983364
D41: =CPI!D41 -> 2019-12-01 | E41: =CPI!E41 -> 116.2 | F41: A | I41: 114.1 | J41: 0.005286343612 | K41: 1.054528651
D42: =CPI!D42 -> 2020-03-01 | E42: =CPI!E42 -> 116.6 | F42: A | I42: 114.1 | J42: 0 | K42: 1.054528651
D43: =CPI!D43 -> 2020-06-01 | E43: =CPI!E43 -> 114.4 | F43: A | I43: 114.8 | J43: 0.006134969325 | K43: 1.060998152
D44: =CPI!D44 -> 2020-09-01 | E44: =CPI!E44 -> 116.2 | F44: A | I44: 115.4 | J44: 0.005226480836 | K44: 1.066543438
D45: =CPI!D45 -> 2020-12-01 | E45: =CPI!E45 -> 117.2 | F45: A | I45: 116.2 | J45: 0.006932409012 | K45: 1.073937153
D46: =CPI!D46 -> 2021-03-01 | E46: =CPI!E46 -> 117.9 | F46: A | I46: 116.6 | J46: 0.003442340792 | K46: 1.077634011
D47: =CPI!D47 -> 2021-06-01 | E47: =CPI!E47 -> 118.8 | F47: A | I47: 114.4 | J47: -0.01886792453 | K47: 1.057301294
D48: =CPI!D48 -> 2021-09-01 | E48: =CPI!E48 -> 119.7 | F48: A | I48: 116.2 | J48: 0.01573426573 | K48: 1.073937153
D49: =CPI!D49 -> 2021-12-01 | E49: =CPI!E49 -> 121.3 | F49: A | I49: 117.2 | J49: 0.008605851979 | K49: 1.083179298
D50: =CPI!D50 -> 2022-03-01 | E50: =CPI!E50 -> 123.9 | F50: A | I50: 117.9 | J50: 0.005972696246 | K50: 1.089648799
D51: =CPI!D51 -> 2022-06-01 | E51: =CPI!E51 -> 126.1 | F51: A | I51: 118.8 | J51: 0.007633587786 | K51: 1.097966728
D52: =CPI!D52 -> 2022-09-01 | E52: =CPI!E52 -> 128.4 | F52: A | I52: 119.7 | J52: 0.007575757576 | K52: 1.106284658
D53: =CPI!D53 -> 2022-12-01 | E53: =CPI!E53 -> 130.8 | F53: A | I53: 121.3 | J53: 0.01336675021 | K53: 1.121072089
D54: =CPI!D54 -> 2023-03-01 | E54: =CPI!E54 -> 132.6 | F54: A | I54: 123.9 | J54: =I54/I53-1 -> 0.02143446002 | K54: 1.145101664
D55: 2023-06-01 | E55: =E51*(1+G55) -> 133.98125 | F55: F | G55: 0.0625 | I55: 126.1 | J55: =I55/I54-1 -> 0.01775625504 | K55: 1.165434381
D56: 2023-09-01 | E56: =AVERAGE(E55,E57) -> 135.333625 | F56: F | I56: 128.4 | J56: 0.01823949247 | K56: 1.186691312
D57: 2023-12-01 | E57: =E53*(1+G57) -> 136.686 | F57: F | G57: 0.045 | I57: 130.8 | J57: 0.01869158879 | K57: 1.208872458
D58: 2024-03-01 | E58: =AVERAGE(E57,E59) -> 137.6782969 | F58: F | I58: 132.6 | J58: 0.01376146789 | K58: 1.225508318
D59: 2024-06-01 | E59: =E55*(1+G59) -> 138.6705937 | F59: F | G59: 0.035 | I59: 133.98125 | J59: 0.01041666667 | K59: 1.23827403
D60: 2024-09-01 | E60: =AVERAGE(E59,E61) -> 139.8994444 | F60: F | I60: 135.333625 | J60: 0.01009376312 | K60: 1.250772874
D61: 2024-12-01 | E61: =E57*(1+G61) -> 141.128295 | F61: F | G61: 0.0325 | I61: 136.686 | J61: 0.009992897183 | K61: 1.263271719
D62: 2025-03-01 | E62: =AVERAGE(E61,E63) -> 141.9795033 | F62: F | I62: 137.6782969 | J62: 0.007259681862 | K62: 1.27244267
D63: 2025-06-01 | E63: =E59*(1+G63) -> 142.8307116 | F63: F | G63: 0.03 | I63: 138.6705937 | J63: 0.007207358731 | K63: 1.281613621
D64: 2025-09-01 | E64: =E60*(1+H64) -> 143.3969305 | F64: F | H64: 0.025 | I64: =E60 -> 139.8994444 | J64: 0.008861652581 | K64: =K63*(1+$J64) -> 1.292970835
D65: 2025-12-01 | E65: =E61*(1+H65) -> 144.6565024 | F65: F | H65: 0.025 | I65: 141.128295 | J65: 0.008783813478 | K65: 1.30432805
D66: 2026-03-01 | E66: =E62*(1+H66) -> 145.5289909 | F66: F | H66: 0.025 | I66: 141.9795033 | J66: 0.006031450187 | K66: 1.31219504
D67: 2026-06-01 | E67: =E63*(1+H67) -> 146.4014794 | F67: F | H67: 0.025 | I67: =E63 -> 142.8307116 | J67: 0.005995289895 | K67: 1.320062029
B69: Creating a Set of Escalation Factors to Convert between Different Dollar Basis
D71: From | E71: To | F71: From (Equivalent) | G71: To (Equivalent) | H71: Conversion Factor
C72: =F72&G72 -> 4282545107 | D72: 2017-03-01 | E72: 2023-06-01 | F72: =EOMONTH(D72,0) -> 2017-03-31 | G72: =EOMONTH(E72,0) -> 2023-06-30 | H72: =VLOOKUP($E72,$D$18:$K$67,8,FALSE)/VLOOKUP($D72,$D$18:$K$67,8,FALSE) -> 1.165434381
C73: =F73&G73 -> 4291645107 | D73: 2017-06-01 | E73: 2023-06-01 | F73: =EOMONTH(D73,0) -> 2017-06-30 | G73: =EOMONTH(E73,0) -> 2023-06-30 | H73: =VLOOKUP($E73,$D$18:$K$67,8,FALSE)/VLOOKUP($D73,$D$18:$K$67,8,FALSE) -> 1.161141805
C74: 4300845107 | D74: 2017-09-01 | E74: 2023-06-01 | F74: 2017-09-30 | G74: 2023-06-30 | H74: 1.152650823
C75: 4310045107 | D75: 2017-12-01 | E75: 2023-06-01 | F75: 2017-12-31 | G75: 2023-06-30 | H75: 1.146363636
C76: 4319045107 | D76: 2018-03-01 | E76: 2023-06-01 | F76: 2018-03-31 | G76: 2023-06-30 | H76: 1.141176471
C77: 4328145107 | D77: 2018-06-01 | E77: 2023-06-01 | F77: 2018-06-30 | G77: 2023-06-30 | H77: 1.139114724
C78: 4337345107 | D78: 2018-09-01 | E78: 2023-06-01 | F78: 2018-09-30 | G78: 2023-06-30 | H78: 1.131956912
C79: 4346545107 | D79: 2018-12-01 | E79: 2023-06-01 | F79: 2018-12-31 | G79: 2023-06-30 | H79: 1.124888492
C80: 4355545107 | D80: 2019-03-01 | E80: 2023-06-01 | F80: 2019-03-31 | G80: 2023-06-30 | H80: 1.119893428
C81: 4364645107 | D81: 2019-06-01 | E81: 2023-06-01 | F81: 2019-06-30 | G81: 2023-06-30 | H81: 1.115929204
C82: 4373845107 | D82: 2019-09-01 | E82: 2023-06-01 | F82: 2019-09-30 | G82: 2023-06-30 | H82: 1.111013216
C83: 4383045107 | D83: 2019-12-01 | E83: 2023-06-01 | F83: 2019-12-31 | G83: 2023-06-30 | H83: 1.105170903
C84: 4392145107 | D84: 2020-03-01 | E84: 2023-06-01 | F84: 2020-03-31 | G84: 2023-06-30 | H84: 1.105170903
C85: 4401245107 | D85: 2020-06-01 | E85: 2023-06-01 | F85: 2020-06-30 | G85: 2023-06-30 | H85: 1.098432056
C86: 4410445107 | D86: 2020-09-01 | E86: 2023-06-01 | F86: 2020-09-30 | G86: 2023-06-30 | H86: 1.092720971
C87: 4419645107 | D87: 2020-12-01 | E87: 2023-06-01 | F87: 2020-12-31 | G87: 2023-06-30 | H87: 1.085197935
C88: 4428645107 | D88: 2021-03-01 | E88: 2023-06-01 | F88: 2021-03-31 | G88: 2023-06-30 | H88: 1.081475129
C89: 4437745107 | D89: 2021-06-01 | E89: 2023-06-01 | F89: 2021-06-30 | G89: 2023-06-30 | H89: 1.102272727
C90: 4446945107 | D90: 2021-09-01 | E90: 2023-06-01 | F90: 2021-09-30 | G90: 2023-06-30 | H90: 1.085197935
C91: 4456145107 | D91: 2021-12-01 | E91: 2023-06-01 | F91: 2021-12-31 | G91: 2023-06-30 | H91: 1.075938567
C92: 4465145107 | D92: 2022-03-01 | E92: 2023-06-01 | F92: 2022-03-31 | G92: 2023-06-30 | H92: 1.069550466
C93: 4474245107 | D93: 2022-06-01 | E93: 2023-06-01 | F93: 2022-06-30 | G93: 2023-06-30 | H93: 1.061447811
C94: 4483445107 | D94: 2022-09-01 | E94: 2023-06-01 | F94: 2022-09-30 | G94: 2023-06-30 | H94: 1.053467001
C95: 4492645107 | D95: 2022-12-01 | E95: 2023-06-01 | F95: 2022-12-31 | G95: 2023-06-30 | H95: 1.039571311
C96: 4501645107 | D96: 2023-03-01 | E96: 2023-06-01 | F96: 2023-03-31 | G96: 2023-06-30 | H96: =VLOOKUP($E96,$D$18:$K$67,8,FALSE)/VLOOKUP($D96,$D$18:$K$67,8,FALSE) -> 1.017756255
C97: 4282545473 | D97: =D72 -> 2017-03-01 | E97: =DATE(YEAR(E72)+1,MONTH(E72),DAY(E72)) -> 2024-06-01 | F97: 2017-03-31 | G97: 2024-06-30 | H97: 1.23827403
C98: 4291645473 | D98: =D73 -> 2017-06-01 | E98: =DATE(YEAR(E73)+1,MONTH(E73),DAY(E73)) -> 2024-06-01 | F98: 2017-06-30 | G98: 2024-06-30 | H98: 1.233713168
C99: 4300845473 | D99: 2017-09-01 | E99: 2024-06-01 | F99: 2017-09-30 | G99: 2024-06-30 | H99: 1.224691499
C100: 4310045473 | D100: 2017-12-01 | E100: 2024-06-01 | F100: 2017-12-31 | G100: 2024-06-30 | H100: 1.218011364
C101: 4319045473 | D101: 2018-03-01 | E101: 2024-06-01 | F101: 2018-03-31 | G101: 2024-06-30 | H101: 1.2125
C102: 4328145473 | D102: 2018-06-01 | E102: 2024-06-01 | F102: 2018-06-30 | G102: 2024-06-30 | H102: 1.210309395
C103: 4337345473 | D103: 2018-09-01 | E103: 2024-06-01 | F103: 2018-09-30 | G103: 2024-06-30 | H103: 1.202704219
C104: 4346545473 | D104: 2018-12-01 | E104: 2024-06-01 | F104: 2018-12-31 | G104: 2024-06-30 | H104: 1.195194023
C105: 4355545473 | D105: 2019-03-01 | E105: 2024-06-01 | F105: 2019-03-31 | G105: 2024-06-30 | H105: 1.189886767
C106: 4364645473 | D106: 2019-06-01 | E106: 2024-06-01 | F106: 2019-06-30 | G106: 2024-06-30 | H106: 1.185674779
C107: 4373845473 | D107: 2019-09-01 | E107: 2024-06-01 | F107: 2019-09-30 | G107: 2024-06-30 | H107: 1.180451542
C108: 4383045473 | D108: 2019-12-01 | E108: 2024-06-01 | F108: 2019-12-31 | G108: 2024-06-30 | H108: 1.174244084
C109: 4392145473 | D109: 2020-03-01 | E109: 2024-06-01 | F109: 2020-03-31 | G109: 2024-06-30 | H109: 1.174244084
C110: 4401245473 | D110: 2020-06-01 | E110: 2024-06-01 | F110: 2020-06-30 | G110: 2024-06-30 | H110: 1.167084059
C111: 4410445473 | D111: 2020-09-01 | E111: 2024-06-01 | F111: 2020-09-30 | G111: 2024-06-30 | H111: 1.161016031
C112: 4419645473 | D112: 2020-12-01 | E112: 2024-06-01 | F112: 2020-12-31 | G112: 2024-06-30 | H112: 1.153022806
C113: 4428645473 | D113: 2021-03-01 | E113: 2024-06-01 | F113: 2021-03-31 | G113: 2024-06-30 | H113: 1.149067324
C114: 4437745473 | D114: 2021-06-01 | E114: 2024-06-01 | F114: 2021-06-30 | G114: 2024-06-30 | H114: 1.171164773
C115: 4446945473 | D115: 2021-09-01 | E115: 2024-06-01 | F115: 2021-09-30 | G115: 2024-06-30 | H115: 1.153022806
C116: 4456145473 | D116: 2021-12-01 | E116: 2024-06-01 | F116: 2021-12-31 | G116: 2024-06-30 | H116: 1.143184727
C117: =F117&G117 -> 4465145473 | D117: 2022-03-01 | E117: 2024-06-01 | F117: 2022-03-31 | G117: 2024-06-30 | H117: 1.136397371
C118: 4474245473 | D118: 2022-06-01 | E118: 2024-06-01 | F118: 2022-06-30 | G118: 2024-06-30 | H118: 1.1277883
C119: 4483445473 | D119: 2022-09-01 | E119: 2024-06-01 | F119: 2022-09-30 | G119: 2024-06-30 | H119: 1.119308688
C120: 4492645473 | D120: 2022-12-01 | E120: 2024-06-01 | F120: 2022-12-31 | G120: 2024-06-30 | H120: 1.104544518
C121: 4501645473 | D121: 2023-03-01 | E121: 2024-06-01 | F121: 2023-03-31 | G121: 2024-06-30 | H121: 1.081366021
C122: 4282545838 | D122: 2017-03-01 | E122: 2025-06-01 | F122: 2017-03-31 | G122: 2025-06-30 | H122: 1.281613621
C123: 4291645838 | D123: 2017-06-01 | E123: 2025-06-01 | F123: 2017-06-30 | G123: 2025-06-30 | H123: 1.276893128
C124: 4300845838 | D124: 2017-09-01 | E124: 2025-06-01 | F124: 2017-09-30 | G124: 2025-06-30 | H124: 1.267555702
C125: 4310045838 | D125: 2017-12-01 | E125: 2025-06-01 | F125: 2017-12-31 | G125: 2025-06-30 | H125: 1.260641761
C126: 4319045838 | D126: 2018-03-01 | E126: 2025-06-01 | F126: =EOMONTH(D126,0) -> 2018-03-31 | G126: =EOMONTH(E126,0) -> 2025-06-30 | H126: 1.2549375
C127: 4328145838 | D127: 2018-06-01 | E127: 2025-06-01 | F127: 2018-06-30 | G127: 2025-06-30 | H127: 1.252670224
C128: 4337345838 | D128: 2018-09-01 | E128: 2025-06-01 | F128: 2018-09-30 | G128: 2025-06-30 | H128: 1.244798867
C129: 4346545838 | D129: 2018-12-01 | E129: 2025-06-01 | F129: 2018-12-31 | G129: 2025-06-30 | H129: 1.237025814
C130: 4355545838 | D130: 2019-03-01 | E130: 2025-06-01 | F130: 2019-03-31 | G130: 2025-06-30 | H130: 1.231532804
C131: 4364645838 | D131: 2019-06-01 | E131: 2025-06-01 | F131: 2019-06-30 | G131: 2025-06-30 | H131: 1.227173396
C132: 4373845838 | D132: 2019-09-01 | E132: 2025-06-01 | F132: 2019-09-30 | G132: 2025-06-30 | H132: 1.221767346
C133: 4383045838 | D133: 2019-12-01 | E133: 2025-06-01 | F133: 2019-12-31 | G133: 2025-06-30 | H133: 1.215342627
C134: 4392145838 | D134: 2020-03-01 | E134: 2025-06-01 | F134: =EOMONTH(D134,0) -> 2020-03-31 | G134: =EOMONTH(E134,0) -> 2025-06-30 | H134: 1.215342627
C135: 4401245838 | D135: 2020-06-01 | E135: 2025-06-01 | F135: 2020-06-30 | G135: 2025-06-30 | H135: 1.207932001
C136: 4410445838 | D136: 2020-09-01 | E136: 2025-06-01 | F136: 2020-09-30 | G136: 2025-06-30 | H136: 1.201651592
C137: =F137&G137 -> 4419645838 | D137: 2020-12-01 | E137: 2025-06-01 | F137: 2020-12-31 | G137: 2025-06-30 | H137: =VLOOKUP($E137,$D$18:$K$67,8,FALSE)/VLOOKUP($D137,$D$18:$K$67,8,FALSE) -> 1.193378604
C138: 4428645838 | D138: 2021-03-01 | E138: 2025-06-01 | F138: 2021-03-31 | G138: 2025-06-30 | H138: 1.189284681
C139: 4437745838 | D139: 2021-06-01 | E139: 2025-06-01 | F139: 2021-06-30 | G139: 2025-06-30 | H139: 1.21215554
C140: 4446945838 | D140: 2021-09-01 | E140: 2025-06-01 | F140: 2021-09-30 | G140: 2025-06-30 | H140: 1.193378604
C141: 4456145838 | D141: 2021-12-01 | E141: 2025-06-01 | F141: 2021-12-31 | G141: 2025-06-30 | H141: 1.183196192
C142: 4465145838 | D142: 2022-03-01 | E142: 2025-06-01 | F142: 2022-03-31 | G142: 2025-06-30 | H142: 1.176171279
C143: 4474245838 | D143: 2022-06-01 | E143: 2025-06-01 | F143: 2022-06-30 | G143: 2025-06-30 | H143: 1.16726089
C144: 4483445838 | D144: 2022-09-01 | E144: 2025-06-01 | F144: 2022-09-30 | G144: 2025-06-30 | H144: 1.158484492
C145: 4492645838 | D145: 2022-12-01 | E145: 2025-06-01 | F145: 2022-12-31 | G145: 2025-06-30 | H145: 1.143203576
C146: 4501645838 | D146: 2023-03-01 | E146: 2025-06-01 | F146: 2023-03-31 | G146: 2025-06-30 | H146: 1.119213832
C147: 4282546203 | D147: 2017-03-01 | E147: 2026-06-01 | F147: =EOMONTH(D147,0) -> 2017-03-31 | G147: =EOMONTH(E147,0) -> 2026-06-30 | H147: =VLOOKUP($E147,$D$18:$K$67,8,FALSE)/VLOOKUP($D147,$D$18:$K$67,8,FALSE) -> 1.320062029
C148: 4291646203 | D148: 2017-06-01 | E148: 2026-06-01 | F148: =EOMONTH(D148,0) -> 2017-06-30 | G148: =EOMONTH(E148,0) -> 2026-06-30 | H148: =VLOOKUP($E148,$D$18:$K$67,8,FALSE)/VLOOKUP($D148,$D$18:$K$67,8,FALSE) -> 1.315199922
C149: 4300846203 | D149: 2017-09-01 | E149: 2026-06-01 | F149: 2017-09-30 | G149: 2026-06-30 | H149: 1.305582373
C150: 4310046203 | D150: 2017-12-01 | E150: 2026-06-01 | F150: 2017-12-31 | G150: 2026-06-30 | H150: 1.298461014
C151: 4319046203 | D151: 2018-03-01 | E151: 2026-06-01 | F151: 2018-03-31 | G151: 2026-06-30 | H151: 1.292585625
C152: 4328146203 | D152: 2018-06-01 | E152: 2026-06-01 | F152: 2018-06-30 | G152: 2026-06-30 | H152: 1.29025033
C153: 4337346203 | D153: 2018-09-01 | E153: 2026-06-01 | F153: 2018-09-30 | G153: 2026-06-30 | H153: 1.282142833
C154: 4346546203 | D154: 2018-12-01 | E154: 2026-06-01 | F154: 2018-12-31 | G154: 2026-06-30 | H154: 1.274136588
C155: 4355546203 | D155: 2019-03-01 | E155: 2026-06-01 | F155: 2019-03-31 | G155: 2026-06-30 | H155: 1.268478788
C156: 4364646203 | D156: 2019-06-01 | E156: 2026-06-01 | F156: 2019-06-30 | G156: 2026-06-30 | H156: 1.263988598
C157: 4373846203 | D157: 2019-09-01 | E157: 2026-06-01 | F157: 2019-09-30 | G157: 2026-06-30 | H157: 1.258420366
C158: 4383046203 | D158: 2019-12-01 | E158: 2026-06-01 | F158: 2019-12-31 | G158: 2026-06-30 | H158: 1.251802906
C159: 4392146203 | D159: 2020-03-01 | E159: 2026-06-01 | F159: 2020-03-31 | G159: 2026-06-30 | H159: 1.251802906
C160: 4401246203 | D160: 2020-06-01 | E160: 2026-06-01 | F160: 2020-06-30 | G160: 2026-06-30 | H160: 1.244169961
C161: 4410446203 | D161: 2020-09-01 | E161: 2026-06-01 | F161: 2020-09-30 | G161: 2026-06-30 | H161: 1.23770114
C162: 4419646203 | D162: =D137 -> 2020-12-01 | E162: =DATE(YEAR(E137)+1,MONTH(E137),DAY(E137)) -> 2026-06-01 | F162: 2020-12-31 | G162: 2026-06-30 | H162: 1.229179962
C163: 4428646203 | D163: 2021-03-01 | E163: 2026-06-01 | F163: 2021-03-31 | G163: 2026-06-30 | H163: 1.224963221
C164: 4437746203 | D164: 2021-06-01 | E164: 2026-06-01 | F164: 2021-06-30 | G164: 2026-06-30 | H164: =VLOOKUP($E164,$D$18:$K$67,8,FALSE)/VLOOKUP($D164,$D$18:$K$67,8,FALSE) -> 1.248520206
C165: 4446946203 | D165: 2021-09-01 | E165: 2026-06-01 | F165: =EOMONTH(D165,0) -> 2021-09-30 | G165: =EOMONTH(E165,0) -> 2026-06-30 | H165: 1.229179962
C166: 4456146203 | D166: 2021-12-01 | E166: 2026-06-01 | F166: 2021-12-31 | G166: 2026-06-30 | H166: 1.218692078
C167: 4465146203 | D167: 2022-03-01 | E167: 2026-06-01 | F167: 2022-03-31 | G167: 2026-06-30 | H167: 1.211456417
C168: 4474246203 | D168: 2022-06-01 | E168: 2026-06-01 | F168: 2022-06-30 | G168: 2026-06-30 | H168: 1.202278717
C169: 4483446203 | D169: 2022-09-01 | E169: 2026-06-01 | F169: 2022-09-30 | G169: 2026-06-30 | H169: 1.193239027
C170: 4492646203 | D170: 2022-12-01 | E170: 2026-06-01 | F170: 2022-12-31 | G170: 2026-06-30 | H170: 1.177499683
C171: =F171&G171 -> 4501646203 | D171: 2023-03-01 | E171: 2026-06-01 | F171: 2023-03-31 | G171: 2026-06-30 | H171: =VLOOKUP($E171,$D$18:$K$67,8,FALSE)/VLOOKUP($D171,$D$18:$K$67,8,FALSE) -> 1.152790247
B173: List of Allowed Dollar Basis Entries
D175: From | F175: To | H175: Assessment period start date
D176: 2017-03-31 | F176: 2023-06-30 | H176: 2023-07-01
D177: 2017-06-30 | F177: 2024-06-30 | H177: 2024-07-01
D178: 2017-09-30 | F178: 2025-06-30 | H178: 2025-07-01
D179: 2017-12-31 | F179: 2026-06-30 | H179: 2026-07-01
D180: 2018-03-31 | H180: 2027-07-01
D181: 2018-06-30 | H181: 2028-07-01
D182: 2018-09-30 | H182: 2029-07-01
D183: 2018-12-31 | H183: 2030-07-01
D184: 2019-03-31
D185: 2019-06-30
D186: 2019-09-30
D187: 2019-12-31
D188: 2020-03-31
D189: 2020-06-30
D190: 2020-09-30
D191: 2020-12-31
D192: 2021-03-31
D193: 2021-06-30
D194: 2021-09-30
D195: 2021-12-31
D196: 2022-03-31
D197: 2022-06-30
D198: 2022-09-30
D199: 2022-12-31
D200: 2023-03-31
